{"text_format":"3","workbook":"xlsx","n_sheets":5,"sheets":["INÍCIO","DESPESAS PLANEADAS","DESPESAS REAIS","VARIAÇÕES DE DESPESAS","ANÁLISE DE DESPESAS"],"not_rendered":{"charts":3,"images":2,"defined_names":1},"read":"whole","date_system":"1900"}

{"sheet":"INÍCIO","index":0,"n_rows":8,"n_cols":2,"rows_kept":8}
[null,"ACERCA DESTE MODELO"]
[null,"Utilize o livro Orçamento de Despesas Empresariais para controlar as Despesas Planeadas e Reais e as Variações."]
[null,"Preencha o Nome da Empresa e adicione o Logótipo."]
[null,"Introduza os detalhes nas tabelas na folha de cálculo Despesas Planeadas e na folha de cálculo Despesas Reais."]
[null,"As tabelas são atualizadas automaticamente na folha de cálculo Variações de Despesas e os gráficos são atualizados na folha de cálculo Análise de Despesas"]
[null,"Nota: "]
[null,"Encontram-se instruções adicionais na coluna A de cada folha de cálculo. O texto encontra-se intencionalmente oculto. Para remover o texto, selecione a coluna A e, em seguida, selecione Eliminar. Para mostrar o texto, selecione a coluna A e, em seguida, mude a cor do tipo de letra."]
[null,"Para saber mais sobre as tabelas, prima Shift+F10 numa tabela, selecione a opção TABELA e, em seguida, selecione TEXTO ALTERNATIVO"]

{"sheet":"DESPESAS PLANEADAS","index":1,"n_rows":37,"n_cols":18,"rows_kept":37,"merged":[[1,1,2,3],[1,9,1,12],[1,13,2,14],[2,9,2,12],[3,17,12,19],[8,1,8,2],[19,1,19,2],[28,1,28,2],[33,1,33,2]]}
["Introduza os Custos com Colaboradores Planeados, os Custos de Escritório, os Custos de Marketing e os Custos de Formação ou Deslocações nas respetivas tabelas desta folha de cálculo. Os totais são calculados automaticamente. Encontram-se instruções úteis sobre como utilizar esta folha de cálculo nas células desta coluna. Prima a Seta para Baixo para começar.",{"$nulls":14}," "]
["Introduza o Nome da Empresa na célula à direita e o logótipo na célula N2. O título desta folha de cálculo está na célula K2.","Nome da Empresa",{"$nulls":7},"Estimativas de Despesas Detalhadas",{"$nulls":3},"O marcador de posição de logótipo encontra-se nesta célula."]
["A sugestão está na célula K3.",{"$nulls":8},"As células sombreadas são cálculos."]
["A etiqueta de Despesas Planeadas encontra-se na célula à direita, os meses nas células C4 a N4, a etiqueta de Ano na célula O4 e as instruções de utilização deste modelo estão na célula R4.","DESPESAS PLANEADAS","JAN","FEV","MAR","ABR","MAI","JUN","JUL","AGO","SET","OUT","NOV","DEZ","ANO",null,null,"Sugestão: COMO UTILIZAR ESTE MODELO\nIntroduza dados nas células brancas das folhas de cálculo DESPESAS PLANEADAS e DESPESAS REAIS, e as VARIAÇÕES DE DESPESAS e ANÁLISE DE DESPESAS serão calculadas automaticamente. Se adicionar uma linha numa folha, as restantes folhas terão de ser iguais."]
["Introduza os Custos com Colaboradores na tabela Plano de Colaboradores a partir da célula à direita. A instrução seguinte está na célula A10.","Custos com Colaboradores","Jan","Fev","Mar","Abr","Mai","Jun","Jul","Ago","Set","Out","Nov","Dez","ANO"]
[null,"Salários",{"v":85000,"d":"85,000.00 €"},{"v":85000,"d":"85,000.00 €"},{"v":85000,"d":"85,000.00 €"},{"v":87500,"d":"87,500.00 €"},{"v":87500,"d":"87,500.00 €"},{"v":87500,"d":"87,500.00 €"},{"v":87500,"d":"87,500.00 €"},{"v":92400,"d":"92,400.00 €"},{"v":92400,"d":"92,400.00 €"},{"v":92400,"d":"92,400.00 €"},{"v":92400,"d":"92,400.00 €"},{"v":92400,"d":"92,400.00 €"},{"$f":"SUM(C6:N6)","v":{"v":1067000,"d":"1,067,000.00 €"}}]
[null,"Benefícios",{"$f":"C6*0.27","v":{"v":22950,"d":"22,950.00 €"}},{"v":22950,"d":"22,950.00 €"},{"v":22950,"d":"22,950.00 €"},{"v":23625,"d":"23,625.00 €"},{"v":23625,"d":"23,625.00 €"},{"v":23625,"d":"23,625.00 €"},{"v":23625,"d":"23,625.00 €"},{"v":24948,"d":"24,948.00 €"},{"v":24948,"d":"24,948.00 €"},{"v":24948,"d":"24,948.00 €"},{"v":24948,"d":"24,948.00 €"},{"v":24948,"d":"24,948.00 €"},{"$f":"SUM(C7:N7)","v":{"v":288090,"d":"288,090.00 €"}}]
[null,"Subtotal",{"$f":"SUBTOTAL(109,PlanoDeColaboradores[Jan])","v":{"v":107950,"d":"107,950.00 €"}},{"$f":"SUBTOTAL(109,PlanoDeColaboradores[Fev])","v":{"v":107950,"d":"107,950.00 €"}},{"$f":"SUBTOTAL(109,PlanoDeColaboradores[Mar])","v":{"v":107950,"d":"107,950.00 €"}},{"$f":"SUBTOTAL(109,PlanoDeColaboradores[Abr])","v":{"v":111125,"d":"111,125.00 €"}},{"$f":"SUBTOTAL(109,PlanoDeColaboradores[Mai])","v":{"v":111125,"d":"111,125.00 €"}},{"$f":"SUBTOTAL(109,PlanoDeColaboradores[Jun])","v":{"v":111125,"d":"111,125.00 €"}},{"$f":"SUBTOTAL(109,PlanoDeColaboradores[Jul])","v":{"v":111125,"d":"111,125.00 €"}},{"$f":"SUBTOTAL(109,PlanoDeColaboradores[Ago])","v":{"v":117348,"d":"117,348.00 €"}},{"$f":"SUBTOTAL(109,PlanoDeColaboradores[Set])","v":{"v":117348,"d":"117,348.00 €"}},{"$f":"SUBTOTAL(109,PlanoDeColaboradores[Out])","v":{"v":117348,"d":"117,348.00 €"}},{"$f":"SUBTOTAL(109,PlanoDeColaboradores[Nov])","v":{"v":117348,"d":"117,348.00 €"}},{"$f":"SUBTOTAL(109,PlanoDeColaboradores[Dez])","v":{"v":117348,"d":"117,348.00 €"}},{"$f":"SUBTOTAL(109,PlanoDeColaboradores[ANO])","v":{"v":1355090,"d":"1,355,090.00 €"}}]
[]
["Introduza os Custos de Escritório na tabela Plano de Escritório a partir da célula à direita. A instrução seguinte está na célula A21.","Custos de Escritório","Jan","Fev","Mar","Abr","Mai","Jun","Jul","Ago","Set","Out","Nov","Dez","ANO"]
[null,"Arrendamento de escritório",{"v":9800,"d":"9,800.00 €"},{"v":9800,"d":"9,800.00 €"},{"v":9800,"d":"9,800.00 €"},{"v":9800,"d":"9,800.00 €"},{"v":9800,"d":"9,800.00 €"},{"v":9800,"d":"9,800.00 €"},{"v":9800,"d":"9,800.00 €"},{"v":9800,"d":"9,800.00 €"},{"v":9800,"d":"9,800.00 €"},{"v":9800,"d":"9,800.00 €"},{"v":9800,"d":"9,800.00 €"},{"v":9800,"d":"9,800.00 €"},{"$f":"SUM(C11:N11)","v":{"v":117600,"d":"117,600.00 €"}}]
[null,"Gás",null,{"v":400,"d":"400.00 €"},{"v":400,"d":"400.00 €"},{"v":100,"d":"100.00 €"},{"v":100,"d":"100.00 €"},{"v":100,"d":"100.00 €"},{"v":100,"d":"100.00 €"},{"v":100,"d":"100.00 €"},{"v":100,"d":"100.00 €"},{"v":100,"d":"100.00 €"},{"v":400,"d":"400.00 €"},{"v":400,"d":"400.00 €"},{"v":2300,"d":"2,300.00 €"}]
[null,"Eletricidade",{"v":300,"d":"300.00 €"},{"v":300,"d":"300.00 €"},{"v":300,"d":"300.00 €"},{"v":300,"d":"300.00 €"},{"v":300,"d":"300.00 €"},{"v":300,"d":"300.00 €"},{"v":300,"d":"300.00 €"},{"v":300,"d":"300.00 €"},{"v":300,"d":"300.00 €"},{"v":300,"d":"300.00 €"},{"v":300,"d":"300.00 €"},{"v":300,"d":"300.00 €"},{"v":3600,"d":"3,600.00 €"}]
[null,"Água",{"v":40,"d":"40.00 €"},{"v":40,"d":"40.00 €"},{"v":40,"d":"40.00 €"},{"v":40,"d":"40.00 €"},{"v":40,"d":"40.00 €"},{"v":40,"d":"40.00 €"},{"v":40,"d":"40.00 €"},{"v":40,"d":"40.00 €"},{"v":40,"d":"40.00 €"},{"v":40,"d":"40.00 €"},{"v":40,"d":"40.00 €"},{"v":40,"d":"40.00 €"},{"v":480,"d":"480.00 €"}]
[null,"Telefone",{"v":250,"d":"250.00 €"},{"v":250,"d":"250.00 €"},{"v":250,"d":"250.00 €"},{"v":250,"d":"250.00 €"},{"v":250,"d":"250.00 €"},{"v":250,"d":"250.00 €"},{"v":250,"d":"250.00 €"},{"v":250,"d":"250.00 €"},{"v":250,"d":"250.00 €"},{"v":250,"d":"250.00 €"},{"v":250,"d":"250.00 €"},{"v":250,"d":"250.00 €"},{"v":3000,"d":"3,000.00 €"}]
[null,"Internet",{"v":180,"d":"180.00 €"},{"v":180,"d":"180.00 €"},{"v":180,"d":"180.00 €"},{"v":180,"d":"180.00 €"},{"v":180,"d":"180.00 €"},{"v":180,"d":"180.00 €"},{"v":180,"d":"180.00 €"},{"v":180,"d":"180.00 €"},{"v":180,"d":"180.00 €"},{"v":180,"d":"180.00 €"},{"v":180,"d":"180.00 €"},{"v":180,"d":"180.00 €"},{"v":2160,"d":"2,160.00 €"}]
[null,"Material de escritório",{"v":200,"d":"200.00 €"},{"v":200,"d":"200.00 €"},{"v":200,"d":"200.00 €"},{"v":200,"d":"200.00 €"},{"v":200,"d":"200.00 €"},{"v":200,"d":"200.00 €"},{"v":200,"d":"200.00 €"},{"v":200,"d":"200.00 €"},{"v":200,"d":"200.00 €"},{"v":200,"d":"200.00 €"},{"v":200,"d":"200.00 €"},{"v":200,"d":"200.00 €"},{"v":2400,"d":"2,400.00 €"}]
[null,"Segurança",{"v":600,"d":"600.00 €"},{"v":600,"d":"600.00 €"},{"v":600,"d":"600.00 €"},{"v":600,"d":"600.00 €"},{"v":600,"d":"600.00 €"},{"v":600,"d":"600.00 €"},{"v":600,"d":"600.00 €"},{"v":600,"d":"600.00 €"},{"v":600,"d":"600.00 €"},{"v":600,"d":"600.00 €"},{"v":600,"d":"600.00 €"},{"v":600,"d":"600.00 €"},{"v":7200,"d":"7,200.00 €"}]
[null,"Subtotal",{"$f":"SUBTOTAL(109,PlanoDeEscritório[Jan])","v":{"v":11370,"d":"11,370.00 €"}},{"$f":"SUBTOTAL(109,PlanoDeEscritório[Fev])","v":{"v":11770,"d":"11,770.00 €"}},{"$f":"SUBTOTAL(109,PlanoDeEscritório[Mar])","v":{"v":11770,"d":"11,770.00 €"}},{"$f":"SUBTOTAL(109,PlanoDeEscritório[Abr])","v":{"v":11470,"d":"11,470.00 €"}},{"$f":"SUBTOTAL(109,PlanoDeEscritório[Mai])","v":{"v":11470,"d":"11,470.00 €"}},{"$f":"SUBTOTAL(109,PlanoDeEscritório[Jun])","v":{"v":11470,"d":"11,470.00 €"}},{"$f":"SUBTOTAL(109,PlanoDeEscritório[Jul])","v":{"v":11470,"d":"11,470.00 €"}},{"$f":"SUBTOTAL(109,PlanoDeEscritório[Ago])","v":{"v":11470,"d":"11,470.00 €"}},{"$f":"SUBTOTAL(109,PlanoDeEscritório[Set])","v":{"v":11470,"d":"11,470.00 €"}},{"$f":"SUBTOTAL(109,PlanoDeEscritório[Out])","v":{"v":11470,"d":"11,470.00 €"}},{"$f":"SUBTOTAL(109,PlanoDeEscritório[Nov])","v":{"v":11770,"d":"11,770.00 €"}},{"$f":"SUBTOTAL(109,PlanoDeEscritório[Dez])","v":{"v":11770,"d":"11,770.00 €"}},{"$f":"SUBTOTAL(109,PlanoDeEscritório[ANO])","v":{"v":138740,"d":"138,740.00 €"}}]
[]
["Introduza os Custos de Marketing na tabela Plano de Marketing a partir da célula à direita. A instrução seguinte está na célula A30.","Custos de Marketing","Jan","Fev","Mar","Abr","Mai","Jun","Jul","Ago","Set","Out","Nov","Dez","ANO"]
[null,"Alojamento do site",{"v":500,"d":"500.00 €"},{"v":500,"d":"500.00 €"},{"v":500,"d":"500.00 €"},{"v":500,"d":"500.00 €"},{"v":500,"d":"500.00 €"},{"v":500,"d":"500.00 €"},{"v":500,"d":"500.00 €"},{"v":500,"d":"500.00 €"},{"v":500,"d":"500.00 €"},{"v":500,"d":"500.00 €"},{"v":500,"d":"500.00 €"},{"v":500,"d":"500.00 €"},{"$f":"SUM(C22:N22)","v":{"v":6000,"d":"6,000.00 €"}}]
[null,"Atualizações ao site",{"v":200,"d":"200.00 €"},{"v":200,"d":"200.00 €"},{"v":200,"d":"200.00 €"},{"v":200,"d":"200.00 €"},{"v":200,"d":"200.00 €"},{"v":1000,"d":"1,000.00 €"},{"v":200,"d":"200.00 €"},{"v":200,"d":"200.00 €"},{"v":200,"d":"200.00 €"},{"v":200,"d":"200.00 €"},{"v":200,"d":"200.00 €"},{"v":1000,"d":"1,000.00 €"},{"v":4000,"d":"4,000.00 €"}]
[null,"Preparação de materiais de anúncio",{"v":5000,"d":"5,000.00 €"},{"v":0,"d":"0.00 €"},{"v":0,"d":"0.00 €"},{"v":5000,"d":"5,000.00 €"},{"v":0,"d":"0.00 €"},{"v":0,"d":"0.00 €"},{"v":5000,"d":"5,000.00 €"},{"v":0,"d":"0.00 €"},{"v":0,"d":"0.00 €"},{"v":5000,"d":"5,000.00 €"},{"v":0,"d":"0.00 €"},{"v":0,"d":"0.00 €"},{"v":20000,"d":"20,000.00 €"}]
[null,"Impressão de materiais de anúncio",{"v":200,"d":"200.00 €"},{"v":200,"d":"200.00 €"},{"v":200,"d":"200.00 €"},{"v":200,"d":"200.00 €"},{"v":200,"d":"200.00 €"},{"v":200,"d":"200.00 €"},{"v":200,"d":"200.00 €"},{"v":200,"d":"200.00 €"},{"v":200,"d":"200.00 €"},{"v":200,"d":"200.00 €"},{"v":200,"d":"200.00 €"},{"v":200,"d":"200.00 €"},{"v":2400,"d":"2,400.00 €"}]
[null,"Eventos de marketing",{"v":2000,"d":"2,000.00 €"},{"v":2000,"d":"2,000.00 €"},{"v":2000,"d":"2,000.00 €"},{"v":5000,"d":"5,000.00 €"},{"v":2000,"d":"2,000.00 €"},{"v":2000,"d":"2,000.00 €"},{"v":2000,"d":"2,000.00 €"},{"v":5000,"d":"5,000.00 €"},{"v":2000,"d":"2,000.00 €"},{"v":2000,"d":"2,000.00 €"},{"v":2000,"d":"2,000.00 €"},{"v":5000,"d":"5,000.00 €"},{"v":33000,"d":"33,000.00 €"}]
[null,"Despesas diversas",{"v":200,"d":"200.00 €"},{"v":200,"d":"200.00 €"},{"v":200,"d":"200.00 €"},{"v":200,"d":"200.00 €"},{"v":200,"d":"200.00 €"},{"v":200,"d":"200.00 €"},{"v":200,"d":"200.00 €"},{"v":200,"d":"200.00 €"},{"v":200,"d":"200.00 €"},{"v":200,"d":"200.00 €"},{"v":200,"d":"200.00 €"},{"v":200,"d":"200.00 €"},{"v":2400,"d":"2,400.00 €"}]
[null,"Subtotal",{"$f":"SUBTOTAL(109,PlanoDeMarketing[Jan])","v":{"v":8100,"d":"8,100.00 €"}},{"$f":"SUBTOTAL(109,PlanoDeMarketing[Fev])","v":{"v":3100,"d":"3,100.00 €"}},{"$f":"SUBTOTAL(109,PlanoDeMarketing[Mar])","v":{"v":3100,"d":"3,100.00 €"}},{"$f":"SUBTOTAL(109,PlanoDeMarketing[Abr])","v":{"v":11100,"d":"11,100.00 €"}},{"$f":"SUBTOTAL(109,PlanoDeMarketing[Mai])","v":{"v":3100,"d":"3,100.00 €"}},{"$f":"SUBTOTAL(109,PlanoDeMarketing[Jun])","v":{"v":3900,"d":"3,900.00 €"}},{"$f":"SUBTOTAL(109,PlanoDeMarketing[Jul])","v":{"v":8100,"d":"8,100.00 €"}},{"$f":"SUBTOTAL(109,PlanoDeMarketing[Ago])","v":{"v":6100,"d":"6,100.00 €"}},{"$f":"SUBTOTAL(109,PlanoDeMarketing[Set])","v":{"v":3100,"d":"3,100.00 €"}},{"$f":"SUBTOTAL(109,PlanoDeMarketing[Out])","v":{"v":8100,"d":"8,100.00 €"}},{"$f":"SUBTOTAL(109,PlanoDeMarketing[Nov])","v":{"v":3100,"d":"3,100.00 €"}},{"$f":"SUBTOTAL(109,PlanoDeMarketing[Dez])","v":{"v":6900,"d":"6,900.00 €"}},{"$f":"SUBTOTAL(109,PlanoDeMarketing[ANO])","v":{"v":67800,"d":"67,800.00 €"}}]
[]
["Introduza os Custos de Formação e Deslocações na tabela Plano de Formação e Viagens a partir da célula à direita. A instrução seguinte está na célula A35.","Formação/Deslocações","Jan","Fev","Mar","Abr","Mai","Jun","Jul","Ago","Set","Out","Nov","Dez","ANO"]
[null,"Aulas de formação",{"v":2000,"d":"2,000.00 €"},{"v":2000,"d":"2,000.00 €"},{"v":2000,"d":"2,000.00 €"},{"v":2000,"d":"2,000.00 €"},{"v":2000,"d":"2,000.00 €"},{"v":2000,"d":"2,000.00 €"},{"v":2000,"d":"2,000.00 €"},{"v":2000,"d":"2,000.00 €"},{"v":2000,"d":"2,000.00 €"},{"v":2000,"d":"2,000.00 €"},{"v":2000,"d":"2,000.00 €"},{"v":2000,"d":"2,000.00 €"},{"$f":"SUM(C31:N31)","v":{"v":24000,"d":"24,000.00 €"}}]
[null,"Custos em viagens associadas à formação",{"v":2000,"d":"2,000.00 €"},{"v":2000,"d":"2,000.00 €"},{"v":2000,"d":"2,000.00 €"},{"v":2000,"d":"2,000.00 €"},{"v":2000,"d":"2,000.00 €"},{"v":2000,"d":"2,000.00 €"},{"v":2000,"d":"2,000.00 €"},{"v":2000,"d":"2,000.00 €"},{"v":2000,"d":"2,000.00 €"},{"v":2000,"d":"2,000.00 €"},{"v":2000,"d":"2,000.00 €"},{"v":2000,"d":"2,000.00 €"},{"$f":"SUM(C32:N32)","v":{"v":24000,"d":"24,000.00 €"}}]
[null,"Subtotal",{"$f":"SUBTOTAL(109,PlanoDeFormaçãoEViagens[Jan])","v":{"v":4000,"d":"4,000.00 €"}},{"$f":"SUBTOTAL(109,PlanoDeFormaçãoEViagens[Fev])","v":{"v":4000,"d":"4,000.00 €"}},{"$f":"SUBTOTAL(109,PlanoDeFormaçãoEViagens[Mar])","v":{"v":4000,"d":"4,000.00 €"}},{"$f":"SUBTOTAL(109,PlanoDeFormaçãoEViagens[Abr])","v":{"v":4000,"d":"4,000.00 €"}},{"$f":"SUBTOTAL(109,PlanoDeFormaçãoEViagens[Mai])","v":{"v":4000,"d":"4,000.00 €"}},{"$f":"SUBTOTAL(109,PlanoDeFormaçãoEViagens[Jun])","v":{"v":4000,"d":"4,000.00 €"}},{"$f":"SUBTOTAL(109,PlanoDeFormaçãoEViagens[Jul])","v":{"v":4000,"d":"4,000.00 €"}},{"$f":"SUBTOTAL(109,PlanoDeFormaçãoEViagens[Ago])","v":{"v":4000,"d":"4,000.00 €"}},{"$f":"SUBTOTAL(109,PlanoDeFormaçãoEViagens[Set])","v":{"v":4000,"d":"4,000.00 €"}},{"$f":"SUBTOTAL(109,PlanoDeFormaçãoEViagens[Out])","v":{"v":4000,"d":"4,000.00 €"}},{"$f":"SUBTOTAL(109,PlanoDeFormaçãoEViagens[Nov])","v":{"v":4000,"d":"4,000.00 €"}},{"$f":"SUBTOTAL(109,PlanoDeFormaçãoEViagens[Dez])","v":{"v":4000,"d":"4,000.00 €"}},{"$f":"SUBTOTAL(109,PlanoDeFormaçãoEViagens[ANO])","v":{"v":48000,"d":"48,000.00 €"}}]
[]
["Os totais são calculados automaticamente na tabela Total Planeado a partir da célula à direita.","TOTAIS","Jan","Fev","Mar","Abr","Mai","Jun","Jul","Ago","Set","Out","Nov","Dez","Ano"]
[null,"Despesas Mensais Planeadas",{"$f":"PlanoDeFormaçãoEViagens[[#Totals],[Jan]]+PlanoDeMarketing[[#Totals],[Jan]]+PlanoDeEscritório[[#Totals],[Jan]]+PlanoDeColaboradores[[#Totals],[Jan]]","v":{"v":131420,"d":"131,420.00 €"}},{"$f":"PlanoDeFormaçãoEViagens[[#Totals],[Fev]]+PlanoDeMarketing[[#Totals],[Fev]]+PlanoDeEscritório[[#Totals],[Fev]]+PlanoDeColaboradores[[#Totals],[Fev]]","v":{"v":126820,"d":"126,820.00 €"}},{"$f":"PlanoDeFormaçãoEViagens[[#Totals],[Mar]]+PlanoDeMarketing[[#Totals],[Mar]]+PlanoDeEscritório[[#Totals],[Mar]]+PlanoDeColaboradores[[#Totals],[Mar]]","v":{"v":126820,"d":"126,820.00 €"}},{"$f":"PlanoDeFormaçãoEViagens[[#Totals],[Abr]]+PlanoDeMarketing[[#Totals],[Abr]]+PlanoDeEscritório[[#Totals],[Abr]]+PlanoDeColaboradores[[#Totals],[Abr]]","v":{"v":137695,"d":"137,695.00 €"}},{"$f":"PlanoDeFormaçãoEViagens[[#Totals],[Mai]]+PlanoDeMarketing[[#Totals],[Mai]]+PlanoDeEscritório[[#Totals],[Mai]]+PlanoDeColaboradores[[#Totals],[Mai]]","v":{"v":129695,"d":"129,695.00 €"}},{"$f":"PlanoDeFormaçãoEViagens[[#Totals],[Jun]]+PlanoDeMarketing[[#Totals],[Jun]]+PlanoDeEscritório[[#Totals],[Jun]]+PlanoDeColaboradores[[#Totals],[Jun]]","v":{"v":130495,"d":"130,495.00 €"}},{"$f":"PlanoDeFormaçãoEViagens[[#Totals],[Jul]]+PlanoDeMarketing[[#Totals],[Jul]]+PlanoDeEscritório[[#Totals],[Jul]]+PlanoDeColaboradores[[#Totals],[Jul]]","v":{"v":134695,"d":"134,695.00 €"}},{"$f":"PlanoDeFormaçãoEViagens[[#Totals],[Ago]]+PlanoDeMarketing[[#Totals],[Ago]]+PlanoDeEscritório[[#Totals],[Ago]]+PlanoDeColaboradores[[#Totals],[Ago]]","v":{"v":138918,"d":"138,918.00 €"}},{"$f":"PlanoDeFormaçãoEViagens[[#Totals],[Set]]+PlanoDeMarketing[[#Totals],[Set]]+PlanoDeEscritório[[#Totals],[Set]]+PlanoDeColaboradores[[#Totals],[Set]]","v":{"v":135918,"d":"135,918.00 €"}},{"$f":"PlanoDeFormaçãoEViagens[[#Totals],[Out]]+PlanoDeMarketing[[#Totals],[Out]]+PlanoDeEscritório[[#Totals],[Out]]+PlanoDeColaboradores[[#Totals],[Out]]","v":{"v":140918,"d":"140,918.00 €"}},{"$f":"PlanoDeFormaçãoEViagens[[#Totals],[Nov]]+PlanoDeMarketing[[#Totals],[Nov]]+PlanoDeEscritório[[#Totals],[Nov]]+PlanoDeColaboradores[[#Totals],[Nov]]","v":{"v":136218,"d":"136,218.00 €"}},{"$f":"PlanoDeFormaçãoEViagens[[#Totals],[Dez]]+PlanoDeMarketing[[#Totals],[Dez]]+PlanoDeEscritório[[#Totals],[Dez]]+PlanoDeColaboradores[[#Totals],[Dez]]","v":{"v":140018,"d":"140,018.00 €"}},{"$f":"PlanoDeFormaçãoEViagens[[#Totals],[ANO]]+PlanoDeMarketing[[#Totals],[ANO]]+PlanoDeEscritório[[#Totals],[ANO]]+PlanoDeColaboradores[[#Totals],[ANO]]","v":{"v":1609630,"d":"1,609,630.00 €"}}]
[null,"Despesas Planeadas TOTAIS",{"$f":"SUM($C$36:C36)","v":{"v":131420,"d":"131,420.00 €"}},{"$f":"SUM($C$36:D36)","v":{"v":258240,"d":"258,240.00 €"}},{"$f":"SUM($C$36:E36)","v":{"v":385060,"d":"385,060.00 €"}},{"$f":"SUM($C$36:F36)","v":{"v":522755,"d":"522,755.00 €"}},{"$f":"SUM($C$36:G36)","v":{"v":652450,"d":"652,450.00 €"}},{"$f":"SUM($C$36:H36)","v":{"v":782945,"d":"782,945.00 €"}},{"$f":"SUM($C$36:I36)","v":{"v":917640,"d":"917,640.00 €"}},{"$f":"SUM($C$36:J36)","v":{"v":1056558,"d":"1,056,558.00 €"}},{"$f":"SUM($C$36:K36)","v":{"v":1192476,"d":"1,192,476.00 €"}},{"$f":"SUM($C$36:L36)","v":{"v":1333394,"d":"1,333,394.00 €"}},{"$f":"SUM($C$36:M36)","v":{"v":1469612,"d":"1,469,612.00 €"}},{"$f":"SUM($C$36:N36)","v":{"v":1609630,"d":"1,609,630.00 €"}}]

{"sheet":"DESPESAS REAIS","index":2,"n_rows":37,"n_cols":16,"rows_kept":37,"merged":[[1,1,2,3],[1,9,1,12],[1,13,2,14],[2,9,2,12],[8,1,8,2],[19,1,19,2],[28,1,28,2],[33,1,33,2]]}
["Introduza os Custos com Colaboradores Reais, os Custos de Escritório, os Custos de Marketing e os Custos de Formação ou Deslocações nas respetivas tabelas desta folha de cálculo. Os totais são calculados automaticamente. Encontram-se instruções úteis sobre como utilizar esta folha de cálculo nas células desta coluna. Prima a Seta para Baixo para começar.",{"$nulls":14}," "]
["O Nome da Empresa é atualizado automaticamente na célula à direita. O título desta folha de cálculo está na célula K2. Introduza o Logótipo na célula N2.",{"$f":"'DESPESAS PLANEADAS'!B2:D3","v":"Nome da Empresa"},{"$nulls":7},{"$f":"titulo_folha_de_cálculo","v":"Estimativas de Despesas Detalhadas"},{"$nulls":3},"O marcador de posição de logótipo encontra-se nesta célula."]
["A sugestão está na célula K3.",{"$nulls":8},"As células sombreadas são cálculos."]
["A etiqueta de Despesas Reais encontra-se na célula à direita, os meses nas células C4 a N4 e a etiqueta de Ano na célula O4.","DESPESAS REAIS","JAN","FEV","MAR","ABR","MAI","JUN","JUL","AGO","SET","OUT","NOV","DEZ","ANO"]
["Introduza os Custos com Colaboradores na tabela Real Colaboradores a partir da célula à direita. A instrução seguinte está na célula A10.","Custos com Colaboradores","Jan","Fev","Mar","Abr","Mai","Jun","Jul","Ago","Set","Out","Nov","Dez","ANO"]
[null,"Salários",{"v":85000,"d":"85,000.00 €"},{"v":85000,"d":"85,000.00 €"},{"v":85000,"d":"85,000.00 €"},{"v":88000,"d":"88,000.00 €"},{"v":88000,"d":"88,000.00 €"},{"v":88000,"d":"88,000.00 €"},{"$nulls":6},{"$f":"SUM(C6:N6)","v":{"v":519000,"d":"519,000.00 €"}}]
[null,"Benefícios",{"$f":"C6*0.27","v":{"v":22950,"d":"22,950.00 €"}},{"v":22950,"d":"22,950.00 €"},{"v":22950,"d":"22,950.00 €"},{"v":23760,"d":"23,760.00 €"},{"v":23760,"d":"23,760.00 €"},{"v":23760,"d":"23,760.00 €"},{"v":0,"d":"0.00 €"},{"v":0,"d":"0.00 €"},{"v":0,"d":"0.00 €"},{"v":0,"d":"0.00 €"},{"v":0,"d":"0.00 €"},{"v":0,"d":"0.00 €"},{"$f":"SUM(C7:N7)","v":{"v":140130,"d":"140,130.00 €"}}]
[null,"Subtotal",{"$f":"SUBTOTAL(109,RealColaboradores[Jan])","v":{"v":107950,"d":"107,950.00 €"}},{"$f":"SUBTOTAL(109,RealColaboradores[Fev])","v":{"v":107950,"d":"107,950.00 €"}},{"$f":"SUBTOTAL(109,RealColaboradores[Mar])","v":{"v":107950,"d":"107,950.00 €"}},{"$f":"SUBTOTAL(109,RealColaboradores[Abr])","v":{"v":111760,"d":"111,760.00 €"}},{"$f":"SUBTOTAL(109,RealColaboradores[Mai])","v":{"v":111760,"d":"111,760.00 €"}},{"$f":"SUBTOTAL(109,RealColaboradores[Jun])","v":{"v":111760,"d":"111,760.00 €"}},{"$f":"SUBTOTAL(109,RealColaboradores[Jul])","v":{"v":0,"d":"0.00 €"}},{"$f":"SUBTOTAL(109,RealColaboradores[Ago])","v":{"v":0,"d":"0.00 €"}},{"$f":"SUBTOTAL(109,RealColaboradores[Set])","v":{"v":0,"d":"0.00 €"}},{"$f":"SUBTOTAL(109,RealColaboradores[Out])","v":{"v":0,"d":"0.00 €"}},{"$f":"SUBTOTAL(109,RealColaboradores[Nov])","v":{"v":0,"d":"0.00 €"}},{"$f":"SUBTOTAL(109,RealColaboradores[Dez])","v":{"v":0,"d":"0.00 €"}},{"$f":"SUBTOTAL(109,RealColaboradores[ANO])","v":{"v":659130,"d":"659,130.00 €"}}]
[]
["Introduza os Custos de Escritório na tabela Real Escritório a partir da célula à direita. A instrução seguinte está na célula A21.","Custos de Escritório","Jan","Fev","Mar","Abr","Mai","Jun","Jul","Ago","Set","Out","Nov","Dez","ANO"]
[null,"Arrendamento de escritório",{"v":9800,"d":"9,800.00 €"},{"v":9800,"d":"9,800.00 €"},{"v":9800,"d":"9,800.00 €"},{"v":9800,"d":"9,800.00 €"},{"v":9800,"d":"9,800.00 €"},{"v":9800,"d":"9,800.00 €"},{"$nulls":6},{"$f":"SUM(C11:N11)","v":{"v":58800,"d":"58,800.00 €"}}]
[null,"Gás",{"v":4,"d":"4.00 €"},{"v":430,"d":"430.00 €"},{"v":385,"d":"385.00 €"},{"v":230,"d":"230.00 €"},{"v":87,"d":"87.00 €"},{"v":88,"d":"88.00 €"},{"$nulls":6},{"v":1224,"d":"1,224.00 €"}]
[null,"Eletricidade",{"v":288,"d":"288.00 €"},{"v":278,"d":"278.00 €"},{"v":268,"d":"268.00 €"},{"v":299,"d":"299.00 €"},{"v":306,"d":"306.00 €"},{"v":290,"d":"290.00 €"},{"$nulls":6},{"v":1729,"d":"1,729.00 €"}]
[null,"Água",{"v":35,"d":"35.00 €"},{"v":33,"d":"33.00 €"},{"v":34,"d":"34.00 €"},{"v":36,"d":"36.00 €"},{"v":34,"d":"34.00 €"},{"v":36,"d":"36.00 €"},{"$nulls":6},{"v":208,"d":"208.00 €"}]
[null,"Telefone",{"v":224,"d":"224.00 €"},{"v":235,"d":"235.00 €"},{"v":265,"d":"265.00 €"},{"v":245,"d":"245.00 €"},{"v":245,"d":"245.00 €"},{"v":220,"d":"220.00 €"},{"$nulls":6},{"v":1434,"d":"1,434.00 €"}]
[null,"Internet",{"v":180,"d":"180.00 €"},{"v":180,"d":"180.00 €"},{"v":180,"d":"180.00 €"},{"v":180,"d":"180.00 €"},{"v":180,"d":"180.00 €"},{"v":180,"d":"180.00 €"},{"$nulls":6},{"v":1080,"d":"1,080.00 €"}]
[null,"Material de escritório",{"v":256,"d":"256.00 €"},{"v":142,"d":"142.00 €"},{"v":160,"d":"160.00 €"},{"v":221,"d":"221.00 €"},{"v":256,"d":"256.00 €"},{"v":240,"d":"240.00 €"},{"$nulls":6},{"v":1275,"d":"1,275.00 €"}]
[null,"Segurança",{"v":600,"d":"600.00 €"},{"v":600,"d":"600.00 €"},{"v":600,"d":"600.00 €"},{"v":600,"d":"600.00 €"},{"v":600,"d":"600.00 €"},{"v":600,"d":"600.00 €"},{"$nulls":6},{"v":3600,"d":"3,600.00 €"}]
[null,"Subtotal",{"$f":"SUBTOTAL(109,RealEscritório[Jan])","v":{"v":11387,"d":"11,387.00 €"}},{"$f":"SUBTOTAL(109,RealEscritório[Fev])","v":{"v":11698,"d":"11,698.00 €"}},{"$f":"SUBTOTAL(109,RealEscritório[Mar])","v":{"v":11692,"d":"11,692.00 €"}},{"$f":"SUBTOTAL(109,RealEscritório[Abr])","v":{"v":11611,"d":"11,611.00 €"}},{"$f":"SUBTOTAL(109,RealEscritório[Mai])","v":{"v":11508,"d":"11,508.00 €"}},{"$f":"SUBTOTAL(109,RealEscritório[Jun])","v":{"v":11454,"d":"11,454.00 €"}},{"$f":"SUBTOTAL(109,RealEscritório[Jul])","v":{"v":0,"d":"0.00 €"}},{"$f":"SUBTOTAL(109,RealEscritório[Ago])","v":{"v":0,"d":"0.00 €"}},{"$f":"SUBTOTAL(109,RealEscritório[Set])","v":{"v":0,"d":"0.00 €"}},{"$f":"SUBTOTAL(109,RealEscritório[Out])","v":{"v":0,"d":"0.00 €"}},{"$f":"SUBTOTAL(109,RealEscritório[Nov])","v":{"v":0,"d":"0.00 €"}},{"$f":"SUBTOTAL(109,RealEscritório[Dez])","v":{"v":0,"d":"0.00 €"}},{"$f":"SUBTOTAL(109,RealEscritório[ANO])","v":{"v":69350,"d":"69,350.00 €"}}]
[]
["Introduza os Custos de Marketing na tabela Real Marketing a partir da célula à direita. A instrução seguinte está na célula A30.","Custos de Marketing","Jan","Fev","Mar","Abr","Mai","Jun","Jul","Ago","Set","Out","Nov","Dez","ANO"]
[null,"Alojamento do site",{"v":500,"d":"500.00 €"},{"v":500,"d":"500.00 €"},{"v":500,"d":"500.00 €"},{"v":500,"d":"500.00 €"},{"v":500,"d":"500.00 €"},{"v":500,"d":"500.00 €"},{"$nulls":6},{"$f":"SUM(C22:N22)","v":{"v":3000,"d":"3,000.00 €"}}]
[null,"Atualizações ao site",{"v":200,"d":"200.00 €"},{"v":200,"d":"200.00 €"},{"v":200,"d":"200.00 €"},{"v":200,"d":"200.00 €"},{"v":200,"d":"200.00 €"},{"v":1500,"d":"1,500.00 €"},{"$nulls":6},{"v":2500,"d":"2,500.00 €"}]
[null,"Preparação de materiais de anúncio",{"v":4800,"d":"4,800.00 €"},{"v":0,"d":"0.00 €"},{"v":0,"d":"0.00 €"},{"v":5500,"d":"5,500.00 €"},{"v":0,"d":"0.00 €"},{"v":0,"d":"0.00 €"},{"$nulls":6},{"v":10300,"d":"10,300.00 €"}]
[null,"Impressão de materiais de anúncio",{"v":100,"d":"100.00 €"},{"v":500,"d":"500.00 €"},{"v":100,"d":"100.00 €"},{"v":100,"d":"100.00 €"},{"v":600,"d":"600.00 €"},{"v":180,"d":"180.00 €"},{"$nulls":6},{"v":1580,"d":"1,580.00 €"}]
[null,"Eventos de marketing",{"v":1800,"d":"1,800.00 €"},{"v":2200,"d":"2,200.00 €"},{"v":2200,"d":"2,200.00 €"},{"v":4700,"d":"4,700.00 €"},{"v":1500,"d":"1,500.00 €"},{"v":2300,"d":"2,300.00 €"},{"$nulls":6},{"v":14700,"d":"14,700.00 €"}]
[null,"Despesas diversas",{"v":145,"d":"145.00 €"},{"v":156,"d":"156.00 €"},{"v":123,"d":"123.00 €"},{"v":223,"d":"223.00 €"},{"v":187,"d":"187.00 €"},{"v":245,"d":"245.00 €"},{"$nulls":6},{"v":1079,"d":"1,079.00 €"}]
[null,"Subtotal",{"$f":"SUBTOTAL(109,RealMarketing[Jan])","v":{"v":7545,"d":"7,545.00 €"}},{"$f":"SUBTOTAL(109,RealMarketing[Fev])","v":{"v":3556,"d":"3,556.00 €"}},{"$f":"SUBTOTAL(109,RealMarketing[Mar])","v":{"v":3123,"d":"3,123.00 €"}},{"$f":"SUBTOTAL(109,RealMarketing[Abr])","v":{"v":11223,"d":"11,223.00 €"}},{"$f":"SUBTOTAL(109,RealMarketing[Mai])","v":{"v":2987,"d":"2,987.00 €"}},{"$f":"SUBTOTAL(109,RealMarketing[Jun])","v":{"v":4725,"d":"4,725.00 €"}},{"$f":"SUBTOTAL(109,RealMarketing[Jul])","v":{"v":0,"d":"0.00 €"}},{"$f":"SUBTOTAL(109,RealMarketing[Ago])","v":{"v":0,"d":"0.00 €"}},{"$f":"SUBTOTAL(109,RealMarketing[Set])","v":{"v":0,"d":"0.00 €"}},{"$f":"SUBTOTAL(109,RealMarketing[Out])","v":{"v":0,"d":"0.00 €"}},{"$f":"SUBTOTAL(109,RealMarketing[Nov])","v":{"v":0,"d":"0.00 €"}},{"$f":"SUBTOTAL(109,RealMarketing[Dez])","v":{"v":0,"d":"0.00 €"}},{"$f":"SUBTOTAL(109,RealMarketing[ANO])","v":{"v":33159,"d":"33,159.00 €"}}]
[]
["Introduza os Custos de Formação ou Deslocações na tabela Real Formação e Viagens a partir da célula à direita. A instrução seguinte está na célula A35.","Formação/Deslocações","Jan","Fev","Mar","Abr","Mai","Jun","Jul","Ago","Set","Out","Nov","Dez","ANO"]
[null,"Aulas de formação",{"v":1600,"d":"1,600.00 €"},{"v":2400,"d":"2,400.00 €"},{"v":1400,"d":"1,400.00 €"},{"v":1600,"d":"1,600.00 €"},{"v":1200,"d":"1,200.00 €"},{"v":2800,"d":"2,800.00 €"},{"$nulls":6},{"$f":"SUM(C31:N31)","v":{"v":11000,"d":"11,000.00 €"}}]
[null,"Custos em viagens associadas à formação",{"v":1200,"d":"1,200.00 €"},{"v":2200,"d":"2,200.00 €"},{"v":1400,"d":"1,400.00 €"},{"v":1200,"d":"1,200.00 €"},{"v":800,"d":"800.00 €"},{"v":3500,"d":"3,500.00 €"},{"$nulls":6},{"$f":"SUM(C32:N32)","v":{"v":10300,"d":"10,300.00 €"}}]
[null,"Subtotal",{"$f":"SUBTOTAL(109,RealFormaçãoEViagens[Jan])","v":{"v":2800,"d":"2,800.00 €"}},{"$f":"SUBTOTAL(109,RealFormaçãoEViagens[Fev])","v":{"v":4600,"d":"4,600.00 €"}},{"$f":"SUBTOTAL(109,RealFormaçãoEViagens[Mar])","v":{"v":2800,"d":"2,800.00 €"}},{"$f":"SUBTOTAL(109,RealFormaçãoEViagens[Abr])","v":{"v":2800,"d":"2,800.00 €"}},{"$f":"SUBTOTAL(109,RealFormaçãoEViagens[Mai])","v":{"v":2000,"d":"2,000.00 €"}},{"$f":"SUBTOTAL(109,RealFormaçãoEViagens[Jun])","v":{"v":6300,"d":"6,300.00 €"}},{"$f":"SUBTOTAL(109,RealFormaçãoEViagens[Jul])","v":{"v":0,"d":"0.00 €"}},{"$f":"SUBTOTAL(109,RealFormaçãoEViagens[Ago])","v":{"v":0,"d":"0.00 €"}},{"$f":"SUBTOTAL(109,RealFormaçãoEViagens[Set])","v":{"v":0,"d":"0.00 €"}},{"$f":"SUBTOTAL(109,RealFormaçãoEViagens[Out])","v":{"v":0,"d":"0.00 €"}},{"$f":"SUBTOTAL(109,RealFormaçãoEViagens[Nov])","v":{"v":0,"d":"0.00 €"}},{"$f":"SUBTOTAL(109,RealFormaçãoEViagens[Dez])","v":{"v":0,"d":"0.00 €"}},{"$f":"SUBTOTAL(109,RealFormaçãoEViagens[ANO])","v":{"v":21300,"d":"21,300.00 €"}}]
[]
["As Despesas Reais Totais são calculadas automaticamente na tabela Total Real a partir da célula à direita.","Despesas Planeadas TOTAIS","Jan","Fev","Mar","Abr","Mai","Jun","Jul","Ago","Set","Out","Nov","Dez","Ano"]
[null,"Despesas Mensais Reais",{"$f":"RealFormaçãoEViagens[[#Totals],[Jan]]+RealMarketing[[#Totals],[Jan]]+RealEscritório[[#Totals],[Jan]]+RealColaboradores[[#Totals],[Jan]]","v":{"v":129682,"d":"129,682.00 €"}},{"$f":"RealFormaçãoEViagens[[#Totals],[Fev]]+RealMarketing[[#Totals],[Fev]]+RealEscritório[[#Totals],[Fev]]+RealColaboradores[[#Totals],[Fev]]","v":{"v":127804,"d":"127,804.00 €"}},{"$f":"RealFormaçãoEViagens[[#Totals],[Mar]]+RealMarketing[[#Totals],[Mar]]+RealEscritório[[#Totals],[Mar]]+RealColaboradores[[#Totals],[Mar]]","v":{"v":125565,"d":"125,565.00 €"}},{"$f":"RealFormaçãoEViagens[[#Totals],[Abr]]+RealMarketing[[#Totals],[Abr]]+RealEscritório[[#Totals],[Abr]]+RealColaboradores[[#Totals],[Abr]]","v":{"v":137394,"d":"137,394.00 €"}},{"$f":"RealFormaçãoEViagens[[#Totals],[Mai]]+RealMarketing[[#Totals],[Mai]]+RealEscritório[[#Totals],[Mai]]+RealColaboradores[[#Totals],[Mai]]","v":{"v":128255,"d":"128,255.00 €"}},{"$f":"RealFormaçãoEViagens[[#Totals],[Jun]]+RealMarketing[[#Totals],[Jun]]+RealEscritório[[#Totals],[Jun]]+RealColaboradores[[#Totals],[Jun]]","v":{"v":134239,"d":"134,239.00 €"}},{"$f":"RealFormaçãoEViagens[[#Totals],[Jul]]+RealMarketing[[#Totals],[Jul]]+RealEscritório[[#Totals],[Jul]]+RealColaboradores[[#Totals],[Jul]]","v":{"v":0,"d":"0.00 €"}},{"$f":"RealFormaçãoEViagens[[#Totals],[Ago]]+RealMarketing[[#Totals],[Ago]]+RealEscritório[[#Totals],[Ago]]+RealColaboradores[[#Totals],[Ago]]","v":{"v":0,"d":"0.00 €"}},{"$f":"RealFormaçãoEViagens[[#Totals],[Set]]+RealMarketing[[#Totals],[Set]]+RealEscritório[[#Totals],[Set]]+RealColaboradores[[#Totals],[Set]]","v":{"v":0,"d":"0.00 €"}},{"$f":"RealFormaçãoEViagens[[#Totals],[Out]]+RealMarketing[[#Totals],[Out]]+RealEscritório[[#Totals],[Out]]+RealColaboradores[[#Totals],[Out]]","v":{"v":0,"d":"0.00 €"}},{"$f":"RealFormaçãoEViagens[[#Totals],[Nov]]+RealMarketing[[#Totals],[Nov]]+RealEscritório[[#Totals],[Nov]]+RealColaboradores[[#Totals],[Nov]]","v":{"v":0,"d":"0.00 €"}},{"$f":"RealFormaçãoEViagens[[#Totals],[Dez]]+RealMarketing[[#Totals],[Dez]]+RealEscritório[[#Totals],[Dez]]+RealColaboradores[[#Totals],[Dez]]","v":{"v":0,"d":"0.00 €"}},{"$f":"RealFormaçãoEViagens[[#Totals],[ANO]]+RealMarketing[[#Totals],[ANO]]+RealEscritório[[#Totals],[ANO]]+RealColaboradores[[#Totals],[ANO]]","v":{"v":782939,"d":"782,939.00 €"}}]
[null,"Despesas Reais TOTAIS",{"$f":"SUM($C$36:C36)","v":{"v":129682,"d":"129,682.00 €"}},{"$f":"SUM($C$36:D36)","v":{"v":257486,"d":"257,486.00 €"}},{"$f":"SUM($C$36:E36)","v":{"v":383051,"d":"383,051.00 €"}},{"$f":"SUM($C$36:F36)","v":{"v":520445,"d":"520,445.00 €"}},{"$f":"SUM($C$36:G36)","v":{"v":648700,"d":"648,700.00 €"}},{"$f":"SUM($C$36:H36)","v":{"v":782939,"d":"782,939.00 €"}},{"$f":"SUM($C$36:I36)","v":{"v":782939,"d":"782,939.00 €"}},{"$f":"SUM($C$36:J36)","v":{"v":782939,"d":"782,939.00 €"}},{"$f":"SUM($C$36:K36)","v":{"v":782939,"d":"782,939.00 €"}},{"$f":"SUM($C$36:L36)","v":{"v":782939,"d":"782,939.00 €"}},{"$f":"SUM($C$36:M36)","v":{"v":782939,"d":"782,939.00 €"}},{"$f":"SUM($C$36:N36)","v":{"v":782939,"d":"782,939.00 €"}}]

{"sheet":"VARIAÇÕES DE DESPESAS","index":3,"n_rows":37,"n_cols":16,"rows_kept":37,"merged":[[1,1,2,3],[1,9,1,12],[1,13,2,14],[2,9,2,12],[8,1,8,2],[19,1,19,2],[28,1,28,2],[33,1,33,2]]}
["As Variações de Despesas são calculadas automaticamente nesta folha de cálculo para Custos com Colaboradores, Custos de Escritório, Custos de Marketing e Custos de Formação ou Deslocações nas respetivas tabelas desta folha de cálculo. Encontram-se instruções úteis sobre como utilizar esta folha de cálculo nas células desta coluna. Prima a Seta para Baixo para começar.",{"$nulls":14}," "]
["O Nome da Empresa é atualizado automaticamente na célula à direita. O título desta folha de cálculo está na célula K2. Introduza o Logótipo na célula N2.",{"$f":"'DESPESAS PLANEADAS'!B2:D3","v":"Nome da Empresa"},{"$nulls":7},{"$f":"titulo_folha_de_cálculo","v":"Estimativas de Despesas Detalhadas"},{"$nulls":3},"O marcador de posição de logótipo encontra-se nesta célula."]
["A sugestão está na célula K3.",{"$nulls":8},"As células sombreadas são cálculos."]
["A etiqueta de Variações de Despesas encontra-se na célula à direita, os meses nas células C4 a N4 e a etiqueta de Ano na célula O4.","VARIAÇÕES DE DESPESAS","JAN","FEV","MAR","ABR","MAI","JUN","JUL","AGO","SET","OUT","NOV","DEZ","ANO"]
["A Variação nos Custos com Colaboradores é calculada automaticamente na tabela Variações de Colaboradores a partir da célula à direita. A instrução seguinte está na célula A10.","Custos com Colaboradores","Jan","Fev","Mar","Abr","Mai","Jun","Jul","Ago","Set","Out","Nov","Dez","ANO"]
[null,"Salários",{"$f":"INDEX(PlanoDeColaboradores[],MATCH(INDEX(VariaçõesDeColaboradores[],ROW()-ROW(VariaçõesDeColaboradores[[#Headers],[Jan]]),1),INDEX(PlanoDeColaboradores[],,1),0),MATCH(VariaçõesDeColaboradores[[#Headers],[Jan]],PlanoDeColaboradores[#Headers],0))-INDEX(RealColaboradores[],MATCH(INDEX(VariaçõesDeColaboradores[],ROW()-ROW(VariaçõesDeColaboradores[[#Headers],[Jan]]),1),INDEX(PlanoDeColaboradores[],,1),0),MATCH(VariaçõesDeColaboradores[[#Headers],[Jan]],RealColaboradores[#Headers],0))","v":{"v":0,"d":"0.00 €"}},{"$f":"INDEX(PlanoDeColaboradores[],MATCH(INDEX(VariaçõesDeColaboradores[],ROW()-ROW(VariaçõesDeColaboradores[[#Headers],[Fev]]),1),INDEX(PlanoDeColaboradores[],,1),0),MATCH(VariaçõesDeColaboradores[[#Headers],[Fev]],PlanoDeColaboradores[#Headers],0))-INDEX(RealColaboradores[],MATCH(INDEX(VariaçõesDeColaboradores[],ROW()-ROW(VariaçõesDeColaboradores[[#Headers],[Fev]]),1),INDEX(PlanoDeColaboradores[],,1),0),MATCH(VariaçõesDeColaboradores[[#Headers],[Fev]],RealColaboradores[#Headers],0))","v":{"v":0,"d":"0.00 €"}},{"$f":"INDEX(PlanoDeColaboradores[],MATCH(INDEX(VariaçõesDeColaboradores[],ROW()-ROW(VariaçõesDeColaboradores[[#Headers],[Mar]]),1),INDEX(PlanoDeColaboradores[],,1),0),MATCH(VariaçõesDeColaboradores[[#Headers],[Mar]],PlanoDeColaboradores[#Headers],0))-INDEX(RealColaboradores[],MATCH(INDEX(VariaçõesDeColaboradores[],ROW()-ROW(VariaçõesDeColaboradores[[#Headers],[Mar]]),1),INDEX(PlanoDeColaboradores[],,1),0),MATCH(VariaçõesDeColaboradores[[#Headers],[Mar]],RealColaboradores[#Headers],0))","v":{"v":0,"d":"0.00 €"}},{"$f":"INDEX(PlanoDeColaboradores[],MATCH(INDEX(VariaçõesDeColaboradores[],ROW()-ROW(VariaçõesDeColaboradores[[#Headers],[Abr]]),1),INDEX(PlanoDeColaboradores[],,1),0),MATCH(VariaçõesDeColaboradores[[#Headers],[Abr]],PlanoDeColaboradores[#Headers],0))-INDEX(RealColaboradores[],MATCH(INDEX(VariaçõesDeColaboradores[],ROW()-ROW(VariaçõesDeColaboradores[[#Headers],[Abr]]),1),INDEX(PlanoDeColaboradores[],,1),0),MATCH(VariaçõesDeColaboradores[[#Headers],[Abr]],RealColaboradores[#Headers],0))","v":{"v":-500,"d":"-500.00 €"}},{"$f":"INDEX(PlanoDeColaboradores[],MATCH(INDEX(VariaçõesDeColaboradores[],ROW()-ROW(VariaçõesDeColaboradores[[#Headers],[Mai]]),1),INDEX(PlanoDeColaboradores[],,1),0),MATCH(VariaçõesDeColaboradores[[#Headers],[Mai]],PlanoDeColaboradores[#Headers],0))-INDEX(RealColaboradores[],MATCH(INDEX(VariaçõesDeColaboradores[],ROW()-ROW(VariaçõesDeColaboradores[[#Headers],[Mai]]),1),INDEX(PlanoDeColaboradores[],,1),0),MATCH(VariaçõesDeColaboradores[[#Headers],[Mai]],RealColaboradores[#Headers],0))","v":{"v":-500,"d":"-500.00 €"}},{"$f":"INDEX(PlanoDeColaboradores[],MATCH(INDEX(VariaçõesDeColaboradores[],ROW()-ROW(VariaçõesDeColaboradores[[#Headers],[Jun]]),1),INDEX(PlanoDeColaboradores[],,1),0),MATCH(VariaçõesDeColaboradores[[#Headers],[Jun]],PlanoDeColaboradores[#Headers],0))-INDEX(RealColaboradores[],MATCH(INDEX(VariaçõesDeColaboradores[],ROW()-ROW(VariaçõesDeColaboradores[[#Headers],[Jun]]),1),INDEX(PlanoDeColaboradores[],,1),0),MATCH(VariaçõesDeColaboradores[[#Headers],[Jun]],RealColaboradores[#Headers],0))","v":{"v":-500,"d":"-500.00 €"}},{"$f":"INDEX(PlanoDeColaboradores[],MATCH(INDEX(VariaçõesDeColaboradores[],ROW()-ROW(VariaçõesDeColaboradores[[#Headers],[Jul]]),1),INDEX(PlanoDeColaboradores[],,1),0),MATCH(VariaçõesDeColaboradores[[#Headers],[Jul]],PlanoDeColaboradores[#Headers],0))-INDEX(RealColaboradores[],MATCH(INDEX(VariaçõesDeColaboradores[],ROW()-ROW(VariaçõesDeColaboradores[[#Headers],[Jul]]),1),INDEX(PlanoDeColaboradores[],,1),0),MATCH(VariaçõesDeColaboradores[[#Headers],[Jul]],RealColaboradores[#Headers],0))","v":{"v":87500,"d":"87,500.00 €"}},{"$f":"INDEX(PlanoDeColaboradores[],MATCH(INDEX(VariaçõesDeColaboradores[],ROW()-ROW(VariaçõesDeColaboradores[[#Headers],[Ago]]),1),INDEX(PlanoDeColaboradores[],,1),0),MATCH(VariaçõesDeColaboradores[[#Headers],[Ago]],PlanoDeColaboradores[#Headers],0))-INDEX(RealColaboradores[],MATCH(INDEX(VariaçõesDeColaboradores[],ROW()-ROW(VariaçõesDeColaboradores[[#Headers],[Ago]]),1),INDEX(PlanoDeColaboradores[],,1),0),MATCH(VariaçõesDeColaboradores[[#Headers],[Ago]],RealColaboradores[#Headers],0))","v":{"v":92400,"d":"92,400.00 €"}},{"$f":"INDEX(PlanoDeColaboradores[],MATCH(INDEX(VariaçõesDeColaboradores[],ROW()-ROW(VariaçõesDeColaboradores[[#Headers],[Set]]),1),INDEX(PlanoDeColaboradores[],,1),0),MATCH(VariaçõesDeColaboradores[[#Headers],[Set]],PlanoDeColaboradores[#Headers],0))-INDEX(RealColaboradores[],MATCH(INDEX(VariaçõesDeColaboradores[],ROW()-ROW(VariaçõesDeColaboradores[[#Headers],[Set]]),1),INDEX(PlanoDeColaboradores[],,1),0),MATCH(VariaçõesDeColaboradores[[#Headers],[Set]],RealColaboradores[#Headers],0))","v":{"v":92400,"d":"92,400.00 €"}},{"$f":"INDEX(PlanoDeColaboradores[],MATCH(INDEX(VariaçõesDeColaboradores[],ROW()-ROW(VariaçõesDeColaboradores[[#Headers],[Out]]),1),INDEX(PlanoDeColaboradores[],,1),0),MATCH(VariaçõesDeColaboradores[[#Headers],[Out]],PlanoDeColaboradores[#Headers],0))-INDEX(RealColaboradores[],MATCH(INDEX(VariaçõesDeColaboradores[],ROW()-ROW(VariaçõesDeColaboradores[[#Headers],[Out]]),1),INDEX(PlanoDeColaboradores[],,1),0),MATCH(VariaçõesDeColaboradores[[#Headers],[Out]],RealColaboradores[#Headers],0))","v":{"v":92400,"d":"92,400.00 €"}},{"$f":"INDEX(PlanoDeColaboradores[],MATCH(INDEX(VariaçõesDeColaboradores[],ROW()-ROW(VariaçõesDeColaboradores[[#Headers],[Nov]]),1),INDEX(PlanoDeColaboradores[],,1),0),MATCH(VariaçõesDeColaboradores[[#Headers],[Nov]],PlanoDeColaboradores[#Headers],0))-INDEX(RealColaboradores[],MATCH(INDEX(VariaçõesDeColaboradores[],ROW()-ROW(VariaçõesDeColaboradores[[#Headers],[Nov]]),1),INDEX(PlanoDeColaboradores[],,1),0),MATCH(VariaçõesDeColaboradores[[#Headers],[Nov]],RealColaboradores[#Headers],0))","v":{"v":92400,"d":"92,400.00 €"}},{"$f":"INDEX(PlanoDeColaboradores[],MATCH(INDEX(VariaçõesDeColaboradores[],ROW()-ROW(VariaçõesDeColaboradores[[#Headers],[Dez]]),1),INDEX(PlanoDeColaboradores[],,1),0),MATCH(VariaçõesDeColaboradores[[#Headers],[Dez]],PlanoDeColaboradores[#Headers],0))-INDEX(RealColaboradores[],MATCH(INDEX(VariaçõesDeColaboradores[],ROW()-ROW(VariaçõesDeColaboradores[[#Headers],[Dez]]),1),INDEX(PlanoDeColaboradores[],,1),0),MATCH(VariaçõesDeColaboradores[[#Headers],[Dez]],RealColaboradores[#Headers],0))","v":{"v":92400,"d":"92,400.00 €"}},{"$f":"SUM(VariaçõesDeColaboradores[[#This Row],[Jan]:[Dez]])","v":{"v":548000,"d":"548,000.00 €"}}]
[null,"Benefícios",{"$f":"INDEX(PlanoDeColaboradores[],MATCH(INDEX(VariaçõesDeColaboradores[],ROW()-ROW(VariaçõesDeColaboradores[[#Headers],[Jan]]),1),INDEX(PlanoDeColaboradores[],,1),0),MATCH(VariaçõesDeColaboradores[[#Headers],[Jan]],PlanoDeColaboradores[#Headers],0))-INDEX(RealColaboradores[],MATCH(INDEX(VariaçõesDeColaboradores[],ROW()-ROW(VariaçõesDeColaboradores[[#Headers],[Jan]]),1),INDEX(PlanoDeColaboradores[],,1),0),MATCH(VariaçõesDeColaboradores[[#Headers],[Jan]],RealColaboradores[#Headers],0))","v":{"v":0,"d":"0.00 €"}},{"$f":"INDEX(PlanoDeColaboradores[],MATCH(INDEX(VariaçõesDeColaboradores[],ROW()-ROW(VariaçõesDeColaboradores[[#Headers],[Fev]]),1),INDEX(PlanoDeColaboradores[],,1),0),MATCH(VariaçõesDeColaboradores[[#Headers],[Fev]],PlanoDeColaboradores[#Headers],0))-INDEX(RealColaboradores[],MATCH(INDEX(VariaçõesDeColaboradores[],ROW()-ROW(VariaçõesDeColaboradores[[#Headers],[Fev]]),1),INDEX(PlanoDeColaboradores[],,1),0),MATCH(VariaçõesDeColaboradores[[#Headers],[Fev]],RealColaboradores[#Headers],0))","v":{"v":0,"d":"0.00 €"}},{"$f":"INDEX(PlanoDeColaboradores[],MATCH(INDEX(VariaçõesDeColaboradores[],ROW()-ROW(VariaçõesDeColaboradores[[#Headers],[Mar]]),1),INDEX(PlanoDeColaboradores[],,1),0),MATCH(VariaçõesDeColaboradores[[#Headers],[Mar]],PlanoDeColaboradores[#Headers],0))-INDEX(RealColaboradores[],MATCH(INDEX(VariaçõesDeColaboradores[],ROW()-ROW(VariaçõesDeColaboradores[[#Headers],[Mar]]),1),INDEX(PlanoDeColaboradores[],,1),0),MATCH(VariaçõesDeColaboradores[[#Headers],[Mar]],RealColaboradores[#Headers],0))","v":{"v":0,"d":"0.00 €"}},{"$f":"INDEX(PlanoDeColaboradores[],MATCH(INDEX(VariaçõesDeColaboradores[],ROW()-ROW(VariaçõesDeColaboradores[[#Headers],[Abr]]),1),INDEX(PlanoDeColaboradores[],,1),0),MATCH(VariaçõesDeColaboradores[[#Headers],[Abr]],PlanoDeColaboradores[#Headers],0))-INDEX(RealColaboradores[],MATCH(INDEX(VariaçõesDeColaboradores[],ROW()-ROW(VariaçõesDeColaboradores[[#Headers],[Abr]]),1),INDEX(PlanoDeColaboradores[],,1),0),MATCH(VariaçõesDeColaboradores[[#Headers],[Abr]],RealColaboradores[#Headers],0))","v":{"v":-135,"d":"-135.00 €"}},{"$f":"INDEX(PlanoDeColaboradores[],MATCH(INDEX(VariaçõesDeColaboradores[],ROW()-ROW(VariaçõesDeColaboradores[[#Headers],[Mai]]),1),INDEX(PlanoDeColaboradores[],,1),0),MATCH(VariaçõesDeColaboradores[[#Headers],[Mai]],PlanoDeColaboradores[#Headers],0))-INDEX(RealColaboradores[],MATCH(INDEX(VariaçõesDeColaboradores[],ROW()-ROW(VariaçõesDeColaboradores[[#Headers],[Mai]]),1),INDEX(PlanoDeColaboradores[],,1),0),MATCH(VariaçõesDeColaboradores[[#Headers],[Mai]],RealColaboradores[#Headers],0))","v":{"v":-135,"d":"-135.00 €"}},{"$f":"INDEX(PlanoDeColaboradores[],MATCH(INDEX(VariaçõesDeColaboradores[],ROW()-ROW(VariaçõesDeColaboradores[[#Headers],[Jun]]),1),INDEX(PlanoDeColaboradores[],,1),0),MATCH(VariaçõesDeColaboradores[[#Headers],[Jun]],PlanoDeColaboradores[#Headers],0))-INDEX(RealColaboradores[],MATCH(INDEX(VariaçõesDeColaboradores[],ROW()-ROW(VariaçõesDeColaboradores[[#Headers],[Jun]]),1),INDEX(PlanoDeColaboradores[],,1),0),MATCH(VariaçõesDeColaboradores[[#Headers],[Jun]],RealColaboradores[#Headers],0))","v":{"v":-135,"d":"-135.00 €"}},{"$f":"INDEX(PlanoDeColaboradores[],MATCH(INDEX(VariaçõesDeColaboradores[],ROW()-ROW(VariaçõesDeColaboradores[[#Headers],[Jul]]),1),INDEX(PlanoDeColaboradores[],,1),0),MATCH(VariaçõesDeColaboradores[[#Headers],[Jul]],PlanoDeColaboradores[#Headers],0))-INDEX(RealColaboradores[],MATCH(INDEX(VariaçõesDeColaboradores[],ROW()-ROW(VariaçõesDeColaboradores[[#Headers],[Jul]]),1),INDEX(PlanoDeColaboradores[],,1),0),MATCH(VariaçõesDeColaboradores[[#Headers],[Jul]],RealColaboradores[#Headers],0))","v":{"v":23625,"d":"23,625.00 €"}},{"$f":"INDEX(PlanoDeColaboradores[],MATCH(INDEX(VariaçõesDeColaboradores[],ROW()-ROW(VariaçõesDeColaboradores[[#Headers],[Ago]]),1),INDEX(PlanoDeColaboradores[],,1),0),MATCH(VariaçõesDeColaboradores[[#Headers],[Ago]],PlanoDeColaboradores[#Headers],0))-INDEX(RealColaboradores[],MATCH(INDEX(VariaçõesDeColaboradores[],ROW()-ROW(VariaçõesDeColaboradores[[#Headers],[Ago]]),1),INDEX(PlanoDeColaboradores[],,1),0),MATCH(VariaçõesDeColaboradores[[#Headers],[Ago]],RealColaboradores[#Headers],0))","v":{"v":24948,"d":"24,948.00 €"}},{"$f":"INDEX(PlanoDeColaboradores[],MATCH(INDEX(VariaçõesDeColaboradores[],ROW()-ROW(VariaçõesDeColaboradores[[#Headers],[Set]]),1),INDEX(PlanoDeColaboradores[],,1),0),MATCH(VariaçõesDeColaboradores[[#Headers],[Set]],PlanoDeColaboradores[#Headers],0))-INDEX(RealColaboradores[],MATCH(INDEX(VariaçõesDeColaboradores[],ROW()-ROW(VariaçõesDeColaboradores[[#Headers],[Set]]),1),INDEX(PlanoDeColaboradores[],,1),0),MATCH(VariaçõesDeColaboradores[[#Headers],[Set]],RealColaboradores[#Headers],0))","v":{"v":24948,"d":"24,948.00 €"}},{"$f":"INDEX(PlanoDeColaboradores[],MATCH(INDEX(VariaçõesDeColaboradores[],ROW()-ROW(VariaçõesDeColaboradores[[#Headers],[Out]]),1),INDEX(PlanoDeColaboradores[],,1),0),MATCH(VariaçõesDeColaboradores[[#Headers],[Out]],PlanoDeColaboradores[#Headers],0))-INDEX(RealColaboradores[],MATCH(INDEX(VariaçõesDeColaboradores[],ROW()-ROW(VariaçõesDeColaboradores[[#Headers],[Out]]),1),INDEX(PlanoDeColaboradores[],,1),0),MATCH(VariaçõesDeColaboradores[[#Headers],[Out]],RealColaboradores[#Headers],0))","v":{"v":24948,"d":"24,948.00 €"}},{"$f":"INDEX(PlanoDeColaboradores[],MATCH(INDEX(VariaçõesDeColaboradores[],ROW()-ROW(VariaçõesDeColaboradores[[#Headers],[Nov]]),1),INDEX(PlanoDeColaboradores[],,1),0),MATCH(VariaçõesDeColaboradores[[#Headers],[Nov]],PlanoDeColaboradores[#Headers],0))-INDEX(RealColaboradores[],MATCH(INDEX(VariaçõesDeColaboradores[],ROW()-ROW(VariaçõesDeColaboradores[[#Headers],[Nov]]),1),INDEX(PlanoDeColaboradores[],,1),0),MATCH(VariaçõesDeColaboradores[[#Headers],[Nov]],RealColaboradores[#Headers],0))","v":{"v":24948,"d":"24,948.00 €"}},{"$f":"INDEX(PlanoDeColaboradores[],MATCH(INDEX(VariaçõesDeColaboradores[],ROW()-ROW(VariaçõesDeColaboradores[[#Headers],[Dez]]),1),INDEX(PlanoDeColaboradores[],,1),0),MATCH(VariaçõesDeColaboradores[[#Headers],[Dez]],PlanoDeColaboradores[#Headers],0))-INDEX(RealColaboradores[],MATCH(INDEX(VariaçõesDeColaboradores[],ROW()-ROW(VariaçõesDeColaboradores[[#Headers],[Dez]]),1),INDEX(PlanoDeColaboradores[],,1),0),MATCH(VariaçõesDeColaboradores[[#Headers],[Dez]],RealColaboradores[#Headers],0))","v":{"v":24948,"d":"24,948.00 €"}},{"$f":"SUM(VariaçõesDeColaboradores[[#This Row],[Jan]:[Dez]])","v":{"v":147960,"d":"147,960.00 €"}}]
[null,"Subtotal",{"$f":"SUBTOTAL(109,VariaçõesDeColaboradores[Jan])","v":{"v":0,"d":"0.00 €"}},{"$f":"SUBTOTAL(109,VariaçõesDeColaboradores[Fev])","v":{"v":0,"d":"0.00 €"}},{"$f":"SUBTOTAL(109,VariaçõesDeColaboradores[Mar])","v":{"v":0,"d":"0.00 €"}},{"$f":"SUBTOTAL(109,VariaçõesDeColaboradores[Abr])","v":{"v":-635,"d":"-635.00 €"}},{"$f":"SUBTOTAL(109,VariaçõesDeColaboradores[Mai])","v":{"v":-635,"d":"-635.00 €"}},{"$f":"SUBTOTAL(109,VariaçõesDeColaboradores[Jun])","v":{"v":-635,"d":"-635.00 €"}},{"$f":"SUBTOTAL(109,VariaçõesDeColaboradores[Jul])","v":{"v":111125,"d":"111,125.00 €"}},{"$f":"SUBTOTAL(109,VariaçõesDeColaboradores[Ago])","v":{"v":117348,"d":"117,348.00 €"}},{"$f":"SUBTOTAL(109,VariaçõesDeColaboradores[Set])","v":{"v":117348,"d":"117,348.00 €"}},{"$f":"SUBTOTAL(109,VariaçõesDeColaboradores[Out])","v":{"v":117348,"d":"117,348.00 €"}},{"$f":"SUBTOTAL(109,VariaçõesDeColaboradores[Nov])","v":{"v":117348,"d":"117,348.00 €"}},{"$f":"SUBTOTAL(109,VariaçõesDeColaboradores[Dez])","v":{"v":117348,"d":"117,348.00 €"}},{"$f":"SUBTOTAL(109,VariaçõesDeColaboradores[ANO])","v":{"v":695960,"d":"695,960.00 €"}}]
[]
["A Variação nos Custos de Escritório é calculada automaticamente na tabela Variações de Escritório a partir da célula à direita. A instrução seguinte está na célula A21.","Custos de Escritório","Jan","Fev","Mar","Abr","Mai","Jun","Jul","Ago","Set","Out","Nov","Dez","ANO"]
[null,"Arrendamento de escritório",{"$f":"INDEX(PlanoDeEscritório[],MATCH(INDEX(VariaçõesDeEscritório[],ROW()-ROW(VariaçõesDeEscritório[[#Headers],[Jan]]),1),INDEX(PlanoDeEscritório[],,1),0),MATCH(VariaçõesDeEscritório[[#Headers],[Jan]],PlanoDeEscritório[#Headers],0))-INDEX(RealEscritório[],MATCH(INDEX(VariaçõesDeEscritório[],ROW()-ROW(VariaçõesDeEscritório[[#Headers],[Jan]]),1),INDEX(PlanoDeEscritório[],,1),0),MATCH(VariaçõesDeEscritório[[#Headers],[Jan]],RealEscritório[#Headers],0))","v":{"v":0,"d":"0.00 €"}},{"$f":"INDEX(PlanoDeEscritório[],MATCH(INDEX(VariaçõesDeEscritório[],ROW()-ROW(VariaçõesDeEscritório[[#Headers],[Fev]]),1),INDEX(PlanoDeEscritório[],,1),0),MATCH(VariaçõesDeEscritório[[#Headers],[Fev]],PlanoDeEscritório[#Headers],0))-INDEX(RealEscritório[],MATCH(INDEX(VariaçõesDeEscritório[],ROW()-ROW(VariaçõesDeEscritório[[#Headers],[Fev]]),1),INDEX(PlanoDeEscritório[],,1),0),MATCH(VariaçõesDeEscritório[[#Headers],[Fev]],RealEscritório[#Headers],0))","v":{"v":0,"d":"0.00 €"}},{"$f":"INDEX(PlanoDeEscritório[],MATCH(INDEX(VariaçõesDeEscritório[],ROW()-ROW(VariaçõesDeEscritório[[#Headers],[Mar]]),1),INDEX(PlanoDeEscritório[],,1),0),MATCH(VariaçõesDeEscritório[[#Headers],[Mar]],PlanoDeEscritório[#Headers],0))-INDEX(RealEscritório[],MATCH(INDEX(VariaçõesDeEscritório[],ROW()-ROW(VariaçõesDeEscritório[[#Headers],[Mar]]),1),INDEX(PlanoDeEscritório[],,1),0),MATCH(VariaçõesDeEscritório[[#Headers],[Mar]],RealEscritório[#Headers],0))","v":{"v":0,"d":"0.00 €"}},{"$f":"INDEX(PlanoDeEscritório[],MATCH(INDEX(VariaçõesDeEscritório[],ROW()-ROW(VariaçõesDeEscritório[[#Headers],[Abr]]),1),INDEX(PlanoDeEscritório[],,1),0),MATCH(VariaçõesDeEscritório[[#Headers],[Abr]],PlanoDeEscritório[#Headers],0))-INDEX(RealEscritório[],MATCH(INDEX(VariaçõesDeEscritório[],ROW()-ROW(VariaçõesDeEscritório[[#Headers],[Abr]]),1),INDEX(PlanoDeEscritório[],,1),0),MATCH(VariaçõesDeEscritório[[#Headers],[Abr]],RealEscritório[#Headers],0))","v":{"v":0,"d":"0.00 €"}},{"$f":"INDEX(PlanoDeEscritório[],MATCH(INDEX(VariaçõesDeEscritório[],ROW()-ROW(VariaçõesDeEscritório[[#Headers],[Mai]]),1),INDEX(PlanoDeEscritório[],,1),0),MATCH(VariaçõesDeEscritório[[#Headers],[Mai]],PlanoDeEscritório[#Headers],0))-INDEX(RealEscritório[],MATCH(INDEX(VariaçõesDeEscritório[],ROW()-ROW(VariaçõesDeEscritório[[#Headers],[Mai]]),1),INDEX(PlanoDeEscritório[],,1),0),MATCH(VariaçõesDeEscritório[[#Headers],[Mai]],RealEscritório[#Headers],0))","v":{"v":0,"d":"0.00 €"}},{"$f":"INDEX(PlanoDeEscritório[],MATCH(INDEX(VariaçõesDeEscritório[],ROW()-ROW(VariaçõesDeEscritório[[#Headers],[Jun]]),1),INDEX(PlanoDeEscritório[],,1),0),MATCH(VariaçõesDeEscritório[[#Headers],[Jun]],PlanoDeEscritório[#Headers],0))-INDEX(RealEscritório[],MATCH(INDEX(VariaçõesDeEscritório[],ROW()-ROW(VariaçõesDeEscritório[[#Headers],[Jun]]),1),INDEX(PlanoDeEscritório[],,1),0),MATCH(VariaçõesDeEscritório[[#Headers],[Jun]],RealEscritório[#Headers],0))","v":{"v":0,"d":"0.00 €"}},{"$f":"INDEX(PlanoDeEscritório[],MATCH(INDEX(VariaçõesDeEscritório[],ROW()-ROW(VariaçõesDeEscritório[[#Headers],[Jul]]),1),INDEX(PlanoDeEscritório[],,1),0),MATCH(VariaçõesDeEscritório[[#Headers],[Jul]],PlanoDeEscritório[#Headers],0))-INDEX(RealEscritório[],MATCH(INDEX(VariaçõesDeEscritório[],ROW()-ROW(VariaçõesDeEscritório[[#Headers],[Jul]]),1),INDEX(PlanoDeEscritório[],,1),0),MATCH(VariaçõesDeEscritório[[#Headers],[Jul]],RealEscritório[#Headers],0))","v":{"v":9800,"d":"9,800.00 €"}},{"$f":"INDEX(PlanoDeEscritório[],MATCH(INDEX(VariaçõesDeEscritório[],ROW()-ROW(VariaçõesDeEscritório[[#Headers],[Ago]]),1),INDEX(PlanoDeEscritório[],,1),0),MATCH(VariaçõesDeEscritório[[#Headers],[Ago]],PlanoDeEscritório[#Headers],0))-INDEX(RealEscritório[],MATCH(INDEX(VariaçõesDeEscritório[],ROW()-ROW(VariaçõesDeEscritório[[#Headers],[Ago]]),1),INDEX(PlanoDeEscritório[],,1),0),MATCH(VariaçõesDeEscritório[[#Headers],[Ago]],RealEscritório[#Headers],0))","v":{"v":9800,"d":"9,800.00 €"}},{"$f":"INDEX(PlanoDeEscritório[],MATCH(INDEX(VariaçõesDeEscritório[],ROW()-ROW(VariaçõesDeEscritório[[#Headers],[Set]]),1),INDEX(PlanoDeEscritório[],,1),0),MATCH(VariaçõesDeEscritório[[#Headers],[Set]],PlanoDeEscritório[#Headers],0))-INDEX(RealEscritório[],MATCH(INDEX(VariaçõesDeEscritório[],ROW()-ROW(VariaçõesDeEscritório[[#Headers],[Set]]),1),INDEX(PlanoDeEscritório[],,1),0),MATCH(VariaçõesDeEscritório[[#Headers],[Set]],RealEscritório[#Headers],0))","v":{"v":9800,"d":"9,800.00 €"}},{"$f":"INDEX(PlanoDeEscritório[],MATCH(INDEX(VariaçõesDeEscritório[],ROW()-ROW(VariaçõesDeEscritório[[#Headers],[Out]]),1),INDEX(PlanoDeEscritório[],,1),0),MATCH(VariaçõesDeEscritório[[#Headers],[Out]],PlanoDeEscritório[#Headers],0))-INDEX(RealEscritório[],MATCH(INDEX(VariaçõesDeEscritório[],ROW()-ROW(VariaçõesDeEscritório[[#Headers],[Out]]),1),INDEX(PlanoDeEscritório[],,1),0),MATCH(VariaçõesDeEscritório[[#Headers],[Out]],RealEscritório[#Headers],0))","v":{"v":9800,"d":"9,800.00 €"}},{"$f":"INDEX(PlanoDeEscritório[],MATCH(INDEX(VariaçõesDeEscritório[],ROW()-ROW(VariaçõesDeEscritório[[#Headers],[Nov]]),1),INDEX(PlanoDeEscritório[],,1),0),MATCH(VariaçõesDeEscritório[[#Headers],[Nov]],PlanoDeEscritório[#Headers],0))-INDEX(RealEscritório[],MATCH(INDEX(VariaçõesDeEscritório[],ROW()-ROW(VariaçõesDeEscritório[[#Headers],[Nov]]),1),INDEX(PlanoDeEscritório[],,1),0),MATCH(VariaçõesDeEscritório[[#Headers],[Nov]],RealEscritório[#Headers],0))","v":{"v":9800,"d":"9,800.00 €"}},{"$f":"INDEX(PlanoDeEscritório[],MATCH(INDEX(VariaçõesDeEscritório[],ROW()-ROW(VariaçõesDeEscritório[[#Headers],[Dez]]),1),INDEX(PlanoDeEscritório[],,1),0),MATCH(VariaçõesDeEscritório[[#Headers],[Dez]],PlanoDeEscritório[#Headers],0))-INDEX(RealEscritório[],MATCH(INDEX(VariaçõesDeEscritório[],ROW()-ROW(VariaçõesDeEscritório[[#Headers],[Dez]]),1),INDEX(PlanoDeEscritório[],,1),0),MATCH(VariaçõesDeEscritório[[#Headers],[Dez]],RealEscritório[#Headers],0))","v":{"v":9800,"d":"9,800.00 €"}},{"$f":"SUM(VariaçõesDeEscritório[[#This Row],[Jan]:[Dez]])","v":{"v":58800,"d":"58,800.00 €"}}]
[null,"Gás",{"$f":"INDEX(PlanoDeEscritório[],MATCH(INDEX(VariaçõesDeEscritório[],ROW()-ROW(VariaçõesDeEscritório[[#Headers],[Jan]]),1),INDEX(PlanoDeEscritório[],,1),0),MATCH(VariaçõesDeEscritório[[#Headers],[Jan]],PlanoDeEscritório[#Headers],0))-INDEX(RealEscritório[],MATCH(INDEX(VariaçõesDeEscritório[],ROW()-ROW(VariaçõesDeEscritório[[#Headers],[Jan]]),1),INDEX(PlanoDeEscritório[],,1),0),MATCH(VariaçõesDeEscritório[[#Headers],[Jan]],RealEscritório[#Headers],0))","v":{"v":-4,"d":"-4.00 €"}},{"$f":"INDEX(PlanoDeEscritório[],MATCH(INDEX(VariaçõesDeEscritório[],ROW()-ROW(VariaçõesDeEscritório[[#Headers],[Fev]]),1),INDEX(PlanoDeEscritório[],,1),0),MATCH(VariaçõesDeEscritório[[#Headers],[Fev]],PlanoDeEscritório[#Headers],0))-INDEX(RealEscritório[],MATCH(INDEX(VariaçõesDeEscritório[],ROW()-ROW(VariaçõesDeEscritório[[#Headers],[Fev]]),1),INDEX(PlanoDeEscritório[],,1),0),MATCH(VariaçõesDeEscritório[[#Headers],[Fev]],RealEscritório[#Headers],0))","v":{"v":-30,"d":"-30.00 €"}},{"$f":"INDEX(PlanoDeEscritório[],MATCH(INDEX(VariaçõesDeEscritório[],ROW()-ROW(VariaçõesDeEscritório[[#Headers],[Mar]]),1),INDEX(PlanoDeEscritório[],,1),0),MATCH(VariaçõesDeEscritório[[#Headers],[Mar]],PlanoDeEscritório[#Headers],0))-INDEX(RealEscritório[],MATCH(INDEX(VariaçõesDeEscritório[],ROW()-ROW(VariaçõesDeEscritório[[#Headers],[Mar]]),1),INDEX(PlanoDeEscritório[],,1),0),MATCH(VariaçõesDeEscritório[[#Headers],[Mar]],RealEscritório[#Headers],0))","v":{"v":15,"d":"15.00 €"}},{"$f":"INDEX(PlanoDeEscritório[],MATCH(INDEX(VariaçõesDeEscritório[],ROW()-ROW(VariaçõesDeEscritório[[#Headers],[Abr]]),1),INDEX(PlanoDeEscritório[],,1),0),MATCH(VariaçõesDeEscritório[[#Headers],[Abr]],PlanoDeEscritório[#Headers],0))-INDEX(RealEscritório[],MATCH(INDEX(VariaçõesDeEscritório[],ROW()-ROW(VariaçõesDeEscritório[[#Headers],[Abr]]),1),INDEX(PlanoDeEscritório[],,1),0),MATCH(VariaçõesDeEscritório[[#Headers],[Abr]],RealEscritório[#Headers],0))","v":{"v":-130,"d":"-130.00 €"}},{"$f":"INDEX(PlanoDeEscritório[],MATCH(INDEX(VariaçõesDeEscritório[],ROW()-ROW(VariaçõesDeEscritório[[#Headers],[Mai]]),1),INDEX(PlanoDeEscritório[],,1),0),MATCH(VariaçõesDeEscritório[[#Headers],[Mai]],PlanoDeEscritório[#Headers],0))-INDEX(RealEscritório[],MATCH(INDEX(VariaçõesDeEscritório[],ROW()-ROW(VariaçõesDeEscritório[[#Headers],[Mai]]),1),INDEX(PlanoDeEscritório[],,1),0),MATCH(VariaçõesDeEscritório[[#Headers],[Mai]],RealEscritório[#Headers],0))","v":{"v":13,"d":"13.00 €"}},{"$f":"INDEX(PlanoDeEscritório[],MATCH(INDEX(VariaçõesDeEscritório[],ROW()-ROW(VariaçõesDeEscritório[[#Headers],[Jun]]),1),INDEX(PlanoDeEscritório[],,1),0),MATCH(VariaçõesDeEscritório[[#Headers],[Jun]],PlanoDeEscritório[#Headers],0))-INDEX(RealEscritório[],MATCH(INDEX(VariaçõesDeEscritório[],ROW()-ROW(VariaçõesDeEscritório[[#Headers],[Jun]]),1),INDEX(PlanoDeEscritório[],,1),0),MATCH(VariaçõesDeEscritório[[#Headers],[Jun]],RealEscritório[#Headers],0))","v":{"v":12,"d":"12.00 €"}},{"$f":"INDEX(PlanoDeEscritório[],MATCH(INDEX(VariaçõesDeEscritório[],ROW()-ROW(VariaçõesDeEscritório[[#Headers],[Jul]]),1),INDEX(PlanoDeEscritório[],,1),0),MATCH(VariaçõesDeEscritório[[#Headers],[Jul]],PlanoDeEscritório[#Headers],0))-INDEX(RealEscritório[],MATCH(INDEX(VariaçõesDeEscritório[],ROW()-ROW(VariaçõesDeEscritório[[#Headers],[Jul]]),1),INDEX(PlanoDeEscritório[],,1),0),MATCH(VariaçõesDeEscritório[[#Headers],[Jul]],RealEscritório[#Headers],0))","v":{"v":100,"d":"100.00 €"}},{"$f":"INDEX(PlanoDeEscritório[],MATCH(INDEX(VariaçõesDeEscritório[],ROW()-ROW(VariaçõesDeEscritório[[#Headers],[Ago]]),1),INDEX(PlanoDeEscritório[],,1),0),MATCH(VariaçõesDeEscritório[[#Headers],[Ago]],PlanoDeEscritório[#Headers],0))-INDEX(RealEscritório[],MATCH(INDEX(VariaçõesDeEscritório[],ROW()-ROW(VariaçõesDeEscritório[[#Headers],[Ago]]),1),INDEX(PlanoDeEscritório[],,1),0),MATCH(VariaçõesDeEscritório[[#Headers],[Ago]],RealEscritório[#Headers],0))","v":{"v":100,"d":"100.00 €"}},{"$f":"INDEX(PlanoDeEscritório[],MATCH(INDEX(VariaçõesDeEscritório[],ROW()-ROW(VariaçõesDeEscritório[[#Headers],[Set]]),1),INDEX(PlanoDeEscritório[],,1),0),MATCH(VariaçõesDeEscritório[[#Headers],[Set]],PlanoDeEscritório[#Headers],0))-INDEX(RealEscritório[],MATCH(INDEX(VariaçõesDeEscritório[],ROW()-ROW(VariaçõesDeEscritório[[#Headers],[Set]]),1),INDEX(PlanoDeEscritório[],,1),0),MATCH(VariaçõesDeEscritório[[#Headers],[Set]],RealEscritório[#Headers],0))","v":{"v":100,"d":"100.00 €"}},{"$f":"INDEX(PlanoDeEscritório[],MATCH(INDEX(VariaçõesDeEscritório[],ROW()-ROW(VariaçõesDeEscritório[[#Headers],[Out]]),1),INDEX(PlanoDeEscritório[],,1),0),MATCH(VariaçõesDeEscritório[[#Headers],[Out]],PlanoDeEscritório[#Headers],0))-INDEX(RealEscritório[],MATCH(INDEX(VariaçõesDeEscritório[],ROW()-ROW(VariaçõesDeEscritório[[#Headers],[Out]]),1),INDEX(PlanoDeEscritório[],,1),0),MATCH(VariaçõesDeEscritório[[#Headers],[Out]],RealEscritório[#Headers],0))","v":{"v":100,"d":"100.00 €"}},{"$f":"INDEX(PlanoDeEscritório[],MATCH(INDEX(VariaçõesDeEscritório[],ROW()-ROW(VariaçõesDeEscritório[[#Headers],[Nov]]),1),INDEX(PlanoDeEscritório[],,1),0),MATCH(VariaçõesDeEscritório[[#Headers],[Nov]],PlanoDeEscritório[#Headers],0))-INDEX(RealEscritório[],MATCH(INDEX(VariaçõesDeEscritório[],ROW()-ROW(VariaçõesDeEscritório[[#Headers],[Nov]]),1),INDEX(PlanoDeEscritório[],,1),0),MATCH(VariaçõesDeEscritório[[#Headers],[Nov]],RealEscritório[#Headers],0))","v":{"v":400,"d":"400.00 €"}},{"$f":"INDEX(PlanoDeEscritório[],MATCH(INDEX(VariaçõesDeEscritório[],ROW()-ROW(VariaçõesDeEscritório[[#Headers],[Dez]]),1),INDEX(PlanoDeEscritório[],,1),0),MATCH(VariaçõesDeEscritório[[#Headers],[Dez]],PlanoDeEscritório[#Headers],0))-INDEX(RealEscritório[],MATCH(INDEX(VariaçõesDeEscritório[],ROW()-ROW(VariaçõesDeEscritório[[#Headers],[Dez]]),1),INDEX(PlanoDeEscritório[],,1),0),MATCH(VariaçõesDeEscritório[[#Headers],[Dez]],RealEscritório[#Headers],0))","v":{"v":400,"d":"400.00 €"}},{"$f":"SUM(VariaçõesDeEscritório[[#This Row],[Jan]:[Dez]])","v":{"v":1076,"d":"1,076.00 €"}}]
[null,"Eletricidade",{"$f":"INDEX(PlanoDeEscritório[],MATCH(INDEX(VariaçõesDeEscritório[],ROW()-ROW(VariaçõesDeEscritório[[#Headers],[Jan]]),1),INDEX(PlanoDeEscritório[],,1),0),MATCH(VariaçõesDeEscritório[[#Headers],[Jan]],PlanoDeEscritório[#Headers],0))-INDEX(RealEscritório[],MATCH(INDEX(VariaçõesDeEscritório[],ROW()-ROW(VariaçõesDeEscritório[[#Headers],[Jan]]),1),INDEX(PlanoDeEscritório[],,1),0),MATCH(VariaçõesDeEscritório[[#Headers],[Jan]],RealEscritório[#Headers],0))","v":{"v":12,"d":"12.00 €"}},{"$f":"INDEX(PlanoDeEscritório[],MATCH(INDEX(VariaçõesDeEscritório[],ROW()-ROW(VariaçõesDeEscritório[[#Headers],[Fev]]),1),INDEX(PlanoDeEscritório[],,1),0),MATCH(VariaçõesDeEscritório[[#Headers],[Fev]],PlanoDeEscritório[#Headers],0))-INDEX(RealEscritório[],MATCH(INDEX(VariaçõesDeEscritório[],ROW()-ROW(VariaçõesDeEscritório[[#Headers],[Fev]]),1),INDEX(PlanoDeEscritório[],,1),0),MATCH(VariaçõesDeEscritório[[#Headers],[Fev]],RealEscritório[#Headers],0))","v":{"v":22,"d":"22.00 €"}},{"$f":"INDEX(PlanoDeEscritório[],MATCH(INDEX(VariaçõesDeEscritório[],ROW()-ROW(VariaçõesDeEscritório[[#Headers],[Mar]]),1),INDEX(PlanoDeEscritório[],,1),0),MATCH(VariaçõesDeEscritório[[#Headers],[Mar]],PlanoDeEscritório[#Headers],0))-INDEX(RealEscritório[],MATCH(INDEX(VariaçõesDeEscritório[],ROW()-ROW(VariaçõesDeEscritório[[#Headers],[Mar]]),1),INDEX(PlanoDeEscritório[],,1),0),MATCH(VariaçõesDeEscritório[[#Headers],[Mar]],RealEscritório[#Headers],0))","v":{"v":32,"d":"32.00 €"}},{"$f":"INDEX(PlanoDeEscritório[],MATCH(INDEX(VariaçõesDeEscritório[],ROW()-ROW(VariaçõesDeEscritório[[#Headers],[Abr]]),1),INDEX(PlanoDeEscritório[],,1),0),MATCH(VariaçõesDeEscritório[[#Headers],[Abr]],PlanoDeEscritório[#Headers],0))-INDEX(RealEscritório[],MATCH(INDEX(VariaçõesDeEscritório[],ROW()-ROW(VariaçõesDeEscritório[[#Headers],[Abr]]),1),INDEX(PlanoDeEscritório[],,1),0),MATCH(VariaçõesDeEscritório[[#Headers],[Abr]],RealEscritório[#Headers],0))","v":{"v":1,"d":"1.00 €"}},{"$f":"INDEX(PlanoDeEscritório[],MATCH(INDEX(VariaçõesDeEscritório[],ROW()-ROW(VariaçõesDeEscritório[[#Headers],[Mai]]),1),INDEX(PlanoDeEscritório[],,1),0),MATCH(VariaçõesDeEscritório[[#Headers],[Mai]],PlanoDeEscritório[#Headers],0))-INDEX(RealEscritório[],MATCH(INDEX(VariaçõesDeEscritório[],ROW()-ROW(VariaçõesDeEscritório[[#Headers],[Mai]]),1),INDEX(PlanoDeEscritório[],,1),0),MATCH(VariaçõesDeEscritório[[#Headers],[Mai]],RealEscritório[#Headers],0))","v":{"v":-6,"d":"-6.00 €"}},{"$f":"INDEX(PlanoDeEscritório[],MATCH(INDEX(VariaçõesDeEscritório[],ROW()-ROW(VariaçõesDeEscritório[[#Headers],[Jun]]),1),INDEX(PlanoDeEscritório[],,1),0),MATCH(VariaçõesDeEscritório[[#Headers],[Jun]],PlanoDeEscritório[#Headers],0))-INDEX(RealEscritório[],MATCH(INDEX(VariaçõesDeEscritório[],ROW()-ROW(VariaçõesDeEscritório[[#Headers],[Jun]]),1),INDEX(PlanoDeEscritório[],,1),0),MATCH(VariaçõesDeEscritório[[#Headers],[Jun]],RealEscritório[#Headers],0))","v":{"v":10,"d":"10.00 €"}},{"$f":"INDEX(PlanoDeEscritório[],MATCH(INDEX(VariaçõesDeEscritório[],ROW()-ROW(VariaçõesDeEscritório[[#Headers],[Jul]]),1),INDEX(PlanoDeEscritório[],,1),0),MATCH(VariaçõesDeEscritório[[#Headers],[Jul]],PlanoDeEscritório[#Headers],0))-INDEX(RealEscritório[],MATCH(INDEX(VariaçõesDeEscritório[],ROW()-ROW(VariaçõesDeEscritório[[#Headers],[Jul]]),1),INDEX(PlanoDeEscritório[],,1),0),MATCH(VariaçõesDeEscritório[[#Headers],[Jul]],RealEscritório[#Headers],0))","v":{"v":300,"d":"300.00 €"}},{"$f":"INDEX(PlanoDeEscritório[],MATCH(INDEX(VariaçõesDeEscritório[],ROW()-ROW(VariaçõesDeEscritório[[#Headers],[Ago]]),1),INDEX(PlanoDeEscritório[],,1),0),MATCH(VariaçõesDeEscritório[[#Headers],[Ago]],PlanoDeEscritório[#Headers],0))-INDEX(RealEscritório[],MATCH(INDEX(VariaçõesDeEscritório[],ROW()-ROW(VariaçõesDeEscritório[[#Headers],[Ago]]),1),INDEX(PlanoDeEscritório[],,1),0),MATCH(VariaçõesDeEscritório[[#Headers],[Ago]],RealEscritório[#Headers],0))","v":{"v":300,"d":"300.00 €"}},{"$f":"INDEX(PlanoDeEscritório[],MATCH(INDEX(VariaçõesDeEscritório[],ROW()-ROW(VariaçõesDeEscritório[[#Headers],[Set]]),1),INDEX(PlanoDeEscritório[],,1),0),MATCH(VariaçõesDeEscritório[[#Headers],[Set]],PlanoDeEscritório[#Headers],0))-INDEX(RealEscritório[],MATCH(INDEX(VariaçõesDeEscritório[],ROW()-ROW(VariaçõesDeEscritório[[#Headers],[Set]]),1),INDEX(PlanoDeEscritório[],,1),0),MATCH(VariaçõesDeEscritório[[#Headers],[Set]],RealEscritório[#Headers],0))","v":{"v":300,"d":"300.00 €"}},{"$f":"INDEX(PlanoDeEscritório[],MATCH(INDEX(VariaçõesDeEscritório[],ROW()-ROW(VariaçõesDeEscritório[[#Headers],[Out]]),1),INDEX(PlanoDeEscritório[],,1),0),MATCH(VariaçõesDeEscritório[[#Headers],[Out]],PlanoDeEscritório[#Headers],0))-INDEX(RealEscritório[],MATCH(INDEX(VariaçõesDeEscritório[],ROW()-ROW(VariaçõesDeEscritório[[#Headers],[Out]]),1),INDEX(PlanoDeEscritório[],,1),0),MATCH(VariaçõesDeEscritório[[#Headers],[Out]],RealEscritório[#Headers],0))","v":{"v":300,"d":"300.00 €"}},{"$f":"INDEX(PlanoDeEscritório[],MATCH(INDEX(VariaçõesDeEscritório[],ROW()-ROW(VariaçõesDeEscritório[[#Headers],[Nov]]),1),INDEX(PlanoDeEscritório[],,1),0),MATCH(VariaçõesDeEscritório[[#Headers],[Nov]],PlanoDeEscritório[#Headers],0))-INDEX(RealEscritório[],MATCH(INDEX(VariaçõesDeEscritório[],ROW()-ROW(VariaçõesDeEscritório[[#Headers],[Nov]]),1),INDEX(PlanoDeEscritório[],,1),0),MATCH(VariaçõesDeEscritório[[#Headers],[Nov]],RealEscritório[#Headers],0))","v":{"v":300,"d":"300.00 €"}},{"$f":"INDEX(PlanoDeEscritório[],MATCH(INDEX(VariaçõesDeEscritório[],ROW()-ROW(VariaçõesDeEscritório[[#Headers],[Dez]]),1),INDEX(PlanoDeEscritório[],,1),0),MATCH(VariaçõesDeEscritório[[#Headers],[Dez]],PlanoDeEscritório[#Headers],0))-INDEX(RealEscritório[],MATCH(INDEX(VariaçõesDeEscritório[],ROW()-ROW(VariaçõesDeEscritório[[#Headers],[Dez]]),1),INDEX(PlanoDeEscritório[],,1),0),MATCH(VariaçõesDeEscritório[[#Headers],[Dez]],RealEscritório[#Headers],0))","v":{"v":300,"d":"300.00 €"}},{"$f":"SUM(VariaçõesDeEscritório[[#This Row],[Jan]:[Dez]])","v":{"v":1871,"d":"1,871.00 €"}}]
[null,"Água",{"$f":"INDEX(PlanoDeEscritório[],MATCH(INDEX(VariaçõesDeEscritório[],ROW()-ROW(VariaçõesDeEscritório[[#Headers],[Jan]]),1),INDEX(PlanoDeEscritório[],,1),0),MATCH(VariaçõesDeEscritório[[#Headers],[Jan]],PlanoDeEscritório[#Headers],0))-INDEX(RealEscritório[],MATCH(INDEX(VariaçõesDeEscritório[],ROW()-ROW(VariaçõesDeEscritório[[#Headers],[Jan]]),1),INDEX(PlanoDeEscritório[],,1),0),MATCH(VariaçõesDeEscritório[[#Headers],[Jan]],RealEscritório[#Headers],0))","v":{"v":5,"d":"5.00 €"}},{"$f":"INDEX(PlanoDeEscritório[],MATCH(INDEX(VariaçõesDeEscritório[],ROW()-ROW(VariaçõesDeEscritório[[#Headers],[Fev]]),1),INDEX(PlanoDeEscritório[],,1),0),MATCH(VariaçõesDeEscritório[[#Headers],[Fev]],PlanoDeEscritório[#Headers],0))-INDEX(RealEscritório[],MATCH(INDEX(VariaçõesDeEscritório[],ROW()-ROW(VariaçõesDeEscritório[[#Headers],[Fev]]),1),INDEX(PlanoDeEscritório[],,1),0),MATCH(VariaçõesDeEscritório[[#Headers],[Fev]],RealEscritório[#Headers],0))","v":{"v":7,"d":"7.00 €"}},{"$f":"INDEX(PlanoDeEscritório[],MATCH(INDEX(VariaçõesDeEscritório[],ROW()-ROW(VariaçõesDeEscritório[[#Headers],[Mar]]),1),INDEX(PlanoDeEscritório[],,1),0),MATCH(VariaçõesDeEscritório[[#Headers],[Mar]],PlanoDeEscritório[#Headers],0))-INDEX(RealEscritório[],MATCH(INDEX(VariaçõesDeEscritório[],ROW()-ROW(VariaçõesDeEscritório[[#Headers],[Mar]]),1),INDEX(PlanoDeEscritório[],,1),0),MATCH(VariaçõesDeEscritório[[#Headers],[Mar]],RealEscritório[#Headers],0))","v":{"v":6,"d":"6.00 €"}},{"$f":"INDEX(PlanoDeEscritório[],MATCH(INDEX(VariaçõesDeEscritório[],ROW()-ROW(VariaçõesDeEscritório[[#Headers],[Abr]]),1),INDEX(PlanoDeEscritório[],,1),0),MATCH(VariaçõesDeEscritório[[#Headers],[Abr]],PlanoDeEscritório[#Headers],0))-INDEX(RealEscritório[],MATCH(INDEX(VariaçõesDeEscritório[],ROW()-ROW(VariaçõesDeEscritório[[#Headers],[Abr]]),1),INDEX(PlanoDeEscritório[],,1),0),MATCH(VariaçõesDeEscritório[[#Headers],[Abr]],RealEscritório[#Headers],0))","v":{"v":4,"d":"4.00 €"}},{"$f":"INDEX(PlanoDeEscritório[],MATCH(INDEX(VariaçõesDeEscritório[],ROW()-ROW(VariaçõesDeEscritório[[#Headers],[Mai]]),1),INDEX(PlanoDeEscritório[],,1),0),MATCH(VariaçõesDeEscritório[[#Headers],[Mai]],PlanoDeEscritório[#Headers],0))-INDEX(RealEscritório[],MATCH(INDEX(VariaçõesDeEscritório[],ROW()-ROW(VariaçõesDeEscritório[[#Headers],[Mai]]),1),INDEX(PlanoDeEscritório[],,1),0),MATCH(VariaçõesDeEscritório[[#Headers],[Mai]],RealEscritório[#Headers],0))","v":{"v":6,"d":"6.00 €"}},{"$f":"INDEX(PlanoDeEscritório[],MATCH(INDEX(VariaçõesDeEscritório[],ROW()-ROW(VariaçõesDeEscritório[[#Headers],[Jun]]),1),INDEX(PlanoDeEscritório[],,1),0),MATCH(VariaçõesDeEscritório[[#Headers],[Jun]],PlanoDeEscritório[#Headers],0))-INDEX(RealEscritório[],MATCH(INDEX(VariaçõesDeEscritório[],ROW()-ROW(VariaçõesDeEscritório[[#Headers],[Jun]]),1),INDEX(PlanoDeEscritório[],,1),0),MATCH(VariaçõesDeEscritório[[#Headers],[Jun]],RealEscritório[#Headers],0))","v":{"v":4,"d":"4.00 €"}},{"$f":"INDEX(PlanoDeEscritório[],MATCH(INDEX(VariaçõesDeEscritório[],ROW()-ROW(VariaçõesDeEscritório[[#Headers],[Jul]]),1),INDEX(PlanoDeEscritório[],,1),0),MATCH(VariaçõesDeEscritório[[#Headers],[Jul]],PlanoDeEscritório[#Headers],0))-INDEX(RealEscritório[],MATCH(INDEX(VariaçõesDeEscritório[],ROW()-ROW(VariaçõesDeEscritório[[#Headers],[Jul]]),1),INDEX(PlanoDeEscritório[],,1),0),MATCH(VariaçõesDeEscritório[[#Headers],[Jul]],RealEscritório[#Headers],0))","v":{"v":40,"d":"40.00 €"}},{"$f":"INDEX(PlanoDeEscritório[],MATCH(INDEX(VariaçõesDeEscritório[],ROW()-ROW(VariaçõesDeEscritório[[#Headers],[Ago]]),1),INDEX(PlanoDeEscritório[],,1),0),MATCH(VariaçõesDeEscritório[[#Headers],[Ago]],PlanoDeEscritório[#Headers],0))-INDEX(RealEscritório[],MATCH(INDEX(VariaçõesDeEscritório[],ROW()-ROW(VariaçõesDeEscritório[[#Headers],[Ago]]),1),INDEX(PlanoDeEscritório[],,1),0),MATCH(VariaçõesDeEscritório[[#Headers],[Ago]],RealEscritório[#Headers],0))","v":{"v":40,"d":"40.00 €"}},{"$f":"INDEX(PlanoDeEscritório[],MATCH(INDEX(VariaçõesDeEscritório[],ROW()-ROW(VariaçõesDeEscritório[[#Headers],[Set]]),1),INDEX(PlanoDeEscritório[],,1),0),MATCH(VariaçõesDeEscritório[[#Headers],[Set]],PlanoDeEscritório[#Headers],0))-INDEX(RealEscritório[],MATCH(INDEX(VariaçõesDeEscritório[],ROW()-ROW(VariaçõesDeEscritório[[#Headers],[Set]]),1),INDEX(PlanoDeEscritório[],,1),0),MATCH(VariaçõesDeEscritório[[#Headers],[Set]],RealEscritório[#Headers],0))","v":{"v":40,"d":"40.00 €"}},{"$f":"INDEX(PlanoDeEscritório[],MATCH(INDEX(VariaçõesDeEscritório[],ROW()-ROW(VariaçõesDeEscritório[[#Headers],[Out]]),1),INDEX(PlanoDeEscritório[],,1),0),MATCH(VariaçõesDeEscritório[[#Headers],[Out]],PlanoDeEscritório[#Headers],0))-INDEX(RealEscritório[],MATCH(INDEX(VariaçõesDeEscritório[],ROW()-ROW(VariaçõesDeEscritório[[#Headers],[Out]]),1),INDEX(PlanoDeEscritório[],,1),0),MATCH(VariaçõesDeEscritório[[#Headers],[Out]],RealEscritório[#Headers],0))","v":{"v":40,"d":"40.00 €"}},{"$f":"INDEX(PlanoDeEscritório[],MATCH(INDEX(VariaçõesDeEscritório[],ROW()-ROW(VariaçõesDeEscritório[[#Headers],[Nov]]),1),INDEX(PlanoDeEscritório[],,1),0),MATCH(VariaçõesDeEscritório[[#Headers],[Nov]],PlanoDeEscritório[#Headers],0))-INDEX(RealEscritório[],MATCH(INDEX(VariaçõesDeEscritório[],ROW()-ROW(VariaçõesDeEscritório[[#Headers],[Nov]]),1),INDEX(PlanoDeEscritório[],,1),0),MATCH(VariaçõesDeEscritório[[#Headers],[Nov]],RealEscritório[#Headers],0))","v":{"v":40,"d":"40.00 €"}},{"$f":"INDEX(PlanoDeEscritório[],MATCH(INDEX(VariaçõesDeEscritório[],ROW()-ROW(VariaçõesDeEscritório[[#Headers],[Dez]]),1),INDEX(PlanoDeEscritório[],,1),0),MATCH(VariaçõesDeEscritório[[#Headers],[Dez]],PlanoDeEscritório[#Headers],0))-INDEX(RealEscritório[],MATCH(INDEX(VariaçõesDeEscritório[],ROW()-ROW(VariaçõesDeEscritório[[#Headers],[Dez]]),1),INDEX(PlanoDeEscritório[],,1),0),MATCH(VariaçõesDeEscritório[[#Headers],[Dez]],RealEscritório[#Headers],0))","v":{"v":40,"d":"40.00 €"}},{"$f":"SUM(VariaçõesDeEscritório[[#This Row],[Jan]:[Dez]])","v":{"v":272,"d":"272.00 €"}}]
[null,"Telefone",{"$f":"INDEX(PlanoDeEscritório[],MATCH(INDEX(VariaçõesDeEscritório[],ROW()-ROW(VariaçõesDeEscritório[[#Headers],[Jan]]),1),INDEX(PlanoDeEscritório[],,1),0),MATCH(VariaçõesDeEscritório[[#Headers],[Jan]],PlanoDeEscritório[#Headers],0))-INDEX(RealEscritório[],MATCH(INDEX(VariaçõesDeEscritório[],ROW()-ROW(VariaçõesDeEscritório[[#Headers],[Jan]]),1),INDEX(PlanoDeEscritório[],,1),0),MATCH(VariaçõesDeEscritório[[#Headers],[Jan]],RealEscritório[#Headers],0))","v":{"v":26,"d":"26.00 €"}},{"$f":"INDEX(PlanoDeEscritório[],MATCH(INDEX(VariaçõesDeEscritório[],ROW()-ROW(VariaçõesDeEscritório[[#Headers],[Fev]]),1),INDEX(PlanoDeEscritório[],,1),0),MATCH(VariaçõesDeEscritório[[#Headers],[Fev]],PlanoDeEscritório[#Headers],0))-INDEX(RealEscritório[],MATCH(INDEX(VariaçõesDeEscritório[],ROW()-ROW(VariaçõesDeEscritório[[#Headers],[Fev]]),1),INDEX(PlanoDeEscritório[],,1),0),MATCH(VariaçõesDeEscritório[[#Headers],[Fev]],RealEscritório[#Headers],0))","v":{"v":15,"d":"15.00 €"}},{"$f":"INDEX(PlanoDeEscritório[],MATCH(INDEX(VariaçõesDeEscritório[],ROW()-ROW(VariaçõesDeEscritório[[#Headers],[Mar]]),1),INDEX(PlanoDeEscritório[],,1),0),MATCH(VariaçõesDeEscritório[[#Headers],[Mar]],PlanoDeEscritório[#Headers],0))-INDEX(RealEscritório[],MATCH(INDEX(VariaçõesDeEscritório[],ROW()-ROW(VariaçõesDeEscritório[[#Headers],[Mar]]),1),INDEX(PlanoDeEscritório[],,1),0),MATCH(VariaçõesDeEscritório[[#Headers],[Mar]],RealEscritório[#Headers],0))","v":{"v":-15,"d":"-15.00 €"}},{"$f":"INDEX(PlanoDeEscritório[],MATCH(INDEX(VariaçõesDeEscritório[],ROW()-ROW(VariaçõesDeEscritório[[#Headers],[Abr]]),1),INDEX(PlanoDeEscritório[],,1),0),MATCH(VariaçõesDeEscritório[[#Headers],[Abr]],PlanoDeEscritório[#Headers],0))-INDEX(RealEscritório[],MATCH(INDEX(VariaçõesDeEscritório[],ROW()-ROW(VariaçõesDeEscritório[[#Headers],[Abr]]),1),INDEX(PlanoDeEscritório[],,1),0),MATCH(VariaçõesDeEscritório[[#Headers],[Abr]],RealEscritório[#Headers],0))","v":{"v":5,"d":"5.00 €"}},{"$f":"INDEX(PlanoDeEscritório[],MATCH(INDEX(VariaçõesDeEscritório[],ROW()-ROW(VariaçõesDeEscritório[[#Headers],[Mai]]),1),INDEX(PlanoDeEscritório[],,1),0),MATCH(VariaçõesDeEscritório[[#Headers],[Mai]],PlanoDeEscritório[#Headers],0))-INDEX(RealEscritório[],MATCH(INDEX(VariaçõesDeEscritório[],ROW()-ROW(VariaçõesDeEscritório[[#Headers],[Mai]]),1),INDEX(PlanoDeEscritório[],,1),0),MATCH(VariaçõesDeEscritório[[#Headers],[Mai]],RealEscritório[#Headers],0))","v":{"v":5,"d":"5.00 €"}},{"$f":"INDEX(PlanoDeEscritório[],MATCH(INDEX(VariaçõesDeEscritório[],ROW()-ROW(VariaçõesDeEscritório[[#Headers],[Jun]]),1),INDEX(PlanoDeEscritório[],,1),0),MATCH(VariaçõesDeEscritório[[#Headers],[Jun]],PlanoDeEscritório[#Headers],0))-INDEX(RealEscritório[],MATCH(INDEX(VariaçõesDeEscritório[],ROW()-ROW(VariaçõesDeEscritório[[#Headers],[Jun]]),1),INDEX(PlanoDeEscritório[],,1),0),MATCH(VariaçõesDeEscritório[[#Headers],[Jun]],RealEscritório[#Headers],0))","v":{"v":30,"d":"30.00 €"}},{"$f":"INDEX(PlanoDeEscritório[],MATCH(INDEX(VariaçõesDeEscritório[],ROW()-ROW(VariaçõesDeEscritório[[#Headers],[Jul]]),1),INDEX(PlanoDeEscritório[],,1),0),MATCH(VariaçõesDeEscritório[[#Headers],[Jul]],PlanoDeEscritório[#Headers],0))-INDEX(RealEscritório[],MATCH(INDEX(VariaçõesDeEscritório[],ROW()-ROW(VariaçõesDeEscritório[[#Headers],[Jul]]),1),INDEX(PlanoDeEscritório[],,1),0),MATCH(VariaçõesDeEscritório[[#Headers],[Jul]],RealEscritório[#Headers],0))","v":{"v":250,"d":"250.00 €"}},{"$f":"INDEX(PlanoDeEscritório[],MATCH(INDEX(VariaçõesDeEscritório[],ROW()-ROW(VariaçõesDeEscritório[[#Headers],[Ago]]),1),INDEX(PlanoDeEscritório[],,1),0),MATCH(VariaçõesDeEscritório[[#Headers],[Ago]],PlanoDeEscritório[#Headers],0))-INDEX(RealEscritório[],MATCH(INDEX(VariaçõesDeEscritório[],ROW()-ROW(VariaçõesDeEscritório[[#Headers],[Ago]]),1),INDEX(PlanoDeEscritório[],,1),0),MATCH(VariaçõesDeEscritório[[#Headers],[Ago]],RealEscritório[#Headers],0))","v":{"v":250,"d":"250.00 €"}},{"$f":"INDEX(PlanoDeEscritório[],MATCH(INDEX(VariaçõesDeEscritório[],ROW()-ROW(VariaçõesDeEscritório[[#Headers],[Set]]),1),INDEX(PlanoDeEscritório[],,1),0),MATCH(VariaçõesDeEscritório[[#Headers],[Set]],PlanoDeEscritório[#Headers],0))-INDEX(RealEscritório[],MATCH(INDEX(VariaçõesDeEscritório[],ROW()-ROW(VariaçõesDeEscritório[[#Headers],[Set]]),1),INDEX(PlanoDeEscritório[],,1),0),MATCH(VariaçõesDeEscritório[[#Headers],[Set]],RealEscritório[#Headers],0))","v":{"v":250,"d":"250.00 €"}},{"$f":"INDEX(PlanoDeEscritório[],MATCH(INDEX(VariaçõesDeEscritório[],ROW()-ROW(VariaçõesDeEscritório[[#Headers],[Out]]),1),INDEX(PlanoDeEscritório[],,1),0),MATCH(VariaçõesDeEscritório[[#Headers],[Out]],PlanoDeEscritório[#Headers],0))-INDEX(RealEscritório[],MATCH(INDEX(VariaçõesDeEscritório[],ROW()-ROW(VariaçõesDeEscritório[[#Headers],[Out]]),1),INDEX(PlanoDeEscritório[],,1),0),MATCH(VariaçõesDeEscritório[[#Headers],[Out]],RealEscritório[#Headers],0))","v":{"v":250,"d":"250.00 €"}},{"$f":"INDEX(PlanoDeEscritório[],MATCH(INDEX(VariaçõesDeEscritório[],ROW()-ROW(VariaçõesDeEscritório[[#Headers],[Nov]]),1),INDEX(PlanoDeEscritório[],,1),0),MATCH(VariaçõesDeEscritório[[#Headers],[Nov]],PlanoDeEscritório[#Headers],0))-INDEX(RealEscritório[],MATCH(INDEX(VariaçõesDeEscritório[],ROW()-ROW(VariaçõesDeEscritório[[#Headers],[Nov]]),1),INDEX(PlanoDeEscritório[],,1),0),MATCH(VariaçõesDeEscritório[[#Headers],[Nov]],RealEscritório[#Headers],0))","v":{"v":250,"d":"250.00 €"}},{"$f":"INDEX(PlanoDeEscritório[],MATCH(INDEX(VariaçõesDeEscritório[],ROW()-ROW(VariaçõesDeEscritório[[#Headers],[Dez]]),1),INDEX(PlanoDeEscritório[],,1),0),MATCH(VariaçõesDeEscritório[[#Headers],[Dez]],PlanoDeEscritório[#Headers],0))-INDEX(RealEscritório[],MATCH(INDEX(VariaçõesDeEscritório[],ROW()-ROW(VariaçõesDeEscritório[[#Headers],[Dez]]),1),INDEX(PlanoDeEscritório[],,1),0),MATCH(VariaçõesDeEscritório[[#Headers],[Dez]],RealEscritório[#Headers],0))","v":{"v":250,"d":"250.00 €"}},{"$f":"SUM(VariaçõesDeEscritório[[#This Row],[Jan]:[Dez]])","v":{"v":1566,"d":"1,566.00 €"}}]
[null,"Internet",{"$f":"INDEX(PlanoDeEscritório[],MATCH(INDEX(VariaçõesDeEscritório[],ROW()-ROW(VariaçõesDeEscritório[[#Headers],[Jan]]),1),INDEX(PlanoDeEscritório[],,1),0),MATCH(VariaçõesDeEscritório[[#Headers],[Jan]],PlanoDeEscritório[#Headers],0))-INDEX(RealEscritório[],MATCH(INDEX(VariaçõesDeEscritório[],ROW()-ROW(VariaçõesDeEscritório[[#Headers],[Jan]]),1),INDEX(PlanoDeEscritório[],,1),0),MATCH(VariaçõesDeEscritório[[#Headers],[Jan]],RealEscritório[#Headers],0))","v":{"v":0,"d":"0.00 €"}},{"$f":"INDEX(PlanoDeEscritório[],MATCH(INDEX(VariaçõesDeEscritório[],ROW()-ROW(VariaçõesDeEscritório[[#Headers],[Fev]]),1),INDEX(PlanoDeEscritório[],,1),0),MATCH(VariaçõesDeEscritório[[#Headers],[Fev]],PlanoDeEscritório[#Headers],0))-INDEX(RealEscritório[],MATCH(INDEX(VariaçõesDeEscritório[],ROW()-ROW(VariaçõesDeEscritório[[#Headers],[Fev]]),1),INDEX(PlanoDeEscritório[],,1),0),MATCH(VariaçõesDeEscritório[[#Headers],[Fev]],RealEscritório[#Headers],0))","v":{"v":0,"d":"0.00 €"}},{"$f":"INDEX(PlanoDeEscritório[],MATCH(INDEX(VariaçõesDeEscritório[],ROW()-ROW(VariaçõesDeEscritório[[#Headers],[Mar]]),1),INDEX(PlanoDeEscritório[],,1),0),MATCH(VariaçõesDeEscritório[[#Headers],[Mar]],PlanoDeEscritório[#Headers],0))-INDEX(RealEscritório[],MATCH(INDEX(VariaçõesDeEscritório[],ROW()-ROW(VariaçõesDeEscritório[[#Headers],[Mar]]),1),INDEX(PlanoDeEscritório[],,1),0),MATCH(VariaçõesDeEscritório[[#Headers],[Mar]],RealEscritório[#Headers],0))","v":{"v":0,"d":"0.00 €"}},{"$f":"INDEX(PlanoDeEscritório[],MATCH(INDEX(VariaçõesDeEscritório[],ROW()-ROW(VariaçõesDeEscritório[[#Headers],[Abr]]),1),INDEX(PlanoDeEscritório[],,1),0),MATCH(VariaçõesDeEscritório[[#Headers],[Abr]],PlanoDeEscritório[#Headers],0))-INDEX(RealEscritório[],MATCH(INDEX(VariaçõesDeEscritório[],ROW()-ROW(VariaçõesDeEscritório[[#Headers],[Abr]]),1),INDEX(PlanoDeEscritório[],,1),0),MATCH(VariaçõesDeEscritório[[#Headers],[Abr]],RealEscritório[#Headers],0))","v":{"v":0,"d":"0.00 €"}},{"$f":"INDEX(PlanoDeEscritório[],MATCH(INDEX(VariaçõesDeEscritório[],ROW()-ROW(VariaçõesDeEscritório[[#Headers],[Mai]]),1),INDEX(PlanoDeEscritório[],,1),0),MATCH(VariaçõesDeEscritório[[#Headers],[Mai]],PlanoDeEscritório[#Headers],0))-INDEX(RealEscritório[],MATCH(INDEX(VariaçõesDeEscritório[],ROW()-ROW(VariaçõesDeEscritório[[#Headers],[Mai]]),1),INDEX(PlanoDeEscritório[],,1),0),MATCH(VariaçõesDeEscritório[[#Headers],[Mai]],RealEscritório[#Headers],0))","v":{"v":0,"d":"0.00 €"}},{"$f":"INDEX(PlanoDeEscritório[],MATCH(INDEX(VariaçõesDeEscritório[],ROW()-ROW(VariaçõesDeEscritório[[#Headers],[Jun]]),1),INDEX(PlanoDeEscritório[],,1),0),MATCH(VariaçõesDeEscritório[[#Headers],[Jun]],PlanoDeEscritório[#Headers],0))-INDEX(RealEscritório[],MATCH(INDEX(VariaçõesDeEscritório[],ROW()-ROW(VariaçõesDeEscritório[[#Headers],[Jun]]),1),INDEX(PlanoDeEscritório[],,1),0),MATCH(VariaçõesDeEscritório[[#Headers],[Jun]],RealEscritório[#Headers],0))","v":{"v":0,"d":"0.00 €"}},{"$f":"INDEX(PlanoDeEscritório[],MATCH(INDEX(VariaçõesDeEscritório[],ROW()-ROW(VariaçõesDeEscritório[[#Headers],[Jul]]),1),INDEX(PlanoDeEscritório[],,1),0),MATCH(VariaçõesDeEscritório[[#Headers],[Jul]],PlanoDeEscritório[#Headers],0))-INDEX(RealEscritório[],MATCH(INDEX(VariaçõesDeEscritório[],ROW()-ROW(VariaçõesDeEscritório[[#Headers],[Jul]]),1),INDEX(PlanoDeEscritório[],,1),0),MATCH(VariaçõesDeEscritório[[#Headers],[Jul]],RealEscritório[#Headers],0))","v":{"v":180,"d":"180.00 €"}},{"$f":"INDEX(PlanoDeEscritório[],MATCH(INDEX(VariaçõesDeEscritório[],ROW()-ROW(VariaçõesDeEscritório[[#Headers],[Ago]]),1),INDEX(PlanoDeEscritório[],,1),0),MATCH(VariaçõesDeEscritório[[#Headers],[Ago]],PlanoDeEscritório[#Headers],0))-INDEX(RealEscritório[],MATCH(INDEX(VariaçõesDeEscritório[],ROW()-ROW(VariaçõesDeEscritório[[#Headers],[Ago]]),1),INDEX(PlanoDeEscritório[],,1),0),MATCH(VariaçõesDeEscritório[[#Headers],[Ago]],RealEscritório[#Headers],0))","v":{"v":180,"d":"180.00 €"}},{"$f":"INDEX(PlanoDeEscritório[],MATCH(INDEX(VariaçõesDeEscritório[],ROW()-ROW(VariaçõesDeEscritório[[#Headers],[Set]]),1),INDEX(PlanoDeEscritório[],,1),0),MATCH(VariaçõesDeEscritório[[#Headers],[Set]],PlanoDeEscritório[#Headers],0))-INDEX(RealEscritório[],MATCH(INDEX(VariaçõesDeEscritório[],ROW()-ROW(VariaçõesDeEscritório[[#Headers],[Set]]),1),INDEX(PlanoDeEscritório[],,1),0),MATCH(VariaçõesDeEscritório[[#Headers],[Set]],RealEscritório[#Headers],0))","v":{"v":180,"d":"180.00 €"}},{"$f":"INDEX(PlanoDeEscritório[],MATCH(INDEX(VariaçõesDeEscritório[],ROW()-ROW(VariaçõesDeEscritório[[#Headers],[Out]]),1),INDEX(PlanoDeEscritório[],,1),0),MATCH(VariaçõesDeEscritório[[#Headers],[Out]],PlanoDeEscritório[#Headers],0))-INDEX(RealEscritório[],MATCH(INDEX(VariaçõesDeEscritório[],ROW()-ROW(VariaçõesDeEscritório[[#Headers],[Out]]),1),INDEX(PlanoDeEscritório[],,1),0),MATCH(VariaçõesDeEscritório[[#Headers],[Out]],RealEscritório[#Headers],0))","v":{"v":180,"d":"180.00 €"}},{"$f":"INDEX(PlanoDeEscritório[],MATCH(INDEX(VariaçõesDeEscritório[],ROW()-ROW(VariaçõesDeEscritório[[#Headers],[Nov]]),1),INDEX(PlanoDeEscritório[],,1),0),MATCH(VariaçõesDeEscritório[[#Headers],[Nov]],PlanoDeEscritório[#Headers],0))-INDEX(RealEscritório[],MATCH(INDEX(VariaçõesDeEscritório[],ROW()-ROW(VariaçõesDeEscritório[[#Headers],[Nov]]),1),INDEX(PlanoDeEscritório[],,1),0),MATCH(VariaçõesDeEscritório[[#Headers],[Nov]],RealEscritório[#Headers],0))","v":{"v":180,"d":"180.00 €"}},{"$f":"INDEX(PlanoDeEscritório[],MATCH(INDEX(VariaçõesDeEscritório[],ROW()-ROW(VariaçõesDeEscritório[[#Headers],[Dez]]),1),INDEX(PlanoDeEscritório[],,1),0),MATCH(VariaçõesDeEscritório[[#Headers],[Dez]],PlanoDeEscritório[#Headers],0))-INDEX(RealEscritório[],MATCH(INDEX(VariaçõesDeEscritório[],ROW()-ROW(VariaçõesDeEscritório[[#Headers],[Dez]]),1),INDEX(PlanoDeEscritório[],,1),0),MATCH(VariaçõesDeEscritório[[#Headers],[Dez]],RealEscritório[#Headers],0))","v":{"v":180,"d":"180.00 €"}},{"$f":"SUM(VariaçõesDeEscritório[[#This Row],[Jan]:[Dez]])","v":{"v":1080,"d":"1,080.00 €"}}]
[null,"Material de escritório",{"$f":"INDEX(PlanoDeEscritório[],MATCH(INDEX(VariaçõesDeEscritório[],ROW()-ROW(VariaçõesDeEscritório[[#Headers],[Jan]]),1),INDEX(PlanoDeEscritório[],,1),0),MATCH(VariaçõesDeEscritório[[#Headers],[Jan]],PlanoDeEscritório[#Headers],0))-INDEX(RealEscritório[],MATCH(INDEX(VariaçõesDeEscritório[],ROW()-ROW(VariaçõesDeEscritório[[#Headers],[Jan]]),1),INDEX(PlanoDeEscritório[],,1),0),MATCH(VariaçõesDeEscritório[[#Headers],[Jan]],RealEscritório[#Headers],0))","v":{"v":-56,"d":"-56.00 €"}},{"$f":"INDEX(PlanoDeEscritório[],MATCH(INDEX(VariaçõesDeEscritório[],ROW()-ROW(VariaçõesDeEscritório[[#Headers],[Fev]]),1),INDEX(PlanoDeEscritório[],,1),0),MATCH(VariaçõesDeEscritório[[#Headers],[Fev]],PlanoDeEscritório[#Headers],0))-INDEX(RealEscritório[],MATCH(INDEX(VariaçõesDeEscritório[],ROW()-ROW(VariaçõesDeEscritório[[#Headers],[Fev]]),1),INDEX(PlanoDeEscritório[],,1),0),MATCH(VariaçõesDeEscritório[[#Headers],[Fev]],RealEscritório[#Headers],0))","v":{"v":58,"d":"58.00 €"}},{"$f":"INDEX(PlanoDeEscritório[],MATCH(INDEX(VariaçõesDeEscritório[],ROW()-ROW(VariaçõesDeEscritório[[#Headers],[Mar]]),1),INDEX(PlanoDeEscritório[],,1),0),MATCH(VariaçõesDeEscritório[[#Headers],[Mar]],PlanoDeEscritório[#Headers],0))-INDEX(RealEscritório[],MATCH(INDEX(VariaçõesDeEscritório[],ROW()-ROW(VariaçõesDeEscritório[[#Headers],[Mar]]),1),INDEX(PlanoDeEscritório[],,1),0),MATCH(VariaçõesDeEscritório[[#Headers],[Mar]],RealEscritório[#Headers],0))","v":{"v":40,"d":"40.00 €"}},{"$f":"INDEX(PlanoDeEscritório[],MATCH(INDEX(VariaçõesDeEscritório[],ROW()-ROW(VariaçõesDeEscritório[[#Headers],[Abr]]),1),INDEX(PlanoDeEscritório[],,1),0),MATCH(VariaçõesDeEscritório[[#Headers],[Abr]],PlanoDeEscritório[#Headers],0))-INDEX(RealEscritório[],MATCH(INDEX(VariaçõesDeEscritório[],ROW()-ROW(VariaçõesDeEscritório[[#Headers],[Abr]]),1),INDEX(PlanoDeEscritório[],,1),0),MATCH(VariaçõesDeEscritório[[#Headers],[Abr]],RealEscritório[#Headers],0))","v":{"v":-21,"d":"-21.00 €"}},{"$f":"INDEX(PlanoDeEscritório[],MATCH(INDEX(VariaçõesDeEscritório[],ROW()-ROW(VariaçõesDeEscritório[[#Headers],[Mai]]),1),INDEX(PlanoDeEscritório[],,1),0),MATCH(VariaçõesDeEscritório[[#Headers],[Mai]],PlanoDeEscritório[#Headers],0))-INDEX(RealEscritório[],MATCH(INDEX(VariaçõesDeEscritório[],ROW()-ROW(VariaçõesDeEscritório[[#Headers],[Mai]]),1),INDEX(PlanoDeEscritório[],,1),0),MATCH(VariaçõesDeEscritório[[#Headers],[Mai]],RealEscritório[#Headers],0))","v":{"v":-56,"d":"-56.00 €"}},{"$f":"INDEX(PlanoDeEscritório[],MATCH(INDEX(VariaçõesDeEscritório[],ROW()-ROW(VariaçõesDeEscritório[[#Headers],[Jun]]),1),INDEX(PlanoDeEscritório[],,1),0),MATCH(VariaçõesDeEscritório[[#Headers],[Jun]],PlanoDeEscritório[#Headers],0))-INDEX(RealEscritório[],MATCH(INDEX(VariaçõesDeEscritório[],ROW()-ROW(VariaçõesDeEscritório[[#Headers],[Jun]]),1),INDEX(PlanoDeEscritório[],,1),0),MATCH(VariaçõesDeEscritório[[#Headers],[Jun]],RealEscritório[#Headers],0))","v":{"v":-40,"d":"-40.00 €"}},{"$f":"INDEX(PlanoDeEscritório[],MATCH(INDEX(VariaçõesDeEscritório[],ROW()-ROW(VariaçõesDeEscritório[[#Headers],[Jul]]),1),INDEX(PlanoDeEscritório[],,1),0),MATCH(VariaçõesDeEscritório[[#Headers],[Jul]],PlanoDeEscritório[#Headers],0))-INDEX(RealEscritório[],MATCH(INDEX(VariaçõesDeEscritório[],ROW()-ROW(VariaçõesDeEscritório[[#Headers],[Jul]]),1),INDEX(PlanoDeEscritório[],,1),0),MATCH(VariaçõesDeEscritório[[#Headers],[Jul]],RealEscritório[#Headers],0))","v":{"v":200,"d":"200.00 €"}},{"$f":"INDEX(PlanoDeEscritório[],MATCH(INDEX(VariaçõesDeEscritório[],ROW()-ROW(VariaçõesDeEscritório[[#Headers],[Ago]]),1),INDEX(PlanoDeEscritório[],,1),0),MATCH(VariaçõesDeEscritório[[#Headers],[Ago]],PlanoDeEscritório[#Headers],0))-INDEX(RealEscritório[],MATCH(INDEX(VariaçõesDeEscritório[],ROW()-ROW(VariaçõesDeEscritório[[#Headers],[Ago]]),1),INDEX(PlanoDeEscritório[],,1),0),MATCH(VariaçõesDeEscritório[[#Headers],[Ago]],RealEscritório[#Headers],0))","v":{"v":200,"d":"200.00 €"}},{"$f":"INDEX(PlanoDeEscritório[],MATCH(INDEX(VariaçõesDeEscritório[],ROW()-ROW(VariaçõesDeEscritório[[#Headers],[Set]]),1),INDEX(PlanoDeEscritório[],,1),0),MATCH(VariaçõesDeEscritório[[#Headers],[Set]],PlanoDeEscritório[#Headers],0))-INDEX(RealEscritório[],MATCH(INDEX(VariaçõesDeEscritório[],ROW()-ROW(VariaçõesDeEscritório[[#Headers],[Set]]),1),INDEX(PlanoDeEscritório[],,1),0),MATCH(VariaçõesDeEscritório[[#Headers],[Set]],RealEscritório[#Headers],0))","v":{"v":200,"d":"200.00 €"}},{"$f":"INDEX(PlanoDeEscritório[],MATCH(INDEX(VariaçõesDeEscritório[],ROW()-ROW(VariaçõesDeEscritório[[#Headers],[Out]]),1),INDEX(PlanoDeEscritório[],,1),0),MATCH(VariaçõesDeEscritório[[#Headers],[Out]],PlanoDeEscritório[#Headers],0))-INDEX(RealEscritório[],MATCH(INDEX(VariaçõesDeEscritório[],ROW()-ROW(VariaçõesDeEscritório[[#Headers],[Out]]),1),INDEX(PlanoDeEscritório[],,1),0),MATCH(VariaçõesDeEscritório[[#Headers],[Out]],RealEscritório[#Headers],0))","v":{"v":200,"d":"200.00 €"}},{"$f":"INDEX(PlanoDeEscritório[],MATCH(INDEX(VariaçõesDeEscritório[],ROW()-ROW(VariaçõesDeEscritório[[#Headers],[Nov]]),1),INDEX(PlanoDeEscritório[],,1),0),MATCH(VariaçõesDeEscritório[[#Headers],[Nov]],PlanoDeEscritório[#Headers],0))-INDEX(RealEscritório[],MATCH(INDEX(VariaçõesDeEscritório[],ROW()-ROW(VariaçõesDeEscritório[[#Headers],[Nov]]),1),INDEX(PlanoDeEscritório[],,1),0),MATCH(VariaçõesDeEscritório[[#Headers],[Nov]],RealEscritório[#Headers],0))","v":{"v":200,"d":"200.00 €"}},{"$f":"INDEX(PlanoDeEscritório[],MATCH(INDEX(VariaçõesDeEscritório[],ROW()-ROW(VariaçõesDeEscritório[[#Headers],[Dez]]),1),INDEX(PlanoDeEscritório[],,1),0),MATCH(VariaçõesDeEscritório[[#Headers],[Dez]],PlanoDeEscritório[#Headers],0))-INDEX(RealEscritório[],MATCH(INDEX(VariaçõesDeEscritório[],ROW()-ROW(VariaçõesDeEscritório[[#Headers],[Dez]]),1),INDEX(PlanoDeEscritório[],,1),0),MATCH(VariaçõesDeEscritório[[#Headers],[Dez]],RealEscritório[#Headers],0))","v":{"v":200,"d":"200.00 €"}},{"$f":"SUM(VariaçõesDeEscritório[[#This Row],[Jan]:[Dez]])","v":{"v":1125,"d":"1,125.00 €"}}]
[null,"Segurança",{"$f":"INDEX(PlanoDeEscritório[],MATCH(INDEX(VariaçõesDeEscritório[],ROW()-ROW(VariaçõesDeEscritório[[#Headers],[Jan]]),1),INDEX(PlanoDeEscritório[],,1),0),MATCH(VariaçõesDeEscritório[[#Headers],[Jan]],PlanoDeEscritório[#Headers],0))-INDEX(RealEscritório[],MATCH(INDEX(VariaçõesDeEscritório[],ROW()-ROW(VariaçõesDeEscritório[[#Headers],[Jan]]),1),INDEX(PlanoDeEscritório[],,1),0),MATCH(VariaçõesDeEscritório[[#Headers],[Jan]],RealEscritório[#Headers],0))","v":{"v":0,"d":"0.00 €"}},{"$f":"INDEX(PlanoDeEscritório[],MATCH(INDEX(VariaçõesDeEscritório[],ROW()-ROW(VariaçõesDeEscritório[[#Headers],[Fev]]),1),INDEX(PlanoDeEscritório[],,1),0),MATCH(VariaçõesDeEscritório[[#Headers],[Fev]],PlanoDeEscritório[#Headers],0))-INDEX(RealEscritório[],MATCH(INDEX(VariaçõesDeEscritório[],ROW()-ROW(VariaçõesDeEscritório[[#Headers],[Fev]]),1),INDEX(PlanoDeEscritório[],,1),0),MATCH(VariaçõesDeEscritório[[#Headers],[Fev]],RealEscritório[#Headers],0))","v":{"v":0,"d":"0.00 €"}},{"$f":"INDEX(PlanoDeEscritório[],MATCH(INDEX(VariaçõesDeEscritório[],ROW()-ROW(VariaçõesDeEscritório[[#Headers],[Mar]]),1),INDEX(PlanoDeEscritório[],,1),0),MATCH(VariaçõesDeEscritório[[#Headers],[Mar]],PlanoDeEscritório[#Headers],0))-INDEX(RealEscritório[],MATCH(INDEX(VariaçõesDeEscritório[],ROW()-ROW(VariaçõesDeEscritório[[#Headers],[Mar]]),1),INDEX(PlanoDeEscritório[],,1),0),MATCH(VariaçõesDeEscritório[[#Headers],[Mar]],RealEscritório[#Headers],0))","v":{"v":0,"d":"0.00 €"}},{"$f":"INDEX(PlanoDeEscritório[],MATCH(INDEX(VariaçõesDeEscritório[],ROW()-ROW(VariaçõesDeEscritório[[#Headers],[Abr]]),1),INDEX(PlanoDeEscritório[],,1),0),MATCH(VariaçõesDeEscritório[[#Headers],[Abr]],PlanoDeEscritório[#Headers],0))-INDEX(RealEscritório[],MATCH(INDEX(VariaçõesDeEscritório[],ROW()-ROW(VariaçõesDeEscritório[[#Headers],[Abr]]),1),INDEX(PlanoDeEscritório[],,1),0),MATCH(VariaçõesDeEscritório[[#Headers],[Abr]],RealEscritório[#Headers],0))","v":{"v":0,"d":"0.00 €"}},{"$f":"INDEX(PlanoDeEscritório[],MATCH(INDEX(VariaçõesDeEscritório[],ROW()-ROW(VariaçõesDeEscritório[[#Headers],[Mai]]),1),INDEX(PlanoDeEscritório[],,1),0),MATCH(VariaçõesDeEscritório[[#Headers],[Mai]],PlanoDeEscritório[#Headers],0))-INDEX(RealEscritório[],MATCH(INDEX(VariaçõesDeEscritório[],ROW()-ROW(VariaçõesDeEscritório[[#Headers],[Mai]]),1),INDEX(PlanoDeEscritório[],,1),0),MATCH(VariaçõesDeEscritório[[#Headers],[Mai]],RealEscritório[#Headers],0))","v":{"v":0,"d":"0.00 €"}},{"$f":"INDEX(PlanoDeEscritório[],MATCH(INDEX(VariaçõesDeEscritório[],ROW()-ROW(VariaçõesDeEscritório[[#Headers],[Jun]]),1),INDEX(PlanoDeEscritório[],,1),0),MATCH(VariaçõesDeEscritório[[#Headers],[Jun]],PlanoDeEscritório[#Headers],0))-INDEX(RealEscritório[],MATCH(INDEX(VariaçõesDeEscritório[],ROW()-ROW(VariaçõesDeEscritório[[#Headers],[Jun]]),1),INDEX(PlanoDeEscritório[],,1),0),MATCH(VariaçõesDeEscritório[[#Headers],[Jun]],RealEscritório[#Headers],0))","v":{"v":0,"d":"0.00 €"}},{"$f":"INDEX(PlanoDeEscritório[],MATCH(INDEX(VariaçõesDeEscritório[],ROW()-ROW(VariaçõesDeEscritório[[#Headers],[Jul]]),1),INDEX(PlanoDeEscritório[],,1),0),MATCH(VariaçõesDeEscritório[[#Headers],[Jul]],PlanoDeEscritório[#Headers],0))-INDEX(RealEscritório[],MATCH(INDEX(VariaçõesDeEscritório[],ROW()-ROW(VariaçõesDeEscritório[[#Headers],[Jul]]),1),INDEX(PlanoDeEscritório[],,1),0),MATCH(VariaçõesDeEscritório[[#Headers],[Jul]],RealEscritório[#Headers],0))","v":{"v":600,"d":"600.00 €"}},{"$f":"INDEX(PlanoDeEscritório[],MATCH(INDEX(VariaçõesDeEscritório[],ROW()-ROW(VariaçõesDeEscritório[[#Headers],[Ago]]),1),INDEX(PlanoDeEscritório[],,1),0),MATCH(VariaçõesDeEscritório[[#Headers],[Ago]],PlanoDeEscritório[#Headers],0))-INDEX(RealEscritório[],MATCH(INDEX(VariaçõesDeEscritório[],ROW()-ROW(VariaçõesDeEscritório[[#Headers],[Ago]]),1),INDEX(PlanoDeEscritório[],,1),0),MATCH(VariaçõesDeEscritório[[#Headers],[Ago]],RealEscritório[#Headers],0))","v":{"v":600,"d":"600.00 €"}},{"$f":"INDEX(PlanoDeEscritório[],MATCH(INDEX(VariaçõesDeEscritório[],ROW()-ROW(VariaçõesDeEscritório[[#Headers],[Set]]),1),INDEX(PlanoDeEscritório[],,1),0),MATCH(VariaçõesDeEscritório[[#Headers],[Set]],PlanoDeEscritório[#Headers],0))-INDEX(RealEscritório[],MATCH(INDEX(VariaçõesDeEscritório[],ROW()-ROW(VariaçõesDeEscritório[[#Headers],[Set]]),1),INDEX(PlanoDeEscritório[],,1),0),MATCH(VariaçõesDeEscritório[[#Headers],[Set]],RealEscritório[#Headers],0))","v":{"v":600,"d":"600.00 €"}},{"$f":"INDEX(PlanoDeEscritório[],MATCH(INDEX(VariaçõesDeEscritório[],ROW()-ROW(VariaçõesDeEscritório[[#Headers],[Out]]),1),INDEX(PlanoDeEscritório[],,1),0),MATCH(VariaçõesDeEscritório[[#Headers],[Out]],PlanoDeEscritório[#Headers],0))-INDEX(RealEscritório[],MATCH(INDEX(VariaçõesDeEscritório[],ROW()-ROW(VariaçõesDeEscritório[[#Headers],[Out]]),1),INDEX(PlanoDeEscritório[],,1),0),MATCH(VariaçõesDeEscritório[[#Headers],[Out]],RealEscritório[#Headers],0))","v":{"v":600,"d":"600.00 €"}},{"$f":"INDEX(PlanoDeEscritório[],MATCH(INDEX(VariaçõesDeEscritório[],ROW()-ROW(VariaçõesDeEscritório[[#Headers],[Nov]]),1),INDEX(PlanoDeEscritório[],,1),0),MATCH(VariaçõesDeEscritório[[#Headers],[Nov]],PlanoDeEscritório[#Headers],0))-INDEX(RealEscritório[],MATCH(INDEX(VariaçõesDeEscritório[],ROW()-ROW(VariaçõesDeEscritório[[#Headers],[Nov]]),1),INDEX(PlanoDeEscritório[],,1),0),MATCH(VariaçõesDeEscritório[[#Headers],[Nov]],RealEscritório[#Headers],0))","v":{"v":600,"d":"600.00 €"}},{"$f":"INDEX(PlanoDeEscritório[],MATCH(INDEX(VariaçõesDeEscritório[],ROW()-ROW(VariaçõesDeEscritório[[#Headers],[Dez]]),1),INDEX(PlanoDeEscritório[],,1),0),MATCH(VariaçõesDeEscritório[[#Headers],[Dez]],PlanoDeEscritório[#Headers],0))-INDEX(RealEscritório[],MATCH(INDEX(VariaçõesDeEscritório[],ROW()-ROW(VariaçõesDeEscritório[[#Headers],[Dez]]),1),INDEX(PlanoDeEscritório[],,1),0),MATCH(VariaçõesDeEscritório[[#Headers],[Dez]],RealEscritório[#Headers],0))","v":{"v":600,"d":"600.00 €"}},{"$f":"SUM(VariaçõesDeEscritório[[#This Row],[Jan]:[Dez]])","v":{"v":3600,"d":"3,600.00 €"}}]
[null,"Subtotal",{"$f":"SUBTOTAL(109,VariaçõesDeEscritório[Jan])","v":{"v":-17,"d":"-17.00 €"}},{"$f":"SUBTOTAL(109,VariaçõesDeEscritório[Fev])","v":{"v":72,"d":"72.00 €"}},{"$f":"SUBTOTAL(109,VariaçõesDeEscritório[Mar])","v":{"v":78,"d":"78.00 €"}},{"$f":"SUBTOTAL(109,VariaçõesDeEscritório[Abr])","v":{"v":-141,"d":"-141.00 €"}},{"$f":"SUBTOTAL(109,VariaçõesDeEscritório[Mai])","v":{"v":-38,"d":"-38.00 €"}},{"$f":"SUBTOTAL(109,VariaçõesDeEscritório[Jun])","v":{"v":16,"d":"16.00 €"}},{"$f":"SUBTOTAL(109,VariaçõesDeEscritório[Jul])","v":{"v":11470,"d":"11,470.00 €"}},{"$f":"SUBTOTAL(109,VariaçõesDeEscritório[Ago])","v":{"v":11470,"d":"11,470.00 €"}},{"$f":"SUBTOTAL(109,VariaçõesDeEscritório[Set])","v":{"v":11470,"d":"11,470.00 €"}},{"$f":"SUBTOTAL(109,VariaçõesDeEscritório[Out])","v":{"v":11470,"d":"11,470.00 €"}},{"$f":"SUBTOTAL(109,VariaçõesDeEscritório[Nov])","v":{"v":11770,"d":"11,770.00 €"}},{"$f":"SUBTOTAL(109,VariaçõesDeEscritório[Dez])","v":{"v":11770,"d":"11,770.00 €"}},{"$f":"SUBTOTAL(109,VariaçõesDeEscritório[ANO])","v":{"v":69390,"d":"69,390.00 €"}}]
[]
["A Variação nos Custos de Marketing é calculada automaticamente na tabela Variações de Marketing a partir da célula à direita. A instrução seguinte está na célula A30.","Custos de Marketing","Jan","Fev","Mar","Abr","Mai","Jun","Jul","Ago","Set","Out","Nov","Dez","ANO"]
[null,"Alojamento do site",{"$f":"INDEX(PlanoDeMarketing[],MATCH(INDEX(VariaçõesDeMarketing[],ROW()-ROW(VariaçõesDeMarketing[[#Headers],[Jan]]),1),INDEX(PlanoDeMarketing[],,1),0),MATCH(VariaçõesDeMarketing[[#Headers],[Jan]],PlanoDeMarketing[#Headers],0))-INDEX(RealMarketing[],MATCH(INDEX(VariaçõesDeMarketing[],ROW()-ROW(VariaçõesDeMarketing[[#Headers],[Jan]]),1),INDEX(PlanoDeMarketing[],,1),0),MATCH(VariaçõesDeMarketing[[#Headers],[Jan]],RealMarketing[#Headers],0))","v":{"v":0,"d":"0.00 €"}},{"$f":"INDEX(PlanoDeMarketing[],MATCH(INDEX(VariaçõesDeMarketing[],ROW()-ROW(VariaçõesDeMarketing[[#Headers],[Fev]]),1),INDEX(PlanoDeMarketing[],,1),0),MATCH(VariaçõesDeMarketing[[#Headers],[Fev]],PlanoDeMarketing[#Headers],0))-INDEX(RealMarketing[],MATCH(INDEX(VariaçõesDeMarketing[],ROW()-ROW(VariaçõesDeMarketing[[#Headers],[Fev]]),1),INDEX(PlanoDeMarketing[],,1),0),MATCH(VariaçõesDeMarketing[[#Headers],[Fev]],RealMarketing[#Headers],0))","v":{"v":0,"d":"0.00 €"}},{"$f":"INDEX(PlanoDeMarketing[],MATCH(INDEX(VariaçõesDeMarketing[],ROW()-ROW(VariaçõesDeMarketing[[#Headers],[Mar]]),1),INDEX(PlanoDeMarketing[],,1),0),MATCH(VariaçõesDeMarketing[[#Headers],[Mar]],PlanoDeMarketing[#Headers],0))-INDEX(RealMarketing[],MATCH(INDEX(VariaçõesDeMarketing[],ROW()-ROW(VariaçõesDeMarketing[[#Headers],[Mar]]),1),INDEX(PlanoDeMarketing[],,1),0),MATCH(VariaçõesDeMarketing[[#Headers],[Mar]],RealMarketing[#Headers],0))","v":{"v":0,"d":"0.00 €"}},{"$f":"INDEX(PlanoDeMarketing[],MATCH(INDEX(VariaçõesDeMarketing[],ROW()-ROW(VariaçõesDeMarketing[[#Headers],[Abr]]),1),INDEX(PlanoDeMarketing[],,1),0),MATCH(VariaçõesDeMarketing[[#Headers],[Abr]],PlanoDeMarketing[#Headers],0))-INDEX(RealMarketing[],MATCH(INDEX(VariaçõesDeMarketing[],ROW()-ROW(VariaçõesDeMarketing[[#Headers],[Abr]]),1),INDEX(PlanoDeMarketing[],,1),0),MATCH(VariaçõesDeMarketing[[#Headers],[Abr]],RealMarketing[#Headers],0))","v":{"v":0,"d":"0.00 €"}},{"$f":"INDEX(PlanoDeMarketing[],MATCH(INDEX(VariaçõesDeMarketing[],ROW()-ROW(VariaçõesDeMarketing[[#Headers],[Mai]]),1),INDEX(PlanoDeMarketing[],,1),0),MATCH(VariaçõesDeMarketing[[#Headers],[Mai]],PlanoDeMarketing[#Headers],0))-INDEX(RealMarketing[],MATCH(INDEX(VariaçõesDeMarketing[],ROW()-ROW(VariaçõesDeMarketing[[#Headers],[Mai]]),1),INDEX(PlanoDeMarketing[],,1),0),MATCH(VariaçõesDeMarketing[[#Headers],[Mai]],RealMarketing[#Headers],0))","v":{"v":0,"d":"0.00 €"}},{"$f":"INDEX(PlanoDeMarketing[],MATCH(INDEX(VariaçõesDeMarketing[],ROW()-ROW(VariaçõesDeMarketing[[#Headers],[Jun]]),1),INDEX(PlanoDeMarketing[],,1),0),MATCH(VariaçõesDeMarketing[[#Headers],[Jun]],PlanoDeMarketing[#Headers],0))-INDEX(RealMarketing[],MATCH(INDEX(VariaçõesDeMarketing[],ROW()-ROW(VariaçõesDeMarketing[[#Headers],[Jun]]),1),INDEX(PlanoDeMarketing[],,1),0),MATCH(VariaçõesDeMarketing[[#Headers],[Jun]],RealMarketing[#Headers],0))","v":{"v":0,"d":"0.00 €"}},{"$f":"INDEX(PlanoDeMarketing[],MATCH(INDEX(VariaçõesDeMarketing[],ROW()-ROW(VariaçõesDeMarketing[[#Headers],[Jul]]),1),INDEX(PlanoDeMarketing[],,1),0),MATCH(VariaçõesDeMarketing[[#Headers],[Jul]],PlanoDeMarketing[#Headers],0))-INDEX(RealMarketing[],MATCH(INDEX(VariaçõesDeMarketing[],ROW()-ROW(VariaçõesDeMarketing[[#Headers],[Jul]]),1),INDEX(PlanoDeMarketing[],,1),0),MATCH(VariaçõesDeMarketing[[#Headers],[Jul]],RealMarketing[#Headers],0))","v":{"v":500,"d":"500.00 €"}},{"$f":"INDEX(PlanoDeMarketing[],MATCH(INDEX(VariaçõesDeMarketing[],ROW()-ROW(VariaçõesDeMarketing[[#Headers],[Ago]]),1),INDEX(PlanoDeMarketing[],,1),0),MATCH(VariaçõesDeMarketing[[#Headers],[Ago]],PlanoDeMarketing[#Headers],0))-INDEX(RealMarketing[],MATCH(INDEX(VariaçõesDeMarketing[],ROW()-ROW(VariaçõesDeMarketing[[#Headers],[Ago]]),1),INDEX(PlanoDeMarketing[],,1),0),MATCH(VariaçõesDeMarketing[[#Headers],[Ago]],RealMarketing[#Headers],0))","v":{"v":500,"d":"500.00 €"}},{"$f":"INDEX(PlanoDeMarketing[],MATCH(INDEX(VariaçõesDeMarketing[],ROW()-ROW(VariaçõesDeMarketing[[#Headers],[Set]]),1),INDEX(PlanoDeMarketing[],,1),0),MATCH(VariaçõesDeMarketing[[#Headers],[Set]],PlanoDeMarketing[#Headers],0))-INDEX(RealMarketing[],MATCH(INDEX(VariaçõesDeMarketing[],ROW()-ROW(VariaçõesDeMarketing[[#Headers],[Set]]),1),INDEX(PlanoDeMarketing[],,1),0),MATCH(VariaçõesDeMarketing[[#Headers],[Set]],RealMarketing[#Headers],0))","v":{"v":500,"d":"500.00 €"}},{"$f":"INDEX(PlanoDeMarketing[],MATCH(INDEX(VariaçõesDeMarketing[],ROW()-ROW(VariaçõesDeMarketing[[#Headers],[Out]]),1),INDEX(PlanoDeMarketing[],,1),0),MATCH(VariaçõesDeMarketing[[#Headers],[Out]],PlanoDeMarketing[#Headers],0))-INDEX(RealMarketing[],MATCH(INDEX(VariaçõesDeMarketing[],ROW()-ROW(VariaçõesDeMarketing[[#Headers],[Out]]),1),INDEX(PlanoDeMarketing[],,1),0),MATCH(VariaçõesDeMarketing[[#Headers],[Out]],RealMarketing[#Headers],0))","v":{"v":500,"d":"500.00 €"}},{"$f":"INDEX(PlanoDeMarketing[],MATCH(INDEX(VariaçõesDeMarketing[],ROW()-ROW(VariaçõesDeMarketing[[#Headers],[Nov]]),1),INDEX(PlanoDeMarketing[],,1),0),MATCH(VariaçõesDeMarketing[[#Headers],[Nov]],PlanoDeMarketing[#Headers],0))-INDEX(RealMarketing[],MATCH(INDEX(VariaçõesDeMarketing[],ROW()-ROW(VariaçõesDeMarketing[[#Headers],[Nov]]),1),INDEX(PlanoDeMarketing[],,1),0),MATCH(VariaçõesDeMarketing[[#Headers],[Nov]],RealMarketing[#Headers],0))","v":{"v":500,"d":"500.00 €"}},{"$f":"INDEX(PlanoDeMarketing[],MATCH(INDEX(VariaçõesDeMarketing[],ROW()-ROW(VariaçõesDeMarketing[[#Headers],[Dez]]),1),INDEX(PlanoDeMarketing[],,1),0),MATCH(VariaçõesDeMarketing[[#Headers],[Dez]],PlanoDeMarketing[#Headers],0))-INDEX(RealMarketing[],MATCH(INDEX(VariaçõesDeMarketing[],ROW()-ROW(VariaçõesDeMarketing[[#Headers],[Dez]]),1),INDEX(PlanoDeMarketing[],,1),0),MATCH(VariaçõesDeMarketing[[#Headers],[Dez]],RealMarketing[#Headers],0))","v":{"v":500,"d":"500.00 €"}},{"$f":"SUM(VariaçõesDeMarketing[[#This Row],[Jan]:[Dez]])","v":{"v":3000,"d":"3,000.00 €"}}]
[null,"Atualizações ao site",{"$f":"INDEX(PlanoDeMarketing[],MATCH(INDEX(VariaçõesDeMarketing[],ROW()-ROW(VariaçõesDeMarketing[[#Headers],[Jan]]),1),INDEX(PlanoDeMarketing[],,1),0),MATCH(VariaçõesDeMarketing[[#Headers],[Jan]],PlanoDeMarketing[#Headers],0))-INDEX(RealMarketing[],MATCH(INDEX(VariaçõesDeMarketing[],ROW()-ROW(VariaçõesDeMarketing[[#Headers],[Jan]]),1),INDEX(PlanoDeMarketing[],,1),0),MATCH(VariaçõesDeMarketing[[#Headers],[Jan]],RealMarketing[#Headers],0))","v":{"v":0,"d":"0.00 €"}},{"$f":"INDEX(PlanoDeMarketing[],MATCH(INDEX(VariaçõesDeMarketing[],ROW()-ROW(VariaçõesDeMarketing[[#Headers],[Fev]]),1),INDEX(PlanoDeMarketing[],,1),0),MATCH(VariaçõesDeMarketing[[#Headers],[Fev]],PlanoDeMarketing[#Headers],0))-INDEX(RealMarketing[],MATCH(INDEX(VariaçõesDeMarketing[],ROW()-ROW(VariaçõesDeMarketing[[#Headers],[Fev]]),1),INDEX(PlanoDeMarketing[],,1),0),MATCH(VariaçõesDeMarketing[[#Headers],[Fev]],RealMarketing[#Headers],0))","v":{"v":0,"d":"0.00 €"}},{"$f":"INDEX(PlanoDeMarketing[],MATCH(INDEX(VariaçõesDeMarketing[],ROW()-ROW(VariaçõesDeMarketing[[#Headers],[Mar]]),1),INDEX(PlanoDeMarketing[],,1),0),MATCH(VariaçõesDeMarketing[[#Headers],[Mar]],PlanoDeMarketing[#Headers],0))-INDEX(RealMarketing[],MATCH(INDEX(VariaçõesDeMarketing[],ROW()-ROW(VariaçõesDeMarketing[[#Headers],[Mar]]),1),INDEX(PlanoDeMarketing[],,1),0),MATCH(VariaçõesDeMarketing[[#Headers],[Mar]],RealMarketing[#Headers],0))","v":{"v":0,"d":"0.00 €"}},{"$f":"INDEX(PlanoDeMarketing[],MATCH(INDEX(VariaçõesDeMarketing[],ROW()-ROW(VariaçõesDeMarketing[[#Headers],[Abr]]),1),INDEX(PlanoDeMarketing[],,1),0),MATCH(VariaçõesDeMarketing[[#Headers],[Abr]],PlanoDeMarketing[#Headers],0))-INDEX(RealMarketing[],MATCH(INDEX(VariaçõesDeMarketing[],ROW()-ROW(VariaçõesDeMarketing[[#Headers],[Abr]]),1),INDEX(PlanoDeMarketing[],,1),0),MATCH(VariaçõesDeMarketing[[#Headers],[Abr]],RealMarketing[#Headers],0))","v":{"v":0,"d":"0.00 €"}},{"$f":"INDEX(PlanoDeMarketing[],MATCH(INDEX(VariaçõesDeMarketing[],ROW()-ROW(VariaçõesDeMarketing[[#Headers],[Mai]]),1),INDEX(PlanoDeMarketing[],,1),0),MATCH(VariaçõesDeMarketing[[#Headers],[Mai]],PlanoDeMarketing[#Headers],0))-INDEX(RealMarketing[],MATCH(INDEX(VariaçõesDeMarketing[],ROW()-ROW(VariaçõesDeMarketing[[#Headers],[Mai]]),1),INDEX(PlanoDeMarketing[],,1),0),MATCH(VariaçõesDeMarketing[[#Headers],[Mai]],RealMarketing[#Headers],0))","v":{"v":0,"d":"0.00 €"}},{"$f":"INDEX(PlanoDeMarketing[],MATCH(INDEX(VariaçõesDeMarketing[],ROW()-ROW(VariaçõesDeMarketing[[#Headers],[Jun]]),1),INDEX(PlanoDeMarketing[],,1),0),MATCH(VariaçõesDeMarketing[[#Headers],[Jun]],PlanoDeMarketing[#Headers],0))-INDEX(RealMarketing[],MATCH(INDEX(VariaçõesDeMarketing[],ROW()-ROW(VariaçõesDeMarketing[[#Headers],[Jun]]),1),INDEX(PlanoDeMarketing[],,1),0),MATCH(VariaçõesDeMarketing[[#Headers],[Jun]],RealMarketing[#Headers],0))","v":{"v":-500,"d":"-500.00 €"}},{"$f":"INDEX(PlanoDeMarketing[],MATCH(INDEX(VariaçõesDeMarketing[],ROW()-ROW(VariaçõesDeMarketing[[#Headers],[Jul]]),1),INDEX(PlanoDeMarketing[],,1),0),MATCH(VariaçõesDeMarketing[[#Headers],[Jul]],PlanoDeMarketing[#Headers],0))-INDEX(RealMarketing[],MATCH(INDEX(VariaçõesDeMarketing[],ROW()-ROW(VariaçõesDeMarketing[[#Headers],[Jul]]),1),INDEX(PlanoDeMarketing[],,1),0),MATCH(VariaçõesDeMarketing[[#Headers],[Jul]],RealMarketing[#Headers],0))","v":{"v":200,"d":"200.00 €"}},{"$f":"INDEX(PlanoDeMarketing[],MATCH(INDEX(VariaçõesDeMarketing[],ROW()-ROW(VariaçõesDeMarketing[[#Headers],[Ago]]),1),INDEX(PlanoDeMarketing[],,1),0),MATCH(VariaçõesDeMarketing[[#Headers],[Ago]],PlanoDeMarketing[#Headers],0))-INDEX(RealMarketing[],MATCH(INDEX(VariaçõesDeMarketing[],ROW()-ROW(VariaçõesDeMarketing[[#Headers],[Ago]]),1),INDEX(PlanoDeMarketing[],,1),0),MATCH(VariaçõesDeMarketing[[#Headers],[Ago]],RealMarketing[#Headers],0))","v":{"v":200,"d":"200.00 €"}},{"$f":"INDEX(PlanoDeMarketing[],MATCH(INDEX(VariaçõesDeMarketing[],ROW()-ROW(VariaçõesDeMarketing[[#Headers],[Set]]),1),INDEX(PlanoDeMarketing[],,1),0),MATCH(VariaçõesDeMarketing[[#Headers],[Set]],PlanoDeMarketing[#Headers],0))-INDEX(RealMarketing[],MATCH(INDEX(VariaçõesDeMarketing[],ROW()-ROW(VariaçõesDeMarketing[[#Headers],[Set]]),1),INDEX(PlanoDeMarketing[],,1),0),MATCH(VariaçõesDeMarketing[[#Headers],[Set]],RealMarketing[#Headers],0))","v":{"v":200,"d":"200.00 €"}},{"$f":"INDEX(PlanoDeMarketing[],MATCH(INDEX(VariaçõesDeMarketing[],ROW()-ROW(VariaçõesDeMarketing[[#Headers],[Out]]),1),INDEX(PlanoDeMarketing[],,1),0),MATCH(VariaçõesDeMarketing[[#Headers],[Out]],PlanoDeMarketing[#Headers],0))-INDEX(RealMarketing[],MATCH(INDEX(VariaçõesDeMarketing[],ROW()-ROW(VariaçõesDeMarketing[[#Headers],[Out]]),1),INDEX(PlanoDeMarketing[],,1),0),MATCH(VariaçõesDeMarketing[[#Headers],[Out]],RealMarketing[#Headers],0))","v":{"v":200,"d":"200.00 €"}},{"$f":"INDEX(PlanoDeMarketing[],MATCH(INDEX(VariaçõesDeMarketing[],ROW()-ROW(VariaçõesDeMarketing[[#Headers],[Nov]]),1),INDEX(PlanoDeMarketing[],,1),0),MATCH(VariaçõesDeMarketing[[#Headers],[Nov]],PlanoDeMarketing[#Headers],0))-INDEX(RealMarketing[],MATCH(INDEX(VariaçõesDeMarketing[],ROW()-ROW(VariaçõesDeMarketing[[#Headers],[Nov]]),1),INDEX(PlanoDeMarketing[],,1),0),MATCH(VariaçõesDeMarketing[[#Headers],[Nov]],RealMarketing[#Headers],0))","v":{"v":200,"d":"200.00 €"}},{"$f":"INDEX(PlanoDeMarketing[],MATCH(INDEX(VariaçõesDeMarketing[],ROW()-ROW(VariaçõesDeMarketing[[#Headers],[Dez]]),1),INDEX(PlanoDeMarketing[],,1),0),MATCH(VariaçõesDeMarketing[[#Headers],[Dez]],PlanoDeMarketing[#Headers],0))-INDEX(RealMarketing[],MATCH(INDEX(VariaçõesDeMarketing[],ROW()-ROW(VariaçõesDeMarketing[[#Headers],[Dez]]),1),INDEX(PlanoDeMarketing[],,1),0),MATCH(VariaçõesDeMarketing[[#Headers],[Dez]],RealMarketing[#Headers],0))","v":{"v":1000,"d":"1,000.00 €"}},{"$f":"SUM(VariaçõesDeMarketing[[#This Row],[Jan]:[Dez]])","v":{"v":1500,"d":"1,500.00 €"}}]
[null,"Preparação de materiais de anúncio",{"$f":"INDEX(PlanoDeMarketing[],MATCH(INDEX(VariaçõesDeMarketing[],ROW()-ROW(VariaçõesDeMarketing[[#Headers],[Jan]]),1),INDEX(PlanoDeMarketing[],,1),0),MATCH(VariaçõesDeMarketing[[#Headers],[Jan]],PlanoDeMarketing[#Headers],0))-INDEX(RealMarketing[],MATCH(INDEX(VariaçõesDeMarketing[],ROW()-ROW(VariaçõesDeMarketing[[#Headers],[Jan]]),1),INDEX(PlanoDeMarketing[],,1),0),MATCH(VariaçõesDeMarketing[[#Headers],[Jan]],RealMarketing[#Headers],0))","v":{"v":200,"d":"200.00 €"}},{"$f":"INDEX(PlanoDeMarketing[],MATCH(INDEX(VariaçõesDeMarketing[],ROW()-ROW(VariaçõesDeMarketing[[#Headers],[Fev]]),1),INDEX(PlanoDeMarketing[],,1),0),MATCH(VariaçõesDeMarketing[[#Headers],[Fev]],PlanoDeMarketing[#Headers],0))-INDEX(RealMarketing[],MATCH(INDEX(VariaçõesDeMarketing[],ROW()-ROW(VariaçõesDeMarketing[[#Headers],[Fev]]),1),INDEX(PlanoDeMarketing[],,1),0),MATCH(VariaçõesDeMarketing[[#Headers],[Fev]],RealMarketing[#Headers],0))","v":{"v":0,"d":"0.00 €"}},{"$f":"INDEX(PlanoDeMarketing[],MATCH(INDEX(VariaçõesDeMarketing[],ROW()-ROW(VariaçõesDeMarketing[[#Headers],[Mar]]),1),INDEX(PlanoDeMarketing[],,1),0),MATCH(VariaçõesDeMarketing[[#Headers],[Mar]],PlanoDeMarketing[#Headers],0))-INDEX(RealMarketing[],MATCH(INDEX(VariaçõesDeMarketing[],ROW()-ROW(VariaçõesDeMarketing[[#Headers],[Mar]]),1),INDEX(PlanoDeMarketing[],,1),0),MATCH(VariaçõesDeMarketing[[#Headers],[Mar]],RealMarketing[#Headers],0))","v":{"v":0,"d":"0.00 €"}},{"$f":"INDEX(PlanoDeMarketing[],MATCH(INDEX(VariaçõesDeMarketing[],ROW()-ROW(VariaçõesDeMarketing[[#Headers],[Abr]]),1),INDEX(PlanoDeMarketing[],,1),0),MATCH(VariaçõesDeMarketing[[#Headers],[Abr]],PlanoDeMarketing[#Headers],0))-INDEX(RealMarketing[],MATCH(INDEX(VariaçõesDeMarketing[],ROW()-ROW(VariaçõesDeMarketing[[#Headers],[Abr]]),1),INDEX(PlanoDeMarketing[],,1),0),MATCH(VariaçõesDeMarketing[[#Headers],[Abr]],RealMarketing[#Headers],0))","v":{"v":-500,"d":"-500.00 €"}},{"$f":"INDEX(PlanoDeMarketing[],MATCH(INDEX(VariaçõesDeMarketing[],ROW()-ROW(VariaçõesDeMarketing[[#Headers],[Mai]]),1),INDEX(PlanoDeMarketing[],,1),0),MATCH(VariaçõesDeMarketing[[#Headers],[Mai]],PlanoDeMarketing[#Headers],0))-INDEX(RealMarketing[],MATCH(INDEX(VariaçõesDeMarketing[],ROW()-ROW(VariaçõesDeMarketing[[#Headers],[Mai]]),1),INDEX(PlanoDeMarketing[],,1),0),MATCH(VariaçõesDeMarketing[[#Headers],[Mai]],RealMarketing[#Headers],0))","v":{"v":0,"d":"0.00 €"}},{"$f":"INDEX(PlanoDeMarketing[],MATCH(INDEX(VariaçõesDeMarketing[],ROW()-ROW(VariaçõesDeMarketing[[#Headers],[Jun]]),1),INDEX(PlanoDeMarketing[],,1),0),MATCH(VariaçõesDeMarketing[[#Headers],[Jun]],PlanoDeMarketing[#Headers],0))-INDEX(RealMarketing[],MATCH(INDEX(VariaçõesDeMarketing[],ROW()-ROW(VariaçõesDeMarketing[[#Headers],[Jun]]),1),INDEX(PlanoDeMarketing[],,1),0),MATCH(VariaçõesDeMarketing[[#Headers],[Jun]],RealMarketing[#Headers],0))","v":{"v":0,"d":"0.00 €"}},{"$f":"INDEX(PlanoDeMarketing[],MATCH(INDEX(VariaçõesDeMarketing[],ROW()-ROW(VariaçõesDeMarketing[[#Headers],[Jul]]),1),INDEX(PlanoDeMarketing[],,1),0),MATCH(VariaçõesDeMarketing[[#Headers],[Jul]],PlanoDeMarketing[#Headers],0))-INDEX(RealMarketing[],MATCH(INDEX(VariaçõesDeMarketing[],ROW()-ROW(VariaçõesDeMarketing[[#Headers],[Jul]]),1),INDEX(PlanoDeMarketing[],,1),0),MATCH(VariaçõesDeMarketing[[#Headers],[Jul]],RealMarketing[#Headers],0))","v":{"v":5000,"d":"5,000.00 €"}},{"$f":"INDEX(PlanoDeMarketing[],MATCH(INDEX(VariaçõesDeMarketing[],ROW()-ROW(VariaçõesDeMarketing[[#Headers],[Ago]]),1),INDEX(PlanoDeMarketing[],,1),0),MATCH(VariaçõesDeMarketing[[#Headers],[Ago]],PlanoDeMarketing[#Headers],0))-INDEX(RealMarketing[],MATCH(INDEX(VariaçõesDeMarketing[],ROW()-ROW(VariaçõesDeMarketing[[#Headers],[Ago]]),1),INDEX(PlanoDeMarketing[],,1),0),MATCH(VariaçõesDeMarketing[[#Headers],[Ago]],RealMarketing[#Headers],0))","v":{"v":0,"d":"0.00 €"}},{"$f":"INDEX(PlanoDeMarketing[],MATCH(INDEX(VariaçõesDeMarketing[],ROW()-ROW(VariaçõesDeMarketing[[#Headers],[Set]]),1),INDEX(PlanoDeMarketing[],,1),0),MATCH(VariaçõesDeMarketing[[#Headers],[Set]],PlanoDeMarketing[#Headers],0))-INDEX(RealMarketing[],MATCH(INDEX(VariaçõesDeMarketing[],ROW()-ROW(VariaçõesDeMarketing[[#Headers],[Set]]),1),INDEX(PlanoDeMarketing[],,1),0),MATCH(VariaçõesDeMarketing[[#Headers],[Set]],RealMarketing[#Headers],0))","v":{"v":0,"d":"0.00 €"}},{"$f":"INDEX(PlanoDeMarketing[],MATCH(INDEX(VariaçõesDeMarketing[],ROW()-ROW(VariaçõesDeMarketing[[#Headers],[Out]]),1),INDEX(PlanoDeMarketing[],,1),0),MATCH(VariaçõesDeMarketing[[#Headers],[Out]],PlanoDeMarketing[#Headers],0))-INDEX(RealMarketing[],MATCH(INDEX(VariaçõesDeMarketing[],ROW()-ROW(VariaçõesDeMarketing[[#Headers],[Out]]),1),INDEX(PlanoDeMarketing[],,1),0),MATCH(VariaçõesDeMarketing[[#Headers],[Out]],RealMarketing[#Headers],0))","v":{"v":5000,"d":"5,000.00 €"}},{"$f":"INDEX(PlanoDeMarketing[],MATCH(INDEX(VariaçõesDeMarketing[],ROW()-ROW(VariaçõesDeMarketing[[#Headers],[Nov]]),1),INDEX(PlanoDeMarketing[],,1),0),MATCH(VariaçõesDeMarketing[[#Headers],[Nov]],PlanoDeMarketing[#Headers],0))-INDEX(RealMarketing[],MATCH(INDEX(VariaçõesDeMarketing[],ROW()-ROW(VariaçõesDeMarketing[[#Headers],[Nov]]),1),INDEX(PlanoDeMarketing[],,1),0),MATCH(VariaçõesDeMarketing[[#Headers],[Nov]],RealMarketing[#Headers],0))","v":{"v":0,"d":"0.00 €"}},{"$f":"INDEX(PlanoDeMarketing[],MATCH(INDEX(VariaçõesDeMarketing[],ROW()-ROW(VariaçõesDeMarketing[[#Headers],[Dez]]),1),INDEX(PlanoDeMarketing[],,1),0),MATCH(VariaçõesDeMarketing[[#Headers],[Dez]],PlanoDeMarketing[#Headers],0))-INDEX(RealMarketing[],MATCH(INDEX(VariaçõesDeMarketing[],ROW()-ROW(VariaçõesDeMarketing[[#Headers],[Dez]]),1),INDEX(PlanoDeMarketing[],,1),0),MATCH(VariaçõesDeMarketing[[#Headers],[Dez]],RealMarketing[#Headers],0))","v":{"v":0,"d":"0.00 €"}},{"$f":"SUM(VariaçõesDeMarketing[[#This Row],[Jan]:[Dez]])","v":{"v":9700,"d":"9,700.00 €"}}]
[null,"Impressão de materiais de anúncio",{"$f":"INDEX(PlanoDeMarketing[],MATCH(INDEX(VariaçõesDeMarketing[],ROW()-ROW(VariaçõesDeMarketing[[#Headers],[Jan]]),1),INDEX(PlanoDeMarketing[],,1),0),MATCH(VariaçõesDeMarketing[[#Headers],[Jan]],PlanoDeMarketing[#Headers],0))-INDEX(RealMarketing[],MATCH(INDEX(VariaçõesDeMarketing[],ROW()-ROW(VariaçõesDeMarketing[[#Headers],[Jan]]),1),INDEX(PlanoDeMarketing[],,1),0),MATCH(VariaçõesDeMarketing[[#Headers],[Jan]],RealMarketing[#Headers],0))","v":{"v":100,"d":"100.00 €"}},{"$f":"INDEX(PlanoDeMarketing[],MATCH(INDEX(VariaçõesDeMarketing[],ROW()-ROW(VariaçõesDeMarketing[[#Headers],[Fev]]),1),INDEX(PlanoDeMarketing[],,1),0),MATCH(VariaçõesDeMarketing[[#Headers],[Fev]],PlanoDeMarketing[#Headers],0))-INDEX(RealMarketing[],MATCH(INDEX(VariaçõesDeMarketing[],ROW()-ROW(VariaçõesDeMarketing[[#Headers],[Fev]]),1),INDEX(PlanoDeMarketing[],,1),0),MATCH(VariaçõesDeMarketing[[#Headers],[Fev]],RealMarketing[#Headers],0))","v":{"v":-300,"d":"-300.00 €"}},{"$f":"INDEX(PlanoDeMarketing[],MATCH(INDEX(VariaçõesDeMarketing[],ROW()-ROW(VariaçõesDeMarketing[[#Headers],[Mar]]),1),INDEX(PlanoDeMarketing[],,1),0),MATCH(VariaçõesDeMarketing[[#Headers],[Mar]],PlanoDeMarketing[#Headers],0))-INDEX(RealMarketing[],MATCH(INDEX(VariaçõesDeMarketing[],ROW()-ROW(VariaçõesDeMarketing[[#Headers],[Mar]]),1),INDEX(PlanoDeMarketing[],,1),0),MATCH(VariaçõesDeMarketing[[#Headers],[Mar]],RealMarketing[#Headers],0))","v":{"v":100,"d":"100.00 €"}},{"$f":"INDEX(PlanoDeMarketing[],MATCH(INDEX(VariaçõesDeMarketing[],ROW()-ROW(VariaçõesDeMarketing[[#Headers],[Abr]]),1),INDEX(PlanoDeMarketing[],,1),0),MATCH(VariaçõesDeMarketing[[#Headers],[Abr]],PlanoDeMarketing[#Headers],0))-INDEX(RealMarketing[],MATCH(INDEX(VariaçõesDeMarketing[],ROW()-ROW(VariaçõesDeMarketing[[#Headers],[Abr]]),1),INDEX(PlanoDeMarketing[],,1),0),MATCH(VariaçõesDeMarketing[[#Headers],[Abr]],RealMarketing[#Headers],0))","v":{"v":100,"d":"100.00 €"}},{"$f":"INDEX(PlanoDeMarketing[],MATCH(INDEX(VariaçõesDeMarketing[],ROW()-ROW(VariaçõesDeMarketing[[#Headers],[Mai]]),1),INDEX(PlanoDeMarketing[],,1),0),MATCH(VariaçõesDeMarketing[[#Headers],[Mai]],PlanoDeMarketing[#Headers],0))-INDEX(RealMarketing[],MATCH(INDEX(VariaçõesDeMarketing[],ROW()-ROW(VariaçõesDeMarketing[[#Headers],[Mai]]),1),INDEX(PlanoDeMarketing[],,1),0),MATCH(VariaçõesDeMarketing[[#Headers],[Mai]],RealMarketing[#Headers],0))","v":{"v":-400,"d":"-400.00 €"}},{"$f":"INDEX(PlanoDeMarketing[],MATCH(INDEX(VariaçõesDeMarketing[],ROW()-ROW(VariaçõesDeMarketing[[#Headers],[Jun]]),1),INDEX(PlanoDeMarketing[],,1),0),MATCH(VariaçõesDeMarketing[[#Headers],[Jun]],PlanoDeMarketing[#Headers],0))-INDEX(RealMarketing[],MATCH(INDEX(VariaçõesDeMarketing[],ROW()-ROW(VariaçõesDeMarketing[[#Headers],[Jun]]),1),INDEX(PlanoDeMarketing[],,1),0),MATCH(VariaçõesDeMarketing[[#Headers],[Jun]],RealMarketing[#Headers],0))","v":{"v":20,"d":"20.00 €"}},{"$f":"INDEX(PlanoDeMarketing[],MATCH(INDEX(VariaçõesDeMarketing[],ROW()-ROW(VariaçõesDeMarketing[[#Headers],[Jul]]),1),INDEX(PlanoDeMarketing[],,1),0),MATCH(VariaçõesDeMarketing[[#Headers],[Jul]],PlanoDeMarketing[#Headers],0))-INDEX(RealMarketing[],MATCH(INDEX(VariaçõesDeMarketing[],ROW()-ROW(VariaçõesDeMarketing[[#Headers],[Jul]]),1),INDEX(PlanoDeMarketing[],,1),0),MATCH(VariaçõesDeMarketing[[#Headers],[Jul]],RealMarketing[#Headers],0))","v":{"v":200,"d":"200.00 €"}},{"$f":"INDEX(PlanoDeMarketing[],MATCH(INDEX(VariaçõesDeMarketing[],ROW()-ROW(VariaçõesDeMarketing[[#Headers],[Ago]]),1),INDEX(PlanoDeMarketing[],,1),0),MATCH(VariaçõesDeMarketing[[#Headers],[Ago]],PlanoDeMarketing[#Headers],0))-INDEX(RealMarketing[],MATCH(INDEX(VariaçõesDeMarketing[],ROW()-ROW(VariaçõesDeMarketing[[#Headers],[Ago]]),1),INDEX(PlanoDeMarketing[],,1),0),MATCH(VariaçõesDeMarketing[[#Headers],[Ago]],RealMarketing[#Headers],0))","v":{"v":200,"d":"200.00 €"}},{"$f":"INDEX(PlanoDeMarketing[],MATCH(INDEX(VariaçõesDeMarketing[],ROW()-ROW(VariaçõesDeMarketing[[#Headers],[Set]]),1),INDEX(PlanoDeMarketing[],,1),0),MATCH(VariaçõesDeMarketing[[#Headers],[Set]],PlanoDeMarketing[#Headers],0))-INDEX(RealMarketing[],MATCH(INDEX(VariaçõesDeMarketing[],ROW()-ROW(VariaçõesDeMarketing[[#Headers],[Set]]),1),INDEX(PlanoDeMarketing[],,1),0),MATCH(VariaçõesDeMarketing[[#Headers],[Set]],RealMarketing[#Headers],0))","v":{"v":200,"d":"200.00 €"}},{"$f":"INDEX(PlanoDeMarketing[],MATCH(INDEX(VariaçõesDeMarketing[],ROW()-ROW(VariaçõesDeMarketing[[#Headers],[Out]]),1),INDEX(PlanoDeMarketing[],,1),0),MATCH(VariaçõesDeMarketing[[#Headers],[Out]],PlanoDeMarketing[#Headers],0))-INDEX(RealMarketing[],MATCH(INDEX(VariaçõesDeMarketing[],ROW()-ROW(VariaçõesDeMarketing[[#Headers],[Out]]),1),INDEX(PlanoDeMarketing[],,1),0),MATCH(VariaçõesDeMarketing[[#Headers],[Out]],RealMarketing[#Headers],0))","v":{"v":200,"d":"200.00 €"}},{"$f":"INDEX(PlanoDeMarketing[],MATCH(INDEX(VariaçõesDeMarketing[],ROW()-ROW(VariaçõesDeMarketing[[#Headers],[Nov]]),1),INDEX(PlanoDeMarketing[],,1),0),MATCH(VariaçõesDeMarketing[[#Headers],[Nov]],PlanoDeMarketing[#Headers],0))-INDEX(RealMarketing[],MATCH(INDEX(VariaçõesDeMarketing[],ROW()-ROW(VariaçõesDeMarketing[[#Headers],[Nov]]),1),INDEX(PlanoDeMarketing[],,1),0),MATCH(VariaçõesDeMarketing[[#Headers],[Nov]],RealMarketing[#Headers],0))","v":{"v":200,"d":"200.00 €"}},{"$f":"INDEX(PlanoDeMarketing[],MATCH(INDEX(VariaçõesDeMarketing[],ROW()-ROW(VariaçõesDeMarketing[[#Headers],[Dez]]),1),INDEX(PlanoDeMarketing[],,1),0),MATCH(VariaçõesDeMarketing[[#Headers],[Dez]],PlanoDeMarketing[#Headers],0))-INDEX(RealMarketing[],MATCH(INDEX(VariaçõesDeMarketing[],ROW()-ROW(VariaçõesDeMarketing[[#Headers],[Dez]]),1),INDEX(PlanoDeMarketing[],,1),0),MATCH(VariaçõesDeMarketing[[#Headers],[Dez]],RealMarketing[#Headers],0))","v":{"v":200,"d":"200.00 €"}},{"$f":"SUM(VariaçõesDeMarketing[[#This Row],[Jan]:[Dez]])","v":{"v":820,"d":"820.00 €"}}]
[null,"Eventos de marketing",{"$f":"INDEX(PlanoDeMarketing[],MATCH(INDEX(VariaçõesDeMarketing[],ROW()-ROW(VariaçõesDeMarketing[[#Headers],[Jan]]),1),INDEX(PlanoDeMarketing[],,1),0),MATCH(VariaçõesDeMarketing[[#Headers],[Jan]],PlanoDeMarketing[#Headers],0))-INDEX(RealMarketing[],MATCH(INDEX(VariaçõesDeMarketing[],ROW()-ROW(VariaçõesDeMarketing[[#Headers],[Jan]]),1),INDEX(PlanoDeMarketing[],,1),0),MATCH(VariaçõesDeMarketing[[#Headers],[Jan]],RealMarketing[#Headers],0))","v":{"v":200,"d":"200.00 €"}},{"$f":"INDEX(PlanoDeMarketing[],MATCH(INDEX(VariaçõesDeMarketing[],ROW()-ROW(VariaçõesDeMarketing[[#Headers],[Fev]]),1),INDEX(PlanoDeMarketing[],,1),0),MATCH(VariaçõesDeMarketing[[#Headers],[Fev]],PlanoDeMarketing[#Headers],0))-INDEX(RealMarketing[],MATCH(INDEX(VariaçõesDeMarketing[],ROW()-ROW(VariaçõesDeMarketing[[#Headers],[Fev]]),1),INDEX(PlanoDeMarketing[],,1),0),MATCH(VariaçõesDeMarketing[[#Headers],[Fev]],RealMarketing[#Headers],0))","v":{"v":-200,"d":"-200.00 €"}},{"$f":"INDEX(PlanoDeMarketing[],MATCH(INDEX(VariaçõesDeMarketing[],ROW()-ROW(VariaçõesDeMarketing[[#Headers],[Mar]]),1),INDEX(PlanoDeMarketing[],,1),0),MATCH(VariaçõesDeMarketing[[#Headers],[Mar]],PlanoDeMarketing[#Headers],0))-INDEX(RealMarketing[],MATCH(INDEX(VariaçõesDeMarketing[],ROW()-ROW(VariaçõesDeMarketing[[#Headers],[Mar]]),1),INDEX(PlanoDeMarketing[],,1),0),MATCH(VariaçõesDeMarketing[[#Headers],[Mar]],RealMarketing[#Headers],0))","v":{"v":-200,"d":"-200.00 €"}},{"$f":"INDEX(PlanoDeMarketing[],MATCH(INDEX(VariaçõesDeMarketing[],ROW()-ROW(VariaçõesDeMarketing[[#Headers],[Abr]]),1),INDEX(PlanoDeMarketing[],,1),0),MATCH(VariaçõesDeMarketing[[#Headers],[Abr]],PlanoDeMarketing[#Headers],0))-INDEX(RealMarketing[],MATCH(INDEX(VariaçõesDeMarketing[],ROW()-ROW(VariaçõesDeMarketing[[#Headers],[Abr]]),1),INDEX(PlanoDeMarketing[],,1),0),MATCH(VariaçõesDeMarketing[[#Headers],[Abr]],RealMarketing[#Headers],0))","v":{"v":300,"d":"300.00 €"}},{"$f":"INDEX(PlanoDeMarketing[],MATCH(INDEX(VariaçõesDeMarketing[],ROW()-ROW(VariaçõesDeMarketing[[#Headers],[Mai]]),1),INDEX(PlanoDeMarketing[],,1),0),MATCH(VariaçõesDeMarketing[[#Headers],[Mai]],PlanoDeMarketing[#Headers],0))-INDEX(RealMarketing[],MATCH(INDEX(VariaçõesDeMarketing[],ROW()-ROW(VariaçõesDeMarketing[[#Headers],[Mai]]),1),INDEX(PlanoDeMarketing[],,1),0),MATCH(VariaçõesDeMarketing[[#Headers],[Mai]],RealMarketing[#Headers],0))","v":{"v":500,"d":"500.00 €"}},{"$f":"INDEX(PlanoDeMarketing[],MATCH(INDEX(VariaçõesDeMarketing[],ROW()-ROW(VariaçõesDeMarketing[[#Headers],[Jun]]),1),INDEX(PlanoDeMarketing[],,1),0),MATCH(VariaçõesDeMarketing[[#Headers],[Jun]],PlanoDeMarketing[#Headers],0))-INDEX(RealMarketing[],MATCH(INDEX(VariaçõesDeMarketing[],ROW()-ROW(VariaçõesDeMarketing[[#Headers],[Jun]]),1),INDEX(PlanoDeMarketing[],,1),0),MATCH(VariaçõesDeMarketing[[#Headers],[Jun]],RealMarketing[#Headers],0))","v":{"v":-300,"d":"-300.00 €"}},{"$f":"INDEX(PlanoDeMarketing[],MATCH(INDEX(VariaçõesDeMarketing[],ROW()-ROW(VariaçõesDeMarketing[[#Headers],[Jul]]),1),INDEX(PlanoDeMarketing[],,1),0),MATCH(VariaçõesDeMarketing[[#Headers],[Jul]],PlanoDeMarketing[#Headers],0))-INDEX(RealMarketing[],MATCH(INDEX(VariaçõesDeMarketing[],ROW()-ROW(VariaçõesDeMarketing[[#Headers],[Jul]]),1),INDEX(PlanoDeMarketing[],,1),0),MATCH(VariaçõesDeMarketing[[#Headers],[Jul]],RealMarketing[#Headers],0))","v":{"v":2000,"d":"2,000.00 €"}},{"$f":"INDEX(PlanoDeMarketing[],MATCH(INDEX(VariaçõesDeMarketing[],ROW()-ROW(VariaçõesDeMarketing[[#Headers],[Ago]]),1),INDEX(PlanoDeMarketing[],,1),0),MATCH(VariaçõesDeMarketing[[#Headers],[Ago]],PlanoDeMarketing[#Headers],0))-INDEX(RealMarketing[],MATCH(INDEX(VariaçõesDeMarketing[],ROW()-ROW(VariaçõesDeMarketing[[#Headers],[Ago]]),1),INDEX(PlanoDeMarketing[],,1),0),MATCH(VariaçõesDeMarketing[[#Headers],[Ago]],RealMarketing[#Headers],0))","v":{"v":5000,"d":"5,000.00 €"}},{"$f":"INDEX(PlanoDeMarketing[],MATCH(INDEX(VariaçõesDeMarketing[],ROW()-ROW(VariaçõesDeMarketing[[#Headers],[Set]]),1),INDEX(PlanoDeMarketing[],,1),0),MATCH(VariaçõesDeMarketing[[#Headers],[Set]],PlanoDeMarketing[#Headers],0))-INDEX(RealMarketing[],MATCH(INDEX(VariaçõesDeMarketing[],ROW()-ROW(VariaçõesDeMarketing[[#Headers],[Set]]),1),INDEX(PlanoDeMarketing[],,1),0),MATCH(VariaçõesDeMarketing[[#Headers],[Set]],RealMarketing[#Headers],0))","v":{"v":2000,"d":"2,000.00 €"}},{"$f":"INDEX(PlanoDeMarketing[],MATCH(INDEX(VariaçõesDeMarketing[],ROW()-ROW(VariaçõesDeMarketing[[#Headers],[Out]]),1),INDEX(PlanoDeMarketing[],,1),0),MATCH(VariaçõesDeMarketing[[#Headers],[Out]],PlanoDeMarketing[#Headers],0))-INDEX(RealMarketing[],MATCH(INDEX(VariaçõesDeMarketing[],ROW()-ROW(VariaçõesDeMarketing[[#Headers],[Out]]),1),INDEX(PlanoDeMarketing[],,1),0),MATCH(VariaçõesDeMarketing[[#Headers],[Out]],RealMarketing[#Headers],0))","v":{"v":2000,"d":"2,000.00 €"}},{"$f":"INDEX(PlanoDeMarketing[],MATCH(INDEX(VariaçõesDeMarketing[],ROW()-ROW(VariaçõesDeMarketing[[#Headers],[Nov]]),1),INDEX(PlanoDeMarketing[],,1),0),MATCH(VariaçõesDeMarketing[[#Headers],[Nov]],PlanoDeMarketing[#Headers],0))-INDEX(RealMarketing[],MATCH(INDEX(VariaçõesDeMarketing[],ROW()-ROW(VariaçõesDeMarketing[[#Headers],[Nov]]),1),INDEX(PlanoDeMarketing[],,1),0),MATCH(VariaçõesDeMarketing[[#Headers],[Nov]],RealMarketing[#Headers],0))","v":{"v":2000,"d":"2,000.00 €"}},{"$f":"INDEX(PlanoDeMarketing[],MATCH(INDEX(VariaçõesDeMarketing[],ROW()-ROW(VariaçõesDeMarketing[[#Headers],[Dez]]),1),INDEX(PlanoDeMarketing[],,1),0),MATCH(VariaçõesDeMarketing[[#Headers],[Dez]],PlanoDeMarketing[#Headers],0))-INDEX(RealMarketing[],MATCH(INDEX(VariaçõesDeMarketing[],ROW()-ROW(VariaçõesDeMarketing[[#Headers],[Dez]]),1),INDEX(PlanoDeMarketing[],,1),0),MATCH(VariaçõesDeMarketing[[#Headers],[Dez]],RealMarketing[#Headers],0))","v":{"v":5000,"d":"5,000.00 €"}},{"$f":"SUM(VariaçõesDeMarketing[[#This Row],[Jan]:[Dez]])","v":{"v":18300,"d":"18,300.00 €"}}]
[null,"Despesas diversas",{"$f":"INDEX(PlanoDeMarketing[],MATCH(INDEX(VariaçõesDeMarketing[],ROW()-ROW(VariaçõesDeMarketing[[#Headers],[Jan]]),1),INDEX(PlanoDeMarketing[],,1),0),MATCH(VariaçõesDeMarketing[[#Headers],[Jan]],PlanoDeMarketing[#Headers],0))-INDEX(RealMarketing[],MATCH(INDEX(VariaçõesDeMarketing[],ROW()-ROW(VariaçõesDeMarketing[[#Headers],[Jan]]),1),INDEX(PlanoDeMarketing[],,1),0),MATCH(VariaçõesDeMarketing[[#Headers],[Jan]],RealMarketing[#Headers],0))","v":{"v":55,"d":"55.00 €"}},{"$f":"INDEX(PlanoDeMarketing[],MATCH(INDEX(VariaçõesDeMarketing[],ROW()-ROW(VariaçõesDeMarketing[[#Headers],[Fev]]),1),INDEX(PlanoDeMarketing[],,1),0),MATCH(VariaçõesDeMarketing[[#Headers],[Fev]],PlanoDeMarketing[#Headers],0))-INDEX(RealMarketing[],MATCH(INDEX(VariaçõesDeMarketing[],ROW()-ROW(VariaçõesDeMarketing[[#Headers],[Fev]]),1),INDEX(PlanoDeMarketing[],,1),0),MATCH(VariaçõesDeMarketing[[#Headers],[Fev]],RealMarketing[#Headers],0))","v":{"v":44,"d":"44.00 €"}},{"$f":"INDEX(PlanoDeMarketing[],MATCH(INDEX(VariaçõesDeMarketing[],ROW()-ROW(VariaçõesDeMarketing[[#Headers],[Mar]]),1),INDEX(PlanoDeMarketing[],,1),0),MATCH(VariaçõesDeMarketing[[#Headers],[Mar]],PlanoDeMarketing[#Headers],0))-INDEX(RealMarketing[],MATCH(INDEX(VariaçõesDeMarketing[],ROW()-ROW(VariaçõesDeMarketing[[#Headers],[Mar]]),1),INDEX(PlanoDeMarketing[],,1),0),MATCH(VariaçõesDeMarketing[[#Headers],[Mar]],RealMarketing[#Headers],0))","v":{"v":77,"d":"77.00 €"}},{"$f":"INDEX(PlanoDeMarketing[],MATCH(INDEX(VariaçõesDeMarketing[],ROW()-ROW(VariaçõesDeMarketing[[#Headers],[Abr]]),1),INDEX(PlanoDeMarketing[],,1),0),MATCH(VariaçõesDeMarketing[[#Headers],[Abr]],PlanoDeMarketing[#Headers],0))-INDEX(RealMarketing[],MATCH(INDEX(VariaçõesDeMarketing[],ROW()-ROW(VariaçõesDeMarketing[[#Headers],[Abr]]),1),INDEX(PlanoDeMarketing[],,1),0),MATCH(VariaçõesDeMarketing[[#Headers],[Abr]],RealMarketing[#Headers],0))","v":{"v":-23,"d":"-23.00 €"}},{"$f":"INDEX(PlanoDeMarketing[],MATCH(INDEX(VariaçõesDeMarketing[],ROW()-ROW(VariaçõesDeMarketing[[#Headers],[Mai]]),1),INDEX(PlanoDeMarketing[],,1),0),MATCH(VariaçõesDeMarketing[[#Headers],[Mai]],PlanoDeMarketing[#Headers],0))-INDEX(RealMarketing[],MATCH(INDEX(VariaçõesDeMarketing[],ROW()-ROW(VariaçõesDeMarketing[[#Headers],[Mai]]),1),INDEX(PlanoDeMarketing[],,1),0),MATCH(VariaçõesDeMarketing[[#Headers],[Mai]],RealMarketing[#Headers],0))","v":{"v":13,"d":"13.00 €"}},{"$f":"INDEX(PlanoDeMarketing[],MATCH(INDEX(VariaçõesDeMarketing[],ROW()-ROW(VariaçõesDeMarketing[[#Headers],[Jun]]),1),INDEX(PlanoDeMarketing[],,1),0),MATCH(VariaçõesDeMarketing[[#Headers],[Jun]],PlanoDeMarketing[#Headers],0))-INDEX(RealMarketing[],MATCH(INDEX(VariaçõesDeMarketing[],ROW()-ROW(VariaçõesDeMarketing[[#Headers],[Jun]]),1),INDEX(PlanoDeMarketing[],,1),0),MATCH(VariaçõesDeMarketing[[#Headers],[Jun]],RealMarketing[#Headers],0))","v":{"v":-45,"d":"-45.00 €"}},{"$f":"INDEX(PlanoDeMarketing[],MATCH(INDEX(VariaçõesDeMarketing[],ROW()-ROW(VariaçõesDeMarketing[[#Headers],[Jul]]),1),INDEX(PlanoDeMarketing[],,1),0),MATCH(VariaçõesDeMarketing[[#Headers],[Jul]],PlanoDeMarketing[#Headers],0))-INDEX(RealMarketing[],MATCH(INDEX(VariaçõesDeMarketing[],ROW()-ROW(VariaçõesDeMarketing[[#Headers],[Jul]]),1),INDEX(PlanoDeMarketing[],,1),0),MATCH(VariaçõesDeMarketing[[#Headers],[Jul]],RealMarketing[#Headers],0))","v":{"v":200,"d":"200.00 €"}},{"$f":"INDEX(PlanoDeMarketing[],MATCH(INDEX(VariaçõesDeMarketing[],ROW()-ROW(VariaçõesDeMarketing[[#Headers],[Ago]]),1),INDEX(PlanoDeMarketing[],,1),0),MATCH(VariaçõesDeMarketing[[#Headers],[Ago]],PlanoDeMarketing[#Headers],0))-INDEX(RealMarketing[],MATCH(INDEX(VariaçõesDeMarketing[],ROW()-ROW(VariaçõesDeMarketing[[#Headers],[Ago]]),1),INDEX(PlanoDeMarketing[],,1),0),MATCH(VariaçõesDeMarketing[[#Headers],[Ago]],RealMarketing[#Headers],0))","v":{"v":200,"d":"200.00 €"}},{"$f":"INDEX(PlanoDeMarketing[],MATCH(INDEX(VariaçõesDeMarketing[],ROW()-ROW(VariaçõesDeMarketing[[#Headers],[Set]]),1),INDEX(PlanoDeMarketing[],,1),0),MATCH(VariaçõesDeMarketing[[#Headers],[Set]],PlanoDeMarketing[#Headers],0))-INDEX(RealMarketing[],MATCH(INDEX(VariaçõesDeMarketing[],ROW()-ROW(VariaçõesDeMarketing[[#Headers],[Set]]),1),INDEX(PlanoDeMarketing[],,1),0),MATCH(VariaçõesDeMarketing[[#Headers],[Set]],RealMarketing[#Headers],0))","v":{"v":200,"d":"200.00 €"}},{"$f":"INDEX(PlanoDeMarketing[],MATCH(INDEX(VariaçõesDeMarketing[],ROW()-ROW(VariaçõesDeMarketing[[#Headers],[Out]]),1),INDEX(PlanoDeMarketing[],,1),0),MATCH(VariaçõesDeMarketing[[#Headers],[Out]],PlanoDeMarketing[#Headers],0))-INDEX(RealMarketing[],MATCH(INDEX(VariaçõesDeMarketing[],ROW()-ROW(VariaçõesDeMarketing[[#Headers],[Out]]),1),INDEX(PlanoDeMarketing[],,1),0),MATCH(VariaçõesDeMarketing[[#Headers],[Out]],RealMarketing[#Headers],0))","v":{"v":200,"d":"200.00 €"}},{"$f":"INDEX(PlanoDeMarketing[],MATCH(INDEX(VariaçõesDeMarketing[],ROW()-ROW(VariaçõesDeMarketing[[#Headers],[Nov]]),1),INDEX(PlanoDeMarketing[],,1),0),MATCH(VariaçõesDeMarketing[[#Headers],[Nov]],PlanoDeMarketing[#Headers],0))-INDEX(RealMarketing[],MATCH(INDEX(VariaçõesDeMarketing[],ROW()-ROW(VariaçõesDeMarketing[[#Headers],[Nov]]),1),INDEX(PlanoDeMarketing[],,1),0),MATCH(VariaçõesDeMarketing[[#Headers],[Nov]],RealMarketing[#Headers],0))","v":{"v":200,"d":"200.00 €"}},{"$f":"INDEX(PlanoDeMarketing[],MATCH(INDEX(VariaçõesDeMarketing[],ROW()-ROW(VariaçõesDeMarketing[[#Headers],[Dez]]),1),INDEX(PlanoDeMarketing[],,1),0),MATCH(VariaçõesDeMarketing[[#Headers],[Dez]],PlanoDeMarketing[#Headers],0))-INDEX(RealMarketing[],MATCH(INDEX(VariaçõesDeMarketing[],ROW()-ROW(VariaçõesDeMarketing[[#Headers],[Dez]]),1),INDEX(PlanoDeMarketing[],,1),0),MATCH(VariaçõesDeMarketing[[#Headers],[Dez]],RealMarketing[#Headers],0))","v":{"v":200,"d":"200.00 €"}},{"$f":"SUM(VariaçõesDeMarketing[[#This Row],[Jan]:[Dez]])","v":{"v":1321,"d":"1,321.00 €"}}]
[null,"Subtotal",{"$f":"SUBTOTAL(109,VariaçõesDeMarketing[Jan])","v":{"v":555,"d":"555.00 €"}},{"$f":"SUBTOTAL(109,VariaçõesDeMarketing[Fev])","v":{"v":-456,"d":"-456.00 €"}},{"$f":"SUBTOTAL(109,VariaçõesDeMarketing[Mar])","v":{"v":-23,"d":"-23.00 €"}},{"$f":"SUBTOTAL(109,VariaçõesDeMarketing[Abr])","v":{"v":-123,"d":"-123.00 €"}},{"$f":"SUBTOTAL(109,VariaçõesDeMarketing[Mai])","v":{"v":113,"d":"113.00 €"}},{"$f":"SUBTOTAL(109,VariaçõesDeMarketing[Jun])","v":{"v":-825,"d":"-825.00 €"}},{"$f":"SUBTOTAL(109,VariaçõesDeMarketing[Jul])","v":{"v":8100,"d":"8,100.00 €"}},{"$f":"SUBTOTAL(109,VariaçõesDeMarketing[Ago])","v":{"v":6100,"d":"6,100.00 €"}},{"$f":"SUBTOTAL(109,VariaçõesDeMarketing[Set])","v":{"v":3100,"d":"3,100.00 €"}},{"$f":"SUBTOTAL(109,VariaçõesDeMarketing[Out])","v":{"v":8100,"d":"8,100.00 €"}},{"$f":"SUBTOTAL(109,VariaçõesDeMarketing[Nov])","v":{"v":3100,"d":"3,100.00 €"}},{"$f":"SUBTOTAL(109,VariaçõesDeMarketing[Dez])","v":{"v":6900,"d":"6,900.00 €"}},{"$f":"SUBTOTAL(109,VariaçõesDeMarketing[ANO])","v":{"v":34641,"d":"34,641.00 €"}}]
[]
["A Variação nos Custos de Formação e Deslocações é calculada automaticamente na tabela Variações de Formação e Viagens a partir da célula à direita. A instrução seguinte está na célula A35.","Formação/Deslocações","Jan","Fev","Mar","Abr","Mai","Jun","Jul","Ago","Set","Out","Nov","Dez","ANO"]
[null,"Aulas de formação",{"$f":"INDEX(PlanoDeFormaçãoEViagens[],MATCH(INDEX(VariaçõesDeFormaçãoEViagens[],ROW()-ROW(VariaçõesDeFormaçãoEViagens[[#Headers],[Jan]]),1),INDEX(PlanoDeFormaçãoEViagens[],,1),0),MATCH(VariaçõesDeFormaçãoEViagens[[#Headers],[Jan]],PlanoDeFormaçãoEViagens[#Headers],0))-INDEX(RealFormaçãoEViagens[],MATCH(INDEX(VariaçõesDeFormaçãoEViagens[],ROW()-ROW(VariaçõesDeFormaçãoEViagens[[#Headers],[Jan]]),1),INDEX(PlanoDeFormaçãoEViagens[],,1),0),MATCH(VariaçõesDeFormaçãoEViagens[[#Headers],[Jan]],RealFormaçãoEViagens[#Headers],0))","v":{"v":400,"d":"400.00 €"}},{"$f":"INDEX(PlanoDeFormaçãoEViagens[],MATCH(INDEX(VariaçõesDeFormaçãoEViagens[],ROW()-ROW(VariaçõesDeFormaçãoEViagens[[#Headers],[Fev]]),1),INDEX(PlanoDeFormaçãoEViagens[],,1),0),MATCH(VariaçõesDeFormaçãoEViagens[[#Headers],[Fev]],PlanoDeFormaçãoEViagens[#Headers],0))-INDEX(RealFormaçãoEViagens[],MATCH(INDEX(VariaçõesDeFormaçãoEViagens[],ROW()-ROW(VariaçõesDeFormaçãoEViagens[[#Headers],[Fev]]),1),INDEX(PlanoDeFormaçãoEViagens[],,1),0),MATCH(VariaçõesDeFormaçãoEViagens[[#Headers],[Fev]],RealFormaçãoEViagens[#Headers],0))","v":{"v":-400,"d":"-400.00 €"}},{"$f":"INDEX(PlanoDeFormaçãoEViagens[],MATCH(INDEX(VariaçõesDeFormaçãoEViagens[],ROW()-ROW(VariaçõesDeFormaçãoEViagens[[#Headers],[Mar]]),1),INDEX(PlanoDeFormaçãoEViagens[],,1),0),MATCH(VariaçõesDeFormaçãoEViagens[[#Headers],[Mar]],PlanoDeFormaçãoEViagens[#Headers],0))-INDEX(RealFormaçãoEViagens[],MATCH(INDEX(VariaçõesDeFormaçãoEViagens[],ROW()-ROW(VariaçõesDeFormaçãoEViagens[[#Headers],[Mar]]),1),INDEX(PlanoDeFormaçãoEViagens[],,1),0),MATCH(VariaçõesDeFormaçãoEViagens[[#Headers],[Mar]],RealFormaçãoEViagens[#Headers],0))","v":{"v":600,"d":"600.00 €"}},{"$f":"INDEX(PlanoDeFormaçãoEViagens[],MATCH(INDEX(VariaçõesDeFormaçãoEViagens[],ROW()-ROW(VariaçõesDeFormaçãoEViagens[[#Headers],[Abr]]),1),INDEX(PlanoDeFormaçãoEViagens[],,1),0),MATCH(VariaçõesDeFormaçãoEViagens[[#Headers],[Abr]],PlanoDeFormaçãoEViagens[#Headers],0))-INDEX(RealFormaçãoEViagens[],MATCH(INDEX(VariaçõesDeFormaçãoEViagens[],ROW()-ROW(VariaçõesDeFormaçãoEViagens[[#Headers],[Abr]]),1),INDEX(PlanoDeFormaçãoEViagens[],,1),0),MATCH(VariaçõesDeFormaçãoEViagens[[#Headers],[Abr]],RealFormaçãoEViagens[#Headers],0))","v":{"v":400,"d":"400.00 €"}},{"$f":"INDEX(PlanoDeFormaçãoEViagens[],MATCH(INDEX(VariaçõesDeFormaçãoEViagens[],ROW()-ROW(VariaçõesDeFormaçãoEViagens[[#Headers],[Mai]]),1),INDEX(PlanoDeFormaçãoEViagens[],,1),0),MATCH(VariaçõesDeFormaçãoEViagens[[#Headers],[Mai]],PlanoDeFormaçãoEViagens[#Headers],0))-INDEX(RealFormaçãoEViagens[],MATCH(INDEX(VariaçõesDeFormaçãoEViagens[],ROW()-ROW(VariaçõesDeFormaçãoEViagens[[#Headers],[Mai]]),1),INDEX(PlanoDeFormaçãoEViagens[],,1),0),MATCH(VariaçõesDeFormaçãoEViagens[[#Headers],[Mai]],RealFormaçãoEViagens[#Headers],0))","v":{"v":800,"d":"800.00 €"}},{"$f":"INDEX(PlanoDeFormaçãoEViagens[],MATCH(INDEX(VariaçõesDeFormaçãoEViagens[],ROW()-ROW(VariaçõesDeFormaçãoEViagens[[#Headers],[Jun]]),1),INDEX(PlanoDeFormaçãoEViagens[],,1),0),MATCH(VariaçõesDeFormaçãoEViagens[[#Headers],[Jun]],PlanoDeFormaçãoEViagens[#Headers],0))-INDEX(RealFormaçãoEViagens[],MATCH(INDEX(VariaçõesDeFormaçãoEViagens[],ROW()-ROW(VariaçõesDeFormaçãoEViagens[[#Headers],[Jun]]),1),INDEX(PlanoDeFormaçãoEViagens[],,1),0),MATCH(VariaçõesDeFormaçãoEViagens[[#Headers],[Jun]],RealFormaçãoEViagens[#Headers],0))","v":{"v":-800,"d":"-800.00 €"}},{"$f":"INDEX(PlanoDeFormaçãoEViagens[],MATCH(INDEX(VariaçõesDeFormaçãoEViagens[],ROW()-ROW(VariaçõesDeFormaçãoEViagens[[#Headers],[Jul]]),1),INDEX(PlanoDeFormaçãoEViagens[],,1),0),MATCH(VariaçõesDeFormaçãoEViagens[[#Headers],[Jul]],PlanoDeFormaçãoEViagens[#Headers],0))-INDEX(RealFormaçãoEViagens[],MATCH(INDEX(VariaçõesDeFormaçãoEViagens[],ROW()-ROW(VariaçõesDeFormaçãoEViagens[[#Headers],[Jul]]),1),INDEX(PlanoDeFormaçãoEViagens[],,1),0),MATCH(VariaçõesDeFormaçãoEViagens[[#Headers],[Jul]],RealFormaçãoEViagens[#Headers],0))","v":{"v":2000,"d":"2,000.00 €"}},{"$f":"INDEX(PlanoDeFormaçãoEViagens[],MATCH(INDEX(VariaçõesDeFormaçãoEViagens[],ROW()-ROW(VariaçõesDeFormaçãoEViagens[[#Headers],[Ago]]),1),INDEX(PlanoDeFormaçãoEViagens[],,1),0),MATCH(VariaçõesDeFormaçãoEViagens[[#Headers],[Ago]],PlanoDeFormaçãoEViagens[#Headers],0))-INDEX(RealFormaçãoEViagens[],MATCH(INDEX(VariaçõesDeFormaçãoEViagens[],ROW()-ROW(VariaçõesDeFormaçãoEViagens[[#Headers],[Ago]]),1),INDEX(PlanoDeFormaçãoEViagens[],,1),0),MATCH(VariaçõesDeFormaçãoEViagens[[#Headers],[Ago]],RealFormaçãoEViagens[#Headers],0))","v":{"v":2000,"d":"2,000.00 €"}},{"$f":"INDEX(PlanoDeFormaçãoEViagens[],MATCH(INDEX(VariaçõesDeFormaçãoEViagens[],ROW()-ROW(VariaçõesDeFormaçãoEViagens[[#Headers],[Set]]),1),INDEX(PlanoDeFormaçãoEViagens[],,1),0),MATCH(VariaçõesDeFormaçãoEViagens[[#Headers],[Set]],PlanoDeFormaçãoEViagens[#Headers],0))-INDEX(RealFormaçãoEViagens[],MATCH(INDEX(VariaçõesDeFormaçãoEViagens[],ROW()-ROW(VariaçõesDeFormaçãoEViagens[[#Headers],[Set]]),1),INDEX(PlanoDeFormaçãoEViagens[],,1),0),MATCH(VariaçõesDeFormaçãoEViagens[[#Headers],[Set]],RealFormaçãoEViagens[#Headers],0))","v":{"v":2000,"d":"2,000.00 €"}},{"$f":"INDEX(PlanoDeFormaçãoEViagens[],MATCH(INDEX(VariaçõesDeFormaçãoEViagens[],ROW()-ROW(VariaçõesDeFormaçãoEViagens[[#Headers],[Out]]),1),INDEX(PlanoDeFormaçãoEViagens[],,1),0),MATCH(VariaçõesDeFormaçãoEViagens[[#Headers],[Out]],PlanoDeFormaçãoEViagens[#Headers],0))-INDEX(RealFormaçãoEViagens[],MATCH(INDEX(VariaçõesDeFormaçãoEViagens[],ROW()-ROW(VariaçõesDeFormaçãoEViagens[[#Headers],[Out]]),1),INDEX(PlanoDeFormaçãoEViagens[],,1),0),MATCH(VariaçõesDeFormaçãoEViagens[[#Headers],[Out]],RealFormaçãoEViagens[#Headers],0))","v":{"v":2000,"d":"2,000.00 €"}},{"$f":"INDEX(PlanoDeFormaçãoEViagens[],MATCH(INDEX(VariaçõesDeFormaçãoEViagens[],ROW()-ROW(VariaçõesDeFormaçãoEViagens[[#Headers],[Nov]]),1),INDEX(PlanoDeFormaçãoEViagens[],,1),0),MATCH(VariaçõesDeFormaçãoEViagens[[#Headers],[Nov]],PlanoDeFormaçãoEViagens[#Headers],0))-INDEX(RealFormaçãoEViagens[],MATCH(INDEX(VariaçõesDeFormaçãoEViagens[],ROW()-ROW(VariaçõesDeFormaçãoEViagens[[#Headers],[Nov]]),1),INDEX(PlanoDeFormaçãoEViagens[],,1),0),MATCH(VariaçõesDeFormaçãoEViagens[[#Headers],[Nov]],RealFormaçãoEViagens[#Headers],0))","v":{"v":2000,"d":"2,000.00 €"}},{"$f":"INDEX(PlanoDeFormaçãoEViagens[],MATCH(INDEX(VariaçõesDeFormaçãoEViagens[],ROW()-ROW(VariaçõesDeFormaçãoEViagens[[#Headers],[Dez]]),1),INDEX(PlanoDeFormaçãoEViagens[],,1),0),MATCH(VariaçõesDeFormaçãoEViagens[[#Headers],[Dez]],PlanoDeFormaçãoEViagens[#Headers],0))-INDEX(RealFormaçãoEViagens[],MATCH(INDEX(VariaçõesDeFormaçãoEViagens[],ROW()-ROW(VariaçõesDeFormaçãoEViagens[[#Headers],[Dez]]),1),INDEX(PlanoDeFormaçãoEViagens[],,1),0),MATCH(VariaçõesDeFormaçãoEViagens[[#Headers],[Dez]],RealFormaçãoEViagens[#Headers],0))","v":{"v":2000,"d":"2,000.00 €"}},{"$f":"SUM(VariaçõesDeFormaçãoEViagens[[#This Row],[Jan]:[Dez]])","v":{"v":13000,"d":"13,000.00 €"}}]
[null,"Custos em viagens associadas à formação",{"$f":"INDEX(PlanoDeFormaçãoEViagens[],MATCH(INDEX(VariaçõesDeFormaçãoEViagens[],ROW()-ROW(VariaçõesDeFormaçãoEViagens[[#Headers],[Jan]]),1),INDEX(PlanoDeFormaçãoEViagens[],,1),0),MATCH(VariaçõesDeFormaçãoEViagens[[#Headers],[Jan]],PlanoDeFormaçãoEViagens[#Headers],0))-INDEX(RealFormaçãoEViagens[],MATCH(INDEX(VariaçõesDeFormaçãoEViagens[],ROW()-ROW(VariaçõesDeFormaçãoEViagens[[#Headers],[Jan]]),1),INDEX(PlanoDeFormaçãoEViagens[],,1),0),MATCH(VariaçõesDeFormaçãoEViagens[[#Headers],[Jan]],RealFormaçãoEViagens[#Headers],0))","v":{"v":800,"d":"800.00 €"}},{"$f":"INDEX(PlanoDeFormaçãoEViagens[],MATCH(INDEX(VariaçõesDeFormaçãoEViagens[],ROW()-ROW(VariaçõesDeFormaçãoEViagens[[#Headers],[Fev]]),1),INDEX(PlanoDeFormaçãoEViagens[],,1),0),MATCH(VariaçõesDeFormaçãoEViagens[[#Headers],[Fev]],PlanoDeFormaçãoEViagens[#Headers],0))-INDEX(RealFormaçãoEViagens[],MATCH(INDEX(VariaçõesDeFormaçãoEViagens[],ROW()-ROW(VariaçõesDeFormaçãoEViagens[[#Headers],[Fev]]),1),INDEX(PlanoDeFormaçãoEViagens[],,1),0),MATCH(VariaçõesDeFormaçãoEViagens[[#Headers],[Fev]],RealFormaçãoEViagens[#Headers],0))","v":{"v":-200,"d":"-200.00 €"}},{"$f":"INDEX(PlanoDeFormaçãoEViagens[],MATCH(INDEX(VariaçõesDeFormaçãoEViagens[],ROW()-ROW(VariaçõesDeFormaçãoEViagens[[#Headers],[Mar]]),1),INDEX(PlanoDeFormaçãoEViagens[],,1),0),MATCH(VariaçõesDeFormaçãoEViagens[[#Headers],[Mar]],PlanoDeFormaçãoEViagens[#Headers],0))-INDEX(RealFormaçãoEViagens[],MATCH(INDEX(VariaçõesDeFormaçãoEViagens[],ROW()-ROW(VariaçõesDeFormaçãoEViagens[[#Headers],[Mar]]),1),INDEX(PlanoDeFormaçãoEViagens[],,1),0),MATCH(VariaçõesDeFormaçãoEViagens[[#Headers],[Mar]],RealFormaçãoEViagens[#Headers],0))","v":{"v":600,"d":"600.00 €"}},{"$f":"INDEX(PlanoDeFormaçãoEViagens[],MATCH(INDEX(VariaçõesDeFormaçãoEViagens[],ROW()-ROW(VariaçõesDeFormaçãoEViagens[[#Headers],[Abr]]),1),INDEX(PlanoDeFormaçãoEViagens[],,1),0),MATCH(VariaçõesDeFormaçãoEViagens[[#Headers],[Abr]],PlanoDeFormaçãoEViagens[#Headers],0))-INDEX(RealFormaçãoEViagens[],MATCH(INDEX(VariaçõesDeFormaçãoEViagens[],ROW()-ROW(VariaçõesDeFormaçãoEViagens[[#Headers],[Abr]]),1),INDEX(PlanoDeFormaçãoEViagens[],,1),0),MATCH(VariaçõesDeFormaçãoEViagens[[#Headers],[Abr]],RealFormaçãoEViagens[#Headers],0))","v":{"v":800,"d":"800.00 €"}},{"$f":"INDEX(PlanoDeFormaçãoEViagens[],MATCH(INDEX(VariaçõesDeFormaçãoEViagens[],ROW()-ROW(VariaçõesDeFormaçãoEViagens[[#Headers],[Mai]]),1),INDEX(PlanoDeFormaçãoEViagens[],,1),0),MATCH(VariaçõesDeFormaçãoEViagens[[#Headers],[Mai]],PlanoDeFormaçãoEViagens[#Headers],0))-INDEX(RealFormaçãoEViagens[],MATCH(INDEX(VariaçõesDeFormaçãoEViagens[],ROW()-ROW(VariaçõesDeFormaçãoEViagens[[#Headers],[Mai]]),1),INDEX(PlanoDeFormaçãoEViagens[],,1),0),MATCH(VariaçõesDeFormaçãoEViagens[[#Headers],[Mai]],RealFormaçãoEViagens[#Headers],0))","v":{"v":1200,"d":"1,200.00 €"}},{"$f":"INDEX(PlanoDeFormaçãoEViagens[],MATCH(INDEX(VariaçõesDeFormaçãoEViagens[],ROW()-ROW(VariaçõesDeFormaçãoEViagens[[#Headers],[Jun]]),1),INDEX(PlanoDeFormaçãoEViagens[],,1),0),MATCH(VariaçõesDeFormaçãoEViagens[[#Headers],[Jun]],PlanoDeFormaçãoEViagens[#Headers],0))-INDEX(RealFormaçãoEViagens[],MATCH(INDEX(VariaçõesDeFormaçãoEViagens[],ROW()-ROW(VariaçõesDeFormaçãoEViagens[[#Headers],[Jun]]),1),INDEX(PlanoDeFormaçãoEViagens[],,1),0),MATCH(VariaçõesDeFormaçãoEViagens[[#Headers],[Jun]],RealFormaçãoEViagens[#Headers],0))","v":{"v":-1500,"d":"-1,500.00 €"}},{"$f":"INDEX(PlanoDeFormaçãoEViagens[],MATCH(INDEX(VariaçõesDeFormaçãoEViagens[],ROW()-ROW(VariaçõesDeFormaçãoEViagens[[#Headers],[Jul]]),1),INDEX(PlanoDeFormaçãoEViagens[],,1),0),MATCH(VariaçõesDeFormaçãoEViagens[[#Headers],[Jul]],PlanoDeFormaçãoEViagens[#Headers],0))-INDEX(RealFormaçãoEViagens[],MATCH(INDEX(VariaçõesDeFormaçãoEViagens[],ROW()-ROW(VariaçõesDeFormaçãoEViagens[[#Headers],[Jul]]),1),INDEX(PlanoDeFormaçãoEViagens[],,1),0),MATCH(VariaçõesDeFormaçãoEViagens[[#Headers],[Jul]],RealFormaçãoEViagens[#Headers],0))","v":{"v":2000,"d":"2,000.00 €"}},{"$f":"INDEX(PlanoDeFormaçãoEViagens[],MATCH(INDEX(VariaçõesDeFormaçãoEViagens[],ROW()-ROW(VariaçõesDeFormaçãoEViagens[[#Headers],[Ago]]),1),INDEX(PlanoDeFormaçãoEViagens[],,1),0),MATCH(VariaçõesDeFormaçãoEViagens[[#Headers],[Ago]],PlanoDeFormaçãoEViagens[#Headers],0))-INDEX(RealFormaçãoEViagens[],MATCH(INDEX(VariaçõesDeFormaçãoEViagens[],ROW()-ROW(VariaçõesDeFormaçãoEViagens[[#Headers],[Ago]]),1),INDEX(PlanoDeFormaçãoEViagens[],,1),0),MATCH(VariaçõesDeFormaçãoEViagens[[#Headers],[Ago]],RealFormaçãoEViagens[#Headers],0))","v":{"v":2000,"d":"2,000.00 €"}},{"$f":"INDEX(PlanoDeFormaçãoEViagens[],MATCH(INDEX(VariaçõesDeFormaçãoEViagens[],ROW()-ROW(VariaçõesDeFormaçãoEViagens[[#Headers],[Set]]),1),INDEX(PlanoDeFormaçãoEViagens[],,1),0),MATCH(VariaçõesDeFormaçãoEViagens[[#Headers],[Set]],PlanoDeFormaçãoEViagens[#Headers],0))-INDEX(RealFormaçãoEViagens[],MATCH(INDEX(VariaçõesDeFormaçãoEViagens[],ROW()-ROW(VariaçõesDeFormaçãoEViagens[[#Headers],[Set]]),1),INDEX(PlanoDeFormaçãoEViagens[],,1),0),MATCH(VariaçõesDeFormaçãoEViagens[[#Headers],[Set]],RealFormaçãoEViagens[#Headers],0))","v":{"v":2000,"d":"2,000.00 €"}},{"$f":"INDEX(PlanoDeFormaçãoEViagens[],MATCH(INDEX(VariaçõesDeFormaçãoEViagens[],ROW()-ROW(VariaçõesDeFormaçãoEViagens[[#Headers],[Out]]),1),INDEX(PlanoDeFormaçãoEViagens[],,1),0),MATCH(VariaçõesDeFormaçãoEViagens[[#Headers],[Out]],PlanoDeFormaçãoEViagens[#Headers],0))-INDEX(RealFormaçãoEViagens[],MATCH(INDEX(VariaçõesDeFormaçãoEViagens[],ROW()-ROW(VariaçõesDeFormaçãoEViagens[[#Headers],[Out]]),1),INDEX(PlanoDeFormaçãoEViagens[],,1),0),MATCH(VariaçõesDeFormaçãoEViagens[[#Headers],[Out]],RealFormaçãoEViagens[#Headers],0))","v":{"v":2000,"d":"2,000.00 €"}},{"$f":"INDEX(PlanoDeFormaçãoEViagens[],MATCH(INDEX(VariaçõesDeFormaçãoEViagens[],ROW()-ROW(VariaçõesDeFormaçãoEViagens[[#Headers],[Nov]]),1),INDEX(PlanoDeFormaçãoEViagens[],,1),0),MATCH(VariaçõesDeFormaçãoEViagens[[#Headers],[Nov]],PlanoDeFormaçãoEViagens[#Headers],0))-INDEX(RealFormaçãoEViagens[],MATCH(INDEX(VariaçõesDeFormaçãoEViagens[],ROW()-ROW(VariaçõesDeFormaçãoEViagens[[#Headers],[Nov]]),1),INDEX(PlanoDeFormaçãoEViagens[],,1),0),MATCH(VariaçõesDeFormaçãoEViagens[[#Headers],[Nov]],RealFormaçãoEViagens[#Headers],0))","v":{"v":2000,"d":"2,000.00 €"}},{"$f":"INDEX(PlanoDeFormaçãoEViagens[],MATCH(INDEX(VariaçõesDeFormaçãoEViagens[],ROW()-ROW(VariaçõesDeFormaçãoEViagens[[#Headers],[Dez]]),1),INDEX(PlanoDeFormaçãoEViagens[],,1),0),MATCH(VariaçõesDeFormaçãoEViagens[[#Headers],[Dez]],PlanoDeFormaçãoEViagens[#Headers],0))-INDEX(RealFormaçãoEViagens[],MATCH(INDEX(VariaçõesDeFormaçãoEViagens[],ROW()-ROW(VariaçõesDeFormaçãoEViagens[[#Headers],[Dez]]),1),INDEX(PlanoDeFormaçãoEViagens[],,1),0),MATCH(VariaçõesDeFormaçãoEViagens[[#Headers],[Dez]],RealFormaçãoEViagens[#Headers],0))","v":{"v":2000,"d":"2,000.00 €"}},{"$f":"SUM(VariaçõesDeFormaçãoEViagens[[#This Row],[Jan]:[Dez]])","v":{"v":13700,"d":"13,700.00 €"}}]
[null,"Subtotal",{"$f":"SUBTOTAL(109,VariaçõesDeFormaçãoEViagens[Jan])","v":{"v":1200,"d":"1,200.00 €"}},{"$f":"SUBTOTAL(109,VariaçõesDeFormaçãoEViagens[Fev])","v":{"v":-600,"d":"-600.00 €"}},{"$f":"SUBTOTAL(109,VariaçõesDeFormaçãoEViagens[Mar])","v":{"v":1200,"d":"1,200.00 €"}},{"$f":"SUBTOTAL(109,VariaçõesDeFormaçãoEViagens[Abr])","v":{"v":1200,"d":"1,200.00 €"}},{"$f":"SUBTOTAL(109,VariaçõesDeFormaçãoEViagens[Mai])","v":{"v":2000,"d":"2,000.00 €"}},{"$f":"SUBTOTAL(109,VariaçõesDeFormaçãoEViagens[Jun])","v":{"v":-2300,"d":"-2,300.00 €"}},{"$f":"SUBTOTAL(109,VariaçõesDeFormaçãoEViagens[Jul])","v":{"v":4000,"d":"4,000.00 €"}},{"$f":"SUBTOTAL(109,VariaçõesDeFormaçãoEViagens[Ago])","v":{"v":4000,"d":"4,000.00 €"}},{"$f":"SUBTOTAL(109,VariaçõesDeFormaçãoEViagens[Set])","v":{"v":4000,"d":"4,000.00 €"}},{"$f":"SUBTOTAL(109,VariaçõesDeFormaçãoEViagens[Out])","v":{"v":4000,"d":"4,000.00 €"}},{"$f":"SUBTOTAL(109,VariaçõesDeFormaçãoEViagens[Nov])","v":{"v":4000,"d":"4,000.00 €"}},{"$f":"SUBTOTAL(109,VariaçõesDeFormaçãoEViagens[Dez])","v":{"v":4000,"d":"4,000.00 €"}},{"$f":"SUBTOTAL(109,VariaçõesDeFormaçãoEViagens[ANO])","v":{"v":26700,"d":"26,700.00 €"}}]
[]
["As Variações de Despesas são calculadas automaticamente na tabela Variações Totais a partir da célula à direita.","TOTAIS","Jan","Fev","Mar","Abr","Mai","Jun","Jul","Ago","Set","Out","Nov","Dez","Ano"]
[null,"Despesas Mensais Reais",{"$f":"VariaçõesDeFormaçãoEViagens[[#Totals],[Jan]]+VariaçõesDeMarketing[[#Totals],[Jan]]+VariaçõesDeEscritório[[#Totals],[Jan]]+VariaçõesDeColaboradores[[#Totals],[Jan]]","v":{"v":1738,"d":"1,738.00 €"}},{"$f":"VariaçõesDeFormaçãoEViagens[[#Totals],[Fev]]+VariaçõesDeMarketing[[#Totals],[Fev]]+VariaçõesDeEscritório[[#Totals],[Fev]]+VariaçõesDeColaboradores[[#Totals],[Fev]]","v":{"v":-984,"d":"-984.00 €"}},{"$f":"VariaçõesDeFormaçãoEViagens[[#Totals],[Mar]]+VariaçõesDeMarketing[[#Totals],[Mar]]+VariaçõesDeEscritório[[#Totals],[Mar]]+VariaçõesDeColaboradores[[#Totals],[Mar]]","v":{"v":1255,"d":"1,255.00 €"}},{"$f":"VariaçõesDeFormaçãoEViagens[[#Totals],[Abr]]+VariaçõesDeMarketing[[#Totals],[Abr]]+VariaçõesDeEscritório[[#Totals],[Abr]]+VariaçõesDeColaboradores[[#Totals],[Abr]]","v":{"v":301,"d":"301.00 €"}},{"$f":"VariaçõesDeFormaçãoEViagens[[#Totals],[Mai]]+VariaçõesDeMarketing[[#Totals],[Mai]]+VariaçõesDeEscritório[[#Totals],[Mai]]+VariaçõesDeColaboradores[[#Totals],[Mai]]","v":{"v":1440,"d":"1,440.00 €"}},{"$f":"VariaçõesDeFormaçãoEViagens[[#Totals],[Jun]]+VariaçõesDeMarketing[[#Totals],[Jun]]+VariaçõesDeEscritório[[#Totals],[Jun]]+VariaçõesDeColaboradores[[#Totals],[Jun]]","v":{"v":-3744,"d":"-3,744.00 €"}},{"$f":"VariaçõesDeFormaçãoEViagens[[#Totals],[Jul]]+VariaçõesDeMarketing[[#Totals],[Jul]]+VariaçõesDeEscritório[[#Totals],[Jul]]+VariaçõesDeColaboradores[[#Totals],[Jul]]","v":{"v":134695,"d":"134,695.00 €"}},{"$f":"VariaçõesDeFormaçãoEViagens[[#Totals],[Ago]]+VariaçõesDeMarketing[[#Totals],[Ago]]+VariaçõesDeEscritório[[#Totals],[Ago]]+VariaçõesDeColaboradores[[#Totals],[Ago]]","v":{"v":138918,"d":"138,918.00 €"}},{"$f":"VariaçõesDeFormaçãoEViagens[[#Totals],[Set]]+VariaçõesDeMarketing[[#Totals],[Set]]+VariaçõesDeEscritório[[#Totals],[Set]]+VariaçõesDeColaboradores[[#Totals],[Set]]","v":{"v":135918,"d":"135,918.00 €"}},{"$f":"VariaçõesDeFormaçãoEViagens[[#Totals],[Out]]+VariaçõesDeMarketing[[#Totals],[Out]]+VariaçõesDeEscritório[[#Totals],[Out]]+VariaçõesDeColaboradores[[#Totals],[Out]]","v":{"v":140918,"d":"140,918.00 €"}},{"$f":"VariaçõesDeFormaçãoEViagens[[#Totals],[Nov]]+VariaçõesDeMarketing[[#Totals],[Nov]]+VariaçõesDeEscritório[[#Totals],[Nov]]+VariaçõesDeColaboradores[[#Totals],[Nov]]","v":{"v":136218,"d":"136,218.00 €"}},{"$f":"VariaçõesDeFormaçãoEViagens[[#Totals],[Dez]]+VariaçõesDeMarketing[[#Totals],[Dez]]+VariaçõesDeEscritório[[#Totals],[Dez]]+VariaçõesDeColaboradores[[#Totals],[Dez]]","v":{"v":140018,"d":"140,018.00 €"}},{"$f":"VariaçõesDeFormaçãoEViagens[[#Totals],[ANO]]+VariaçõesDeMarketing[[#Totals],[ANO]]+VariaçõesDeEscritório[[#Totals],[ANO]]+VariaçõesDeColaboradores[[#Totals],[ANO]]","v":{"v":826691,"d":"826,691.00 €"}}]
[null,"Despesas Reais TOTAIS",{"$f":"SUM($C$36:C36)","v":{"v":1738,"d":"1,738.00 €"}},{"$f":"SUM($C$36:D36)","v":{"v":754,"d":"754.00 €"}},{"$f":"SUM($C$36:E36)","v":{"v":2009,"d":"2,009.00 €"}},{"$f":"SUM($C$36:F36)","v":{"v":2310,"d":"2,310.00 €"}},{"$f":"SUM($C$36:G36)","v":{"v":3750,"d":"3,750.00 €"}},{"$f":"SUM($C$36:H36)","v":{"v":6,"d":"6.00 €"}},{"$f":"SUM($C$36:I36)","v":{"v":134701,"d":"134,701.00 €"}},{"$f":"SUM($C$36:J36)","v":{"v":273619,"d":"273,619.00 €"}},{"$f":"SUM($C$36:K36)","v":{"v":409537,"d":"409,537.00 €"}},{"$f":"SUM($C$36:L36)","v":{"v":550455,"d":"550,455.00 €"}},{"$f":"SUM($C$36:M36)","v":{"v":686673,"d":"686,673.00 €"}},{"$f":"SUM($C$36:N36)","v":{"v":826691,"d":"826,691.00 €"}}]

{"sheet":"ANÁLISE DE DESPESAS","index":4,"n_rows":14,"n_cols":16,"rows_kept":14,"merged":[[1,1,2,3],[1,5,1,6],[2,4,2,6],[11,1,11,2],[11,3,11,5],[13,1,36,5]]}
["As Despesas Anuais Planeadas e Reais, as Variações de Despesas e a Percentagem de Variação são atualizadas automaticamente para cada Categoria de Despesa nesta folha de cálculo. Encontram-se instruções úteis sobre como utilizar esta folha de cálculo nas células desta coluna. Prima a Seta para Baixo para começar. ",{"$nulls":5}," ",{"$nulls":8}," "]
["O Nome da Empresa é atualizado automaticamente na célula à direita. Introduza o Logótipo na célula F2.",{"$f":"'DESPESAS PLANEADAS'!B2:D3","v":"Nome da Empresa"},{"$nulls":3},"O marcador de posição de logótipo encontra-se nesta célula."]
["O título desta folha de cálculo está na célula E3. A instrução seguinte está na célula A5.",{"$nulls":3},{"$f":"titulo_folha_de_cálculo","v":"Estimativas de Despesas Detalhadas"}]
[]
["As Despesas Planeadas, as Despesas Reais, a Variações de Despesas e a Percentagem de Variação são calculadas automaticamente na tabela Análise a partir da célula à direita. A instrução seguinte está na célula A12.","Categoria de Despesas","Despesas Planeadas","Despesas Reais","Variações de Despesas","Percentagem de Variação"]
[null,"Custos com Colaboradores",{"$f":"PlanoDeColaboradores[[#Totals],[ANO]]","v":{"v":1355090,"d":"1,355,090.00 €"}},{"$f":"RealColaboradores[[#Totals],[ANO]]","v":{"v":659130,"d":"659,130.00 €"}},{"$f":"C6-D6","v":{"v":695960,"d":"695,960.00 €"}},{"$f":"E6/C6","v":{"v":0.5135895032802249,"d":"51%"}}]
[null,{"$f":"'DESPESAS PLANEADAS'!B10","v":"Custos de Escritório"},{"$f":"PlanoDeEscritório[[#Totals],[ANO]]","v":{"v":138740,"d":"138,740.00 €"}},{"$f":"RealEscritório[[#Totals],[ANO]]","v":{"v":69350,"d":"69,350.00 €"}},{"$f":"C7-D7","v":{"v":69390,"d":"69,390.00 €"}},{"$f":"E7/C7","v":{"v":0.5001441545336601,"d":"50%"}}]
[null,{"$f":"'DESPESAS PLANEADAS'!B21","v":"Custos de Marketing"},{"$f":"PlanoDeMarketing[[#Totals],[ANO]]","v":{"v":67800,"d":"67,800.00 €"}},{"$f":"RealMarketing[[#Totals],[ANO]]","v":{"v":33159,"d":"33,159.00 €"}},{"$f":"C8-D8","v":{"v":34641,"d":"34,641.00 €"}},{"$f":"E8/C8","v":{"v":0.510929203539823,"d":"51%"}}]
[null,{"$f":"'DESPESAS PLANEADAS'!B30","v":"Formação/Deslocações"},{"$f":"PlanoDeFormaçãoEViagens[[#Totals],[ANO]]","v":{"v":48000,"d":"48,000.00 €"}},{"$f":"RealFormaçãoEViagens[[#Totals],[ANO]]","v":{"v":21300,"d":"21,300.00 €"}},{"$f":"C9-D9","v":{"v":26700,"d":"26,700.00 €"}},{"$f":"E9/C9","v":{"v":0.55625,"d":"56%"}}]
[null,{"$f":"'DESPESAS PLANEADAS'!B35","v":"TOTAIS"},{"$f":"'DESPESAS PLANEADAS'!O36","v":{"v":1609630,"d":"1,609,630.00 €"}},{"$f":"'DESPESAS REAIS'!O36","v":{"v":782939,"d":"782,939.00 €"}},{"$f":"C10-D10","v":{"v":826691,"d":"826,691.00 €"}},{"$f":"E10/C10","v":{"v":0.5135907009685455,"d":"51%"}}]
[]
["O gráfico circular Despesas Planeadas encontra-se na célula à direita e o gráfico circular Despesas Reais encontra-se na célula D12. A instrução seguinte está na célula A14.","O gráfico circular com as despesas planeadas nas diversas categorias encontra-se nesta célula.",null,"O gráfico circular com as despesas reais incorridas nas diversas categorias encontra-se nesta célula."]
[]
["O Gráfico com Despesas Mensais Planeadas, Reais e a respetiva Variação encontra-se na célula à direita."]